Workbook

Sheet Inputs
B2: Scenarios
G3: 9 | I3: =AI6 -> Increasing Return 4.50% to 7.00%
M4: ="Changing Return Cases - Growth "&TEXT(G8,"##.00%")&" Cost of Capital "&TEXT(G9,"##.00%") -> Changing Return Cases - Growth 2.00% Cost of Capital 6.00%
H5: Constant Return Cases
G6: Base | H6: High Return | I6: Low Return | J6: Return =COC | K6: Return below COC | M6: ="Reducing Return "&TEXT(M11,"##.00%")&" to "&TEXT(M7,"##.00%") -> Reducing Return 7.00% to 6.50% | N6: ="Reducing Return "&TEXT(N11,"##.00%")&" to "&TEXT(N7,"##.00%") -> Reducing Return 8.00% to 7.00% | O6: ="Increasing Return "&TEXT(O11,"##.00%")&" to "&TEXT(O7,"##.00%") -> Increasing Return 4.50% to 7.00% | P6: =J6 -> Return =COC | Q6: ="Increasing Return "&TEXT(Q11,"##.00%")&" to "&TEXT(Q7,"##.00%") -> Increasing Return 3.00% to 7.00% | AI6: =INDEX(G6:AF6,$G$3) -> Increasing Return 4.50% to 7.00%
D7: ROIC | G7: 0.07 | H7: 0.08 | I7: 0.065 | J7: =J9 -> 0.06 | K7: 0.03 | M7: 0.065 | N7: 0.07 | O7: =N7 -> 0.07 | P7: =P9 -> 0.06 | Q7: =O7 -> 0.07 | AI7: =INDEX(G7:AF7,$G$3) -> 0.07
D8: Growth | E8: 7 | G8: =(E8-5)/100 -> 0.02 | H8: =G8 -> 0.02 | I8: =H8 -> 0.02 | J8: 0.02 | K8: =I8 -> 0.02 | M8: =G8 -> 0.02 | N8: =M8 -> 0.02 | O8: =N8 -> 0.02 | P8: 0.02 | Q8: =O8 -> 0.02 | AI8: =INDEX(G8:AF8,$G$3) -> 0.02
D9: Cost of Capital | E9: 6 | G9: =$E$9/100 -> 0.06 | H9: =$E$9/100 -> 0.06 | I9: 0.06 | J9: 0.06 | K9: 0.06 | M9: 0.06 | N9: 0.06 | O9: 0.06 | P9: 0.06 | Q9: 0.06 | AI9: =INDEX(G9:AF9,$G$3) -> 0.06
D11: Current Return | G11: =G7 -> 0.07 | H11: =H7 -> 0.08 | I11: =I7 -> 0.065 | J11: 0.06 | K11: 0.03 | M11: 0.07 | N11: 0.08 | O11: 0.045 | P11: =P9 -> 0.06 | Q11: 0.03 | AI11: =INDEX(G11:AF11,$G$3) -> 0.045
D12: Future Return | G12: =G11 -> 0.07 | H12: =H7 -> 0.08 | I12: =I7 -> 0.065 | J12: 0.06 | K12: 0.03 | M12: 0.065 | N12: 0.07 | O12: =O7 -> 0.07 | P12: 0.06 | Q12: 0.07 | AI12: =INDEX(G12:AF12,$G$3) -> 0.07
D14: Book Value | G14: 1000 | H14: 1000 | I14: 1000 | J14: 1000 | K14: 1000 | M14: 1000 | N14: 1000 | O14: 1000 | P14: 1000 | Q14: 1000 | AI14: =INDEX(G14:AF14,$G$3) -> 1000
D15: Initial Income | G15: =G14*G11 -> 70 | H15: =H14*H11 -> 80 | I15: 65 | J15: 60 | K15: 30 | M15: =M14*M11 -> 70 | N15: =N14*N11 -> 80 | O15: =O14*O11 -> 45 | P15: =P14*P11 -> 60 | Q15: =Q14*Q11 -> 30 | AI15: =INDEX(G15:AF15,$G$3) -> 45
D17: Value formula | G17: =G15*(1-G8/G7)/(G9-G8) -> 1250 | H17: =H15*(1-H8/H7)/(H9-H8) -> 1500 | I17: 1125 | J17: =J15*(1-J8/J7)/(J9-J8) -> 1000 | K17: 250 | M17: =M15*(1-M8/M7)/(M9-M8) -> 1211.538462 | N17: =N15*(1-N8/N7)/(N9-N8) -> 1428.571429 | O17: =O15*(1-O8/O7)/(O9-O8) -> 803.5714286 | P17: 1000 | Q17: 535.7142857 | AI17: =INDEX(G17:AF17,$G$3) -> 803.5714286
D18: Value/Earnings | G18: =G17/G15 -> 17.85714286 | H18: =H17/H15 -> 18.75 | I18: 17.30769231 | J18: 16.66666667 | K18: 8.333333333 | M18: =M17/M15 -> 17.30769231 | N18: =N17/N15 -> 17.85714286 | O18: =O17/O15 -> 17.85714286 | P18: =P17/P15 -> 16.66666667 | Q18: =Q17/Q15 -> 17.85714286 | AI18: =INDEX(G18:AF18,$G$3) -> 17.85714286
D20: Transition Period | G20: 5 | H20: =G20 -> 5 | I20: =H20 -> 5 | J20: 5 | K20: 5 | M20: =K20 -> 5 | N20: =M20 -> 5 | O20: =N20 -> 5 | P20: 5 | Q20: 5 | AI20: =INDEX(G20:AF20,$G$3) -> 5
G21: =G6 -> Base | H21: =H6 -> High Return | I21: Low Return | J21: Return =COC | K21: Return below COC | M21: 7 | N21: 8 | O21: 9 | P21: 10 | Q21: 11
D22: Corrected Value | F22: 0 | G22: =G31 -> 16.66666667 | H22: =H31 -> 16.66666667 | I22: 16.66666667 | J22: 16.66666667 | K22: 16.66666667 | L22: =Model!E22 -> 1200.657178 | M22: 1133.952527 | N22: 1267.693226 | O22: 1200.657178 | P22: 999.9999999 | Q22: 1165.416094
D23: Corrected P/E | F23: 0.02 | G23: =G32 -> 17.85714286 | H23: 18.75 | I23: 17.30769231 | J23: 16.66666667 | K23: 8.333333333 | L23: =Model!E25 -> 24.42470924 | M23: 16.44120974 | N23: 16.27505901 | O23: 24.42470924 | P23: 16.66666667 | Q23: 32.79173528
F24: -0.02 | G24: 16.07142857 | H24: 15.625 | I24: 16.34615385 | J24: 16.66666667 | K24: 20.83333333
M26: =M6 -> Reducing Return 7.00% to 6.50% | N26: =N6 -> Reducing Return 8.00% to 7.00% | O26: =O6 -> Increasing Return 4.50% to 7.00% | P26: =P6 -> Return =COC | Q26: =Q6 -> Increasing Return 3.00% to 7.00%
L27: P/E Correct | M27: =M23 -> 16.44120974 | N27: =N23 -> 16.27505901 | O27: =O23 -> 24.42470924 | P27: =P23 -> 16.66666667 | Q27: =Q23 -> 32.79173528
L28: P/E Formula | M28: =M18 -> 17.30769231 | N28: =N18 -> 17.85714286 | O28: =O18 -> 17.85714286 | P28: =P18 -> 16.66666667 | Q28: =Q18 -> 17.85714286
G30: =G18 -> 17.85714286 | H30: =H18 -> 18.75 | I30: 17.30769231 | J30: 16.66666667 | K30: 8.333333333
E31: =(F31-5)/100 -> 0 | F31: 5 | G31: 16.66666667 | H31: 16.66666667 | I31: 16.66666667 | J31: 16.66666667 | K31: 16.66666667
D32: Growth | E32: =(F32-5)/100 -> 0.02 | F32: 7 | G32: 17.85714286 | H32: 18.75 | I32: 17.30769231 | J32: 16.66666667 | K32: 8.333333333
E33: -0.02 | F33: 3 | G33: 16.07142857 | H33: 15.625 | I33: 16.34615385 | J33: 16.66666667 | K33: 20.83333333
D63: s

Sheet Model
D2: Scenario | E2: =Inputs!AI6 -> Increasing Return 4.50% to 7.00%
B4: Inputs | E4: 0 | F4: =Inputs!AI20 -> 5
D5: Return | E5: =Inputs!AI11 -> 0.045 | F5: =Inputs!AI12 -> 0.07
D6: Growth | E6: =Inputs!AI8 -> 0.02 | F6: =E6 -> 0.02
D7: Payout | E7: =(1-E6/E5) -> 0.5555555556 | F7: =(1-F6/F5) -> 0.7142857143 | G7: =_xlfn.FORMULATEXT(E7) -> =(1-E6/E5)
D8: Cost of Capital | E8: =Inputs!AI9 -> 0.06
B10: Model | E10: 0 | F10: 1 | G10: 2 | H10: 3 | I10: 4 | J10: 5 | K10: 6 | L10: 7 | M10: 8 | N10: 9 | O10: 10 | P10: 11 | Q10: 12 | R10: 13 | S10: 14 | T10: 15 | U10: 16 | V10: 17 | W10: 18 | X10: 19 | Y10: 20 | Z10: 21 | AA10: 22 | AB10: 23 | AC10: 24 | AD10: 25 | AE10: 26 | AF10: 27 | AG10: 28 | AH10: 29 | AI10: 30 | AJ10: 31 | AK10: 32 | AL10: 33 | AM10: 34 | AN10: 35 | AO10: 36 | AP10: 37 | AQ10: 38 | AR10: 39 | AS10: 40 | AT10: 41 | AU10: 42 | AV10: 43 | AW10: 44 | AX10: 45 | AY10: 46 | AZ10: 47 | BA10: 48 | BB10: 49 | BC10: 50 | BD10: 51 | BE10: 52 | BF10: 53 | BG10: 54 | BH10: 55 | BI10: 56 | BJ10: 57 | BK10: 58 | BL10: 59 | BM10: 60 | BN10: 61 | BO10: 62 | BP10: 63 | BQ10: 64 | BR10: 65 | BS10: 66 | BT10: 67 | BU10: 68 | BV10: 69 | BW10: 70 | BX10: 71 | BY10: 72 | BZ10: 73 | CA10: 74 | CB10: 75 | CC10: 76 | CD10: 77 | CE10: 78 | CF10: 79 | CG10: 80 | CH10: 81 | CI10: 82 | CJ10: 83 | CK10: 84 | CL10: 85 | CM10: 86 | CN10: 87 | CO10: 88 | CP10: 89 | CQ10: 90 | CR10: 91 | CS10: 92 | CT10: 93 | CU10: 94 | CV10: 95 | CW10: 96 | CX10: 97 | CY10: 98 | CZ10: 99 | DA10: 100 | DB10: 101 | DC10: 102 | DD10: 103 | DE10: 104 | DF10: 105 | DG10: 106 | DH10: 107 | DI10: 108 | DJ10: 109 | DK10: 110 | DL10: 111 | DM10: 112 | DN10: 113 | DO10: 114 | DP10: 115 | DQ10: 116 | DR10: 117 | DS10: 118 | DT10: 119 | DU10: 120 | DV10: 121 | DW10: 122 | DX10: 123 | DY10: 124 | DZ10: 125 | EA10: 126 | EB10: 127 | EC10: 128 | ED10: 129 | EE10: 130 | EF10: 131 | EG10: 132 | EH10: 133 | EI10: 134 | EJ10: 135 | EK10: 136 | EL10: 137 | EM10: 138 | EN10: 139 | EO10: 140 | EP10: 141 | EQ10: 142 | ER10: 143 | ES10: 144 | ET10: 145 | EU10: 146 | EV10: 147 | EW10: 148 | EX10: 149 | EY10: 150 | EZ10: 151 | FA10: 152 | FB10: 153 | FC10: 154 | FD10: 155 | FE10: 156 | FF10: 157 | FG10: 158 | FH10: 159 | FI10: 160 | FJ10: 161 | FK10: 162 | FL10: 163 | FM10: 164 | FN10: 165 | FO10: 166 | FP10: 167 | FQ10: 168 | FR10: 169 | FS10: 170 | FT10: 171 | FU10: 172 | FV10: 173 | FW10: 174 | FX10: 175 | FY10: 176 | FZ10: 177 | GA10: 178 | GB10: 179 | GC10: 180 | GD10: 181 | GE10: 182 | GF10: 183 | GG10: 184 | GH10: 185 | GI10: 186 | GJ10: 187 | GK10: 188 | GL10: 189 | GM10: 190 | GN10: 191 | GO10: 192 | GP10: 193 | GQ10: 194 | GR10: 195 | GS10: 196 | GT10: 197 | GU10: 198 | GV10: 199 | GW10: 200 | GX10: 201 | GY10: 202 | GZ10: 203 | HA10: 204 | HB10: 205 | HC10: 206 | HD10: 207 | HE10: 208 | HF10: 209 | HG10: 210 | HH10: 211 | HI10: 212 | HJ10: 213 | HK10: 214 | HL10: 215 | HM10: 216 | HN10: 217 | HO10: 218 | HP10: 219 | HQ10: 220 | HR10: 221 | HS10: 222 | HT10: 223 | HU10: 224 | HV10: 225 | HW10: 226 | HX10: 227 | HY10: 228 | HZ10: 229 | IA10: 230 | IB10: 231 | IC10: 232 | ID10: 233 | IE10: 234 | IF10: 235 | IG10: 236 | IH10: 237 | II10: 238 | IJ10: 239 | IK10: 240 | IL10: 241 | IM10: 242 | IN10: 243 | IO10: 244 | IP10: 245 | IQ10: 246 | IR10: 247 | IS10: 248 | IT10: 249 | IU10: 250 | IV10: 251 | IW10: 252 | IX10: 253 | IY10: 254 | IZ10: 255 | JA10: 256 | JB10: 257 | JC10: 258 | JD10: 259 | JE10: 260 | JF10: 261 | JG10: 262 | JH10: 263 | JI10: 264 | JJ10: 265 | JK10: 266 | JL10: 267 | JM10: 268 | JN10: 269 | JO10: 270 | JP10: 271 | JQ10: 272 | JR10: 273 | JS10: 274 | JT10: 275 | JU10: 276 | JV10: 277 | JW10: 278 | JX10: 279 | JY10: 280 | JZ10: 281 | KA10: 282 | KB10: 283 | KC10: 284 | KD10: 285 | KE10: 286 | KF10: 287 | KG10: 288 | KH10: 289 | KI10: 290 | KJ10: 291 | KK10: 292 | KL10: 293 | KM10: 294 | KN10: 295 | KO10: 296 | KP10: 297 | KQ10: 298 | KR10: 299 | KS10: 300 | KT10: 301 | KU10: 302 | KV10: 303 | KW10: 304 | KX10: 305 | KY10: 306 | KZ10: 307 | LA10: 308 | LB10: 309 | LC10: 310 | LD10: 311 | LE10: 312 | LF10: 313 | LG10: 314 | LH10: 315 | LI10: 316 | LJ10: 317 | LK10: 318 | LL10: 319 | LM10: 320 | LN10: 321 | LO10: 322 | LP10: 323 | LQ10: 324 | LR10: 325 | LS10: 326 | LT10: 327 | LU10: 328 | LV10: 329 | LW10: 330 | LX10: 331 | LY10: 332 | LZ10: 333 | MA10: 334 | MB10: 335 | MC10: 336 | MD10: 337 | ME10: 338 | MF10: 339 | MG10: 340 | MH10: 341 | MI10: 342 | MJ10: 343 | MK10: 344 | ML10: 345 | MM10: 346 | MN10: 347 | MO10: 348 | MP10: 349 | MQ10: 350 | MR10: 351 | MS10: 352 | MT10: 353 | MU10: 354 | MV10: 355 | MW10: 356 | MX10: 357 | MY10: 358 | MZ10: 359 | NA10: 360 | NB10: 361 | NC10: 362 | ND10: 363 | NE10: 364 | NF10: 365 | NG10: 366 | NH10: 367 | NI10: 368 | NJ10: 369 | NK10: 370 | NL10: 371 | NM10: 372 | NN10: 373 | NO10: 374 | NP10: 375 | NQ10: 376 | NR10: 377 | NS10: 378 | NT10: 379 | NU10: 380 | NV10: 381 | NW10: 382 | NX10: 383 | NY10: 384 | NZ10: 385 | OA10: 386 | OB10: 387 | OC10: 388 | OD10: 389 | OE10: 390 | OF10: 391 | OG10: 392 | OH10: 393 | OI10: 394 | OJ10: 395 | OK10: 396 | OL10: 397 | OM10: 398 | ON10: 399 | OO10: 400 | OP10: 401 | OQ10: 402 | OR10: 403 | OS10: 404 | OT10: 405 | OU10: 406 | OV10: 407 | OW10: 408 | OX10: 409 | OY10: 410 | OZ10: 411 | PA10: 412 | PB10: 413 | PC10: 414 | PD10: 415 | PE10: 416 | PF10: 417 | PG10: 418 | PH10: 419 | PI10: 420 | PJ10: 421 | PK10: 422 | PL10: 423 | PM10: 424 | PN10: 425 | PO10: 426 | PP10: 427 | PQ10: 428 | PR10: 429 | PS10: 430 | PT10: 431 | PU10: 432 | PV10: 433 | PW10: 434 | PX10: 435 | PY10: 436 | PZ10: 437 | QA10: 438 | QB10: 439 | QC10: 440 | QD10: 441 | QE10: 442 | QF10: 443 | QG10: 444 | QH10: 445 | QI10: 446 | QJ10: 447 | QK10: 448 | QL10: 449 | QM10: 450 | QN10: 451 | QO10: 452 | QP10: 453 | QQ10: 454 | QR10: 455 | QS10: 456 | QT10: 457 | QU10: 458 | QV10: 459 | QW10: 460 | QX10: 461 | QY10: 462 | QZ10: 463 | RA10: 464 | RB10: 465 | RC10: 466 | RD10: 467 | RE10: 468 | RF10: 469 | RG10: 470 | RH10: 471 | RI10: 472 | RJ10: 473 | RK10: 474 | RL10: 475 | RM10: 476 | RN10: 477 | RO10: 478 | RP10: 479 | RQ10: 480 | RR10: 481 | RS10: 482 | RT10: 483 | RU10: 484 | RV10: 485 | RW10: 486 | RX10: 487 | RY10: 488 | RZ10: 489 | SA10: 490 | SB10: 491 | SC10: 492 | SD10: 493 | SE10: 494 | SF10: 495 | SG10: 496 | SH10: 497 | SI10: 498 | SJ10: 499 | SK10: 500
D11: Return | E11: =interpolate_look_up(E10,4:4,5:5) -> 0.045 | F11: =interpolate_look_up(F10,4:4,5:5) -> 0.04915748089 | G11: =interpolate_look_up(G10,4:4,5:5) -> 0.05369906505 | H11: =interpolate_look_up(H10,4:4,5:5) -> 0.05866023919 | I11: =interpolate_look_up(I10,4:4,5:5) -> 0.0640797686 | J11: =interpolate_look_up(J10,4:4,5:5) -> 0.07 | K11: =interpolate_look_up(K10,4:4,5:5) -> 0.07 | L11: =interpolate_look_up(L10,4:4,5:5) -> 0.07 | M11: =interpolate_look_up(M10,4:4,5:5) -> 0.07 | N11: =interpolate_look_up(N10,4:4,5:5) -> 0.07 | O11: =interpolate_look_up(O10,4:4,5:5) -> 0.07 | P11: =interpolate_look_up(P10,4:4,5:5) -> 0.07 | Q11: =interpolate_look_up(Q10,4:4,5:5) -> 0.07 | R11: =interpolate_look_up(R10,4:4,5:5) -> 0.07 | S11: =interpolate_look_up(S10,4:4,5:5) -> 0.07 | T11: =interpolate_look_up(T10,4:4,5:5) -> 0.07 | U11: =interpolate_look_up(U10,4:4,5:5) -> 0.07 | V11: =interpolate_look_up(V10,4:4,5:5) -> 0.07 | W11: =interpolate_look_up(W10,4:4,5:5) -> 0.07 | X11: =interpolate_look_up(X10,4:4,5:5) -> 0.07 | Y11: =interpolate_look_up(Y10,4:4,5:5) -> 0.07 | Z11: =interpolate_look_up(Z10,4:4,5:5) -> 0.07 | AA11: =interpolate_look_up(AA10,4:4,5:5) -> 0.07 | AB11: =interpolate_look_up(AB10,4:4,5:5) -> 0.07 | AC11: =interpolate_look_up(AC10,4:4,5:5) -> 0.07 | AD11: =interpolate_look_up(AD10,4:4,5:5) -> 0.07 | AE11: =interpolate_look_up(AE10,4:4,5:5) -> 0.07 | AF11: =interpolate_look_up(AF10,4:4,5:5) -> 0.07 | AG11: =interpolate_look_up(AG10,4:4,5:5) -> 0.07 | AH11: =interpolate_look_up(AH10,4:4,5:5) -> 0.07 | AI11: =interpolate_look_up(AI10,4:4,5:5) -> 0.07 | AJ11: =interpolate_look_up(AJ10,4:4,5:5) -> 0.07 | AK11: =interpolate_look_up(AK10,4:4,5:5) -> 0.07 | AL11: =interpolate_look_up(AL10,4:4,5:5) -> 0.07 | AM11: =interpolate_look_up(AM10,4:4,5:5) -> 0.07 | AN11: =interpolate_look_up(AN10,4:4,5:5) -> 0.07 | AO11: =interpolate_look_up(AO10,4:4,5:5) -> 0.07 | AP11: =interpolate_look_up(AP10,4:4,5:5) -> 0.07 | AQ11: =interpolate_look_up(AQ10,4:4,5:5) -> 0.07 | AR11: =interpolate_look_up(AR10,4:4,5:5) -> 0.07 | AS11: =interpolate_look_up(AS10,4:4,5:5) -> 0.07 | AT11: =interpolate_look_up(AT10,4:4,5:5) -> 0.07 | AU11: =interpolate_look_up(AU10,4:4,5:5) -> 0.07 | AV11: =interpolate_look_up(AV10,4:4,5:5) -> 0.07 | AW11: =interpolate_look_up(AW10,4:4,5:5) -> 0.07 | AX11: =interpolate_look_up(AX10,4:4,5:5) -> 0.07 | AY11: =interpolate_look_up(AY10,4:4,5:5) -> 0.07 | AZ11: =interpolate_look_up(AZ10,4:4,5:5) -> 0.07 | BA11: =interpolate_look_up(BA10,4:4,5:5) -> 0.07 | BB11: =interpolate_look_up(BB10,4:4,5:5) -> 0.07 | BC11: =interpolate_look_up(BC10,4:4,5:5) -> 0.07 | BD11: =interpolate_look_up(BD10,4:4,5:5) -> 0.07 | BE11: =interpolate_look_up(BE10,4:4,5:5) -> 0.07 | BF11: =interpolate_look_up(BF10,4:4,5:5) -> 0.07 | BG11: =interpolate_look_up(BG10,4:4,5:5) -> 0.07 | BH11: =interpolate_look_up(BH10,4:4,5:5) -> 0.07 | BI11: =interpolate_look_up(BI10,4:4,5:5) -> 0.07 | BJ11: =interpolate_look_up(BJ10,4:4,5:5) -> 0.07 | BK11: =interpolate_look_up(BK10,4:4,5:5) -> 0.07 | BL11: =interpolate_look_up(BL10,4:4,5:5) -> 0.07 | BM11: =interpolate_look_up(BM10,4:4,5:5) -> 0.07 | BN11: =interpolate_look_up(BN10,4:4,5:5) -> 0.07 | BO11: =interpolate_look_up(BO10,4:4,5:5) -> 0.07 | BP11: =interpolate_look_up(BP10,4:4,5:5) -> 0.07 | BQ11: =interpolate_look_up(BQ10,4:4,5:5) -> 0.07 | BR11: =interpolate_look_up(BR10,4:4,5:5) -> 0.07 | BS11: =interpolate_look_up(BS10,4:4,5:5) -> 0.07 | BT11: =interpolate_look_up(BT10,4:4,5:5) -> 0.07 | BU11: =interpolate_look_up(BU10,4:4,5:5) -> 0.07 | BV11: =interpolate_look_up(BV10,4:4,5:5) -> 0.07 | BW11: =interpolate_look_up(BW10,4:4,5:5) -> 0.07 | BX11: =interpolate_look_up(BX10,4:4,5:5) -> 0.07 | BY11: =interpolate_look_up(BY10,4:4,5:5) -> 0.07 | BZ11: =interpolate_look_up(BZ10,4:4,5:5) -> 0.07 | CA11: =interpolate_look_up(CA10,4:4,5:5) -> 0.07 | CB11: =interpolate_look_up(CB10,4:4,5:5) -> 0.07 | CC11: =interpolate_look_up(CC10,4:4,5:5) -> 0.07 | CD11: =interpolate_look_up(CD10,4:4,5:5) -> 0.07 | CE11: =interpolate_look_up(CE10,4:4,5:5) -> 0.07 | CF11: =interpolate_look_up(CF10,4:4,5:5) -> 0.07 | CG11: =interpolate_look_up(CG10,4:4,5:5) -> 0.07 | CH11: =interpolate_look_up(CH10,4:4,5:5) -> 0.07 | CI11: =interpolate_look_up(CI10,4:4,5:5) -> 0.07 | CJ11: =interpolate_look_up(CJ10,4:4,5:5) -> 0.07 | CK11: =interpolate_look_up(CK10,4:4,5:5) -> 0.07 | CL11: =interpolate_look_up(CL10,4:4,5:5) -> 0.07 | CM11: =interpolate_look_up(CM10,4:4,5:5) -> 0.07 | CN11: =interpolate_look_up(CN10,4:4,5:5) -> 0.07 | CO11: =interpolate_look_up(CO10,4:4,5:5) -> 0.07 | CP11: =interpolate_look_up(CP10,4:4,5:5) -> 0.07 | CQ11: =interpolate_look_up(CQ10,4:4,5:5) -> 0.07 | CR11: =interpolate_look_up(CR10,4:4,5:5) -> 0.07 | CS11: =interpolate_look_up(CS10,4:4,5:5) -> 0.07 | CT11: =interpolate_look_up(CT10,4:4,5:5) -> 0.07 | CU11: =interpolate_look_up(CU10,4:4,5:5) -> 0.07 | CV11: =interpolate_look_up(CV10,4:4,5:5) -> 0.07 | CW11: =interpolate_look_up(CW10,4:4,5:5) -> 0.07 | CX11: =interpolate_look_up(CX10,4:4,5:5) -> 0.07 | CY11: =interpolate_look_up(CY10,4:4,5:5) -> 0.07 | CZ11: =interpolate_look_up(CZ10,4:4,5:5) -> 0.07 | DA11: =interpolate_look_up(DA10,4:4,5:5) -> 0.07 | DB11: =interpolate_look_up(DB10,4:4,5:5) -> 0.07 | DC11: =interpolate_look_up(DC10,4:4,5:5) -> 0.07 | DD11: =interpolate_look_up(DD10,4:4,5:5) -> 0.07 | DE11: =interpolate_look_up(DE10,4:4,5:5) -> 0.07 | DF11: =interpolate_look_up(DF10,4:4,5:5) -> 0.07 | DG11: =interpolate_look_up(DG10,4:4,5:5) -> 0.07 | DH11: =interpolate_look_up(DH10,4:4,5:5) -> 0.07 | DI11: =interpolate_look_up(DI10,4:4,5:5) -> 0.07 | DJ11: =interpolate_look_up(DJ10,4:4,5:5) -> 0.07 | DK11: =interpolate_look_up(DK10,4:4,5:5) -> 0.07 | DL11: =interpolate_look_up(DL10,4:4,5:5) -> 0.07 | DM11: =interpolate_look_up(DM10,4:4,5:5) -> 0.07 | DN11: =interpolate_look_up(DN10,4:4,5:5) -> 0.07 | DO11: =interpolate_look_up(DO10,4:4,5:5) -> 0.07 | DP11: =interpolate_look_up(DP10,4:4,5:5) -> 0.07 | DQ11: =interpolate_look_up(DQ10,4:4,5:5) -> 0.07 | DR11: =interpolate_look_up(DR10,4:4,5:5) -> 0.07 | DS11: =interpolate_look_up(DS10,4:4,5:5) -> 0.07 | DT11: =interpolate_look_up(DT10,4:4,5:5) -> 0.07 | DU11: =interpolate_look_up(DU10,4:4,5:5) -> 0.07 | DV11: =interpolate_look_up(DV10,4:4,5:5) -> 0.07 | DW11: =interpolate_look_up(DW10,4:4,5:5) -> 0.07 | DX11: =interpolate_look_up(DX10,4:4,5:5) -> 0.07 | DY11: =interpolate_look_up(DY10,4:4,5:5) -> 0.07 | DZ11: =interpolate_look_up(DZ10,4:4,5:5) -> 0.07 | EA11: =interpolate_look_up(EA10,4:4,5:5) -> 0.07 | EB11: =interpolate_look_up(EB10,4:4,5:5) -> 0.07 | EC11: =interpolate_look_up(EC10,4:4,5:5) -> 0.07 | ED11: =interpolate_look_up(ED10,4:4,5:5) -> 0.07 | EE11: =interpolate_look_up(EE10,4:4,5:5) -> 0.07 | EF11: =interpolate_look_up(EF10,4:4,5:5) -> 0.07 | EG11: =interpolate_look_up(EG10,4:4,5:5) -> 0.07 | EH11: =interpolate_look_up(EH10,4:4,5:5) -> 0.07 | EI11: =interpolate_look_up(EI10,4:4,5:5) -> 0.07 | EJ11: =interpolate_look_up(EJ10,4:4,5:5) -> 0.07 | EK11: =interpolate_look_up(EK10,4:4,5:5) -> 0.07 | EL11: =interpolate_look_up(EL10,4:4,5:5) -> 0.07 | EM11: =interpolate_look_up(EM10,4:4,5:5) -> 0.07 | EN11: =interpolate_look_up(EN10,4:4,5:5) -> 0.07 | EO11: =interpolate_look_up(EO10,4:4,5:5) -> 0.07 | EP11: =interpolate_look_up(EP10,4:4,5:5) -> 0.07 | EQ11: =interpolate_look_up(EQ10,4:4,5:5) -> 0.07 | ER11: =interpolate_look_up(ER10,4:4,5:5) -> 0.07 | ES11: =interpolate_look_up(ES10,4:4,5:5) -> 0.07 | ET11: =interpolate_look_up(ET10,4:4,5:5) -> 0.07 | EU11: =interpolate_look_up(EU10,4:4,5:5) -> 0.07 | EV11: =interpolate_look_up(EV10,4:4,5:5) -> 0.07 | EW11: =interpolate_look_up(EW10,4:4,5:5) -> 0.07 | EX11: =interpolate_look_up(EX10,4:4,5:5) -> 0.07 | EY11: =interpolate_look_up(EY10,4:4,5:5) -> 0.07 | EZ11: =interpolate_look_up(EZ10,4:4,5:5) -> 0.07 | FA11: =interpolate_look_up(FA10,4:4,5:5) -> 0.07 | FB11: =interpolate_look_up(FB10,4:4,5:5) -> 0.07 | FC11: =interpolate_look_up(FC10,4:4,5:5) -> 0.07 | FD11: =interpolate_look_up(FD10,4:4,5:5) -> 0.07 | FE11: =interpolate_look_up(FE10,4:4,5:5) -> 0.07 | FF11: =interpolate_look_up(FF10,4:4,5:5) -> 0.07 | FG11: =interpolate_look_up(FG10,4:4,5:5) -> 0.07 | FH11: =interpolate_look_up(FH10,4:4,5:5) -> 0.07 | FI11: =interpolate_look_up(FI10,4:4,5:5) -> 0.07 | FJ11: =interpolate_look_up(FJ10,4:4,5:5) -> 0.07 | FK11: =interpolate_look_up(FK10,4:4,5:5) -> 0.07 | FL11: =interpolate_look_up(FL10,4:4,5:5) -> 0.07 | FM11: =interpolate_look_up(FM10,4:4,5:5) -> 0.07 | FN11: =interpolate_look_up(FN10,4:4,5:5) -> 0.07 | FO11: =interpolate_look_up(FO10,4:4,5:5) -> 0.07 | FP11: =interpolate_look_up(FP10,4:4,5:5) -> 0.07 | FQ11: =interpolate_look_up(FQ10,4:4,5:5) -> 0.07 | FR11: =interpolate_look_up(FR10,4:4,5:5) -> 0.07 | FS11: =interpolate_look_up(FS10,4:4,5:5) -> 0.07 | FT11: =interpolate_look_up(FT10,4:4,5:5) -> 0.07 | FU11: =interpolate_look_up(FU10,4:4,5:5) -> 0.07 | FV11: =interpolate_look_up(FV10,4:4,5:5) -> 0.07 | FW11: =interpolate_look_up(FW10,4:4,5:5) -> 0.07 | FX11: =interpolate_look_up(FX10,4:4,5:5) -> 0.07 | FY11: =interpolate_look_up(FY10,4:4,5:5) -> 0.07 | FZ11: =interpolate_look_up(FZ10,4:4,5:5) -> 0.07 | GA11: =interpolate_look_up(GA10,4:4,5:5) -> 0.07 | GB11: =interpolate_look_up(GB10,4:4,5:5) -> 0.07 | GC11: =interpolate_look_up(GC10,4:4,5:5) -> 0.07 | GD11: =interpolate_look_up(GD10,4:4,5:5) -> 0.07 | GE11: =interpolate_look_up(GE10,4:4,5:5) -> 0.07 | GF11: =interpolate_look_up(GF10,4:4,5:5) -> 0.07 | GG11: =interpolate_look_up(GG10,4:4,5:5) -> 0.07 | GH11: =interpolate_look_up(GH10,4:4,5:5) -> 0.07 | GI11: =interpolate_look_up(GI10,4:4,5:5) -> 0.07 | GJ11: =interpolate_look_up(GJ10,4:4,5:5) -> 0.07 | GK11: =interpolate_look_up(GK10,4:4,5:5) -> 0.07 | GL11: =interpolate_look_up(GL10,4:4,5:5) -> 0.07 | GM11: =interpolate_look_up(GM10,4:4,5:5) -> 0.07 | GN11: =interpolate_look_up(GN10,4:4,5:5) -> 0.07 | GO11: =interpolate_look_up(GO10,4:4,5:5) -> 0.07 | GP11: =interpolate_look_up(GP10,4:4,5:5) -> 0.07 | GQ11: =interpolate_look_up(GQ10,4:4,5:5) -> 0.07 | GR11: =interpolate_look_up(GR10,4:4,5:5) -> 0.07 | GS11: =interpolate_look_up(GS10,4:4,5:5) -> 0.07 | GT11: =interpolate_look_up(GT10,4:4,5:5) -> 0.07 | GU11: =interpolate_look_up(GU10,4:4,5:5) -> 0.07 | GV11: =interpolate_look_up(GV10,4:4,5:5) -> 0.07 | GW11: =interpolate_look_up(GW10,4:4,5:5) -> 0.07 | GX11: =interpolate_look_up(GX10,4:4,5:5) -> 0.07 | GY11: =interpolate_look_up(GY10,4:4,5:5) -> 0.07 | GZ11: =interpolate_look_up(GZ10,4:4,5:5) -> 0.07 | HA11: =interpolate_look_up(HA10,4:4,5:5) -> 0.07 | HB11: =interpolate_look_up(HB10,4:4,5:5) -> 0.07 | HC11: =interpolate_look_up(HC10,4:4,5:5) -> 0.07 | HD11: =interpolate_look_up(HD10,4:4,5:5) -> 0.07 | HE11: =interpolate_look_up(HE10,4:4,5:5) -> 0.07 | HF11: =interpolate_look_up(HF10,4:4,5:5) -> 0.07 | HG11: =interpolate_look_up(HG10,4:4,5:5) -> 0.07 | HH11: =interpolate_look_up(HH10,4:4,5:5) -> 0.07 | HI11: =interpolate_look_up(HI10,4:4,5:5) -> 0.07 | HJ11: =interpolate_look_up(HJ10,4:4,5:5) -> 0.07 | HK11: =interpolate_look_up(HK10,4:4,5:5) -> 0.07 | HL11: =interpolate_look_up(HL10,4:4,5:5) -> 0.07 | HM11: =interpolate_look_up(HM10,4:4,5:5) -> 0.07 | HN11: =interpolate_look_up(HN10,4:4,5:5) -> 0.07 | HO11: =interpolate_look_up(HO10,4:4,5:5) -> 0.07 | HP11: =interpolate_look_up(HP10,4:4,5:5) -> 0.07 | HQ11: =interpolate_look_up(HQ10,4:4,5:5) -> 0.07 | HR11: =interpolate_look_up(HR10,4:4,5:5) -> 0.07 | HS11: =interpolate_look_up(HS10,4:4,5:5) -> 0.07 | HT11: =interpolate_look_up(HT10,4:4,5:5) -> 0.07 | HU11: =interpolate_look_up(HU10,4:4,5:5) -> 0.07 | HV11: =interpolate_look_up(HV10,4:4,5:5) -> 0.07 | HW11: =interpolate_look_up(HW10,4:4,5:5) -> 0.07 | HX11: =interpolate_look_up(HX10,4:4,5:5) -> 0.07 | HY11: =interpolate_look_up(HY10,4:4,5:5) -> 0.07 | HZ11: =interpolate_look_up(HZ10,4:4,5:5) -> 0.07 | IA11: =interpolate_look_up(IA10,4:4,5:5) -> 0.07 | IB11: =interpolate_look_up(IB10,4:4,5:5) -> 0.07 | IC11: =interpolate_look_up(IC10,4:4,5:5) -> 0.07 | ID11: =interpolate_look_up(ID10,4:4,5:5) -> 0.07 | IE11: =interpolate_look_up(IE10,4:4,5:5) -> 0.07 | IF11: =interpolate_look_up(IF10,4:4,5:5) -> 0.07 | IG11: =interpolate_look_up(IG10,4:4,5:5) -> 0.07 | IH11: =interpolate_look_up(IH10,4:4,5:5) -> 0.07 | II11: =interpolate_look_up(II10,4:4,5:5) -> 0.07 | IJ11: =interpolate_look_up(IJ10,4:4,5:5) -> 0.07 | IK11: =interpolate_look_up(IK10,4:4,5:5) -> 0.07 | IL11: =interpolate_look_up(IL10,4:4,5:5) -> 0.07 | IM11: =interpolate_look_up(IM10,4:4,5:5) -> 0.07 | IN11: =interpolate_look_up(IN10,4:4,5:5) -> 0.07 | IO11: =interpolate_look_up(IO10,4:4,5:5) -> 0.07 | IP11: =interpolate_look_up(IP10,4:4,5:5) -> 0.07 | IQ11: =interpolate_look_up(IQ10,4:4,5:5) -> 0.07 | IR11: =interpolate_look_up(IR10,4:4,5:5) -> 0.07 | IS11: =interpolate_look_up(IS10,4:4,5:5) -> 0.07 | IT11: =interpolate_look_up(IT10,4:4,5:5) -> 0.07 | IU11: =interpolate_look_up(IU10,4:4,5:5) -> 0.07 | IV11: =interpolate_look_up(IV10,4:4,5:5) -> 0.07 | IW11: =interpolate_look_up(IW10,4:4,5:5) -> 0.07 | IX11: =interpolate_look_up(IX10,4:4,5:5) -> 0.07 | IY11: =interpolate_look_up(IY10,4:4,5:5) -> 0.07 | IZ11: =interpolate_look_up(IZ10,4:4,5:5) -> 0.07 | JA11: =interpolate_look_up(JA10,4:4,5:5) -> 0.07 | JB11: =interpolate_look_up(JB10,4:4,5:5) -> 0.07 | JC11: =interpolate_look_up(JC10,4:4,5:5) -> 0.07 | JD11: =interpolate_look_up(JD10,4:4,5:5) -> 0.07 | JE11: =interpolate_look_up(JE10,4:4,5:5) -> 0.07 | JF11: =interpolate_look_up(JF10,4:4,5:5) -> 0.07 | JG11: =interpolate_look_up(JG10,4:4,5:5) -> 0.07 | JH11: =interpolate_look_up(JH10,4:4,5:5) -> 0.07 | JI11: =interpolate_look_up(JI10,4:4,5:5) -> 0.07 | JJ11: =interpolate_look_up(JJ10,4:4,5:5) -> 0.07 | JK11: =interpolate_look_up(JK10,4:4,5:5) -> 0.07 | JL11: =interpolate_look_up(JL10,4:4,5:5) -> 0.07 | JM11: =interpolate_look_up(JM10,4:4,5:5) -> 0.07 | JN11: =interpolate_look_up(JN10,4:4,5:5) -> 0.07 | JO11: =interpolate_look_up(JO10,4:4,5:5) -> 0.07 | JP11: =interpolate_look_up(JP10,4:4,5:5) -> 0.07 | JQ11: =interpolate_look_up(JQ10,4:4,5:5) -> 0.07 | JR11: =interpolate_look_up(JR10,4:4,5:5) -> 0.07 | JS11: =interpolate_look_up(JS10,4:4,5:5) -> 0.07 | JT11: =interpolate_look_up(JT10,4:4,5:5) -> 0.07 | JU11: =interpolate_look_up(JU10,4:4,5:5) -> 0.07 | JV11: =interpolate_look_up(JV10,4:4,5:5) -> 0.07 | JW11: =interpolate_look_up(JW10,4:4,5:5) -> 0.07 | JX11: =interpolate_look_up(JX10,4:4,5:5) -> 0.07 | JY11: =interpolate_look_up(JY10,4:4,5:5) -> 0.07 | JZ11: =interpolate_look_up(JZ10,4:4,5:5) -> 0.07 | KA11: =interpolate_look_up(KA10,4:4,5:5) -> 0.07 | KB11: =interpolate_look_up(KB10,4:4,5:5) -> 0.07 | KC11: =interpolate_look_up(KC10,4:4,5:5) -> 0.07 | KD11: =interpolate_look_up(KD10,4:4,5:5) -> 0.07 | KE11: =interpolate_look_up(KE10,4:4,5:5) -> 0.07 | KF11: =interpolate_look_up(KF10,4:4,5:5) -> 0.07 | KG11: =interpolate_look_up(KG10,4:4,5:5) -> 0.07 | KH11: =interpolate_look_up(KH10,4:4,5:5) -> 0.07 | KI11: =interpolate_look_up(KI10,4:4,5:5) -> 0.07 | KJ11: =interpolate_look_up(KJ10,4:4,5:5) -> 0.07 | KK11: =interpolate_look_up(KK10,4:4,5:5) -> 0.07 | KL11: =interpolate_look_up(KL10,4:4,5:5) -> 0.07 | KM11: =interpolate_look_up(KM10,4:4,5:5) -> 0.07 | KN11: =interpolate_look_up(KN10,4:4,5:5) -> 0.07 | KO11: =interpolate_look_up(KO10,4:4,5:5) -> 0.07 | KP11: =interpolate_look_up(KP10,4:4,5:5) -> 0.07 | KQ11: =interpolate_look_up(KQ10,4:4,5:5) -> 0.07 | KR11: =interpolate_look_up(KR10,4:4,5:5) -> 0.07 | KS11: =interpolate_look_up(KS10,4:4,5:5) -> 0.07 | KT11: =interpolate_look_up(KT10,4:4,5:5) -> 0.07 | KU11: =interpolate_look_up(KU10,4:4,5:5) -> 0.07 | KV11: =interpolate_look_up(KV10,4:4,5:5) -> 0.07 | KW11: =interpolate_look_up(KW10,4:4,5:5) -> 0.07 | KX11: =interpolate_look_up(KX10,4:4,5:5) -> 0.07 | KY11: =interpolate_look_up(KY10,4:4,5:5) -> 0.07 | KZ11: =interpolate_look_up(KZ10,4:4,5:5) -> 0.07 | LA11: =interpolate_look_up(LA10,4:4,5:5) -> 0.07 | LB11: =interpolate_look_up(LB10,4:4,5:5) -> 0.07 | LC11: =interpolate_look_up(LC10,4:4,5:5) -> 0.07 | LD11: =interpolate_look_up(LD10,4:4,5:5) -> 0.07 | LE11: =interpolate_look_up(LE10,4:4,5:5) -> 0.07 | LF11: =interpolate_look_up(LF10,4:4,5:5) -> 0.07 | LG11: =interpolate_look_up(LG10,4:4,5:5) -> 0.07 | LH11: =interpolate_look_up(LH10,4:4,5:5) -> 0.07 | LI11: =interpolate_look_up(LI10,4:4,5:5) -> 0.07 | LJ11: =interpolate_look_up(LJ10,4:4,5:5) -> 0.07 | LK11: =interpolate_look_up(LK10,4:4,5:5) -> 0.07 | LL11: =interpolate_look_up(LL10,4:4,5:5) -> 0.07 | LM11: =interpolate_look_up(LM10,4:4,5:5) -> 0.07 | LN11: =interpolate_look_up(LN10,4:4,5:5) -> 0.07 | LO11: =interpolate_look_up(LO10,4:4,5:5) -> 0.07 | LP11: =interpolate_look_up(LP10,4:4,5:5) -> 0.07 | LQ11: =interpolate_look_up(LQ10,4:4,5:5) -> 0.07 | LR11: =interpolate_look_up(LR10,4:4,5:5) -> 0.07 | LS11: =interpolate_look_up(LS10,4:4,5:5) -> 0.07 | LT11: =interpolate_look_up(LT10,4:4,5:5) -> 0.07 | LU11: =interpolate_look_up(LU10,4:4,5:5) -> 0.07 | LV11: =interpolate_look_up(LV10,4:4,5:5) -> 0.07 | LW11: =interpolate_look_up(LW10,4:4,5:5) -> 0.07 | LX11: =interpolate_look_up(LX10,4:4,5:5) -> 0.07 | LY11: =interpolate_look_up(LY10,4:4,5:5) -> 0.07 | LZ11: =interpolate_look_up(LZ10,4:4,5:5) -> 0.07 | MA11: =interpolate_look_up(MA10,4:4,5:5) -> 0.07 | MB11: =interpolate_look_up(MB10,4:4,5:5) -> 0.07 | MC11: =interpolate_look_up(MC10,4:4,5:5) -> 0.07 | MD11: =interpolate_look_up(MD10,4:4,5:5) -> 0.07 | ME11: =interpolate_look_up(ME10,4:4,5:5) -> 0.07 | MF11: =interpolate_look_up(MF10,4:4,5:5) -> 0.07 | MG11: =interpolate_look_up(MG10,4:4,5:5) -> 0.07 | MH11: =interpolate_look_up(MH10,4:4,5:5) -> 0.07 | MI11: =interpolate_look_up(MI10,4:4,5:5) -> 0.07 | MJ11: =interpolate_look_up(MJ10,4:4,5:5) -> 0.07 | MK11: =interpolate_look_up(MK10,4:4,5:5) -> 0.07 | ML11: =interpolate_look_up(ML10,4:4,5:5) -> 0.07 | MM11: =interpolate_look_up(MM10,4:4,5:5) -> 0.07 | MN11: =interpolate_look_up(MN10,4:4,5:5) -> 0.07 | MO11: =interpolate_look_up(MO10,4:4,5:5) -> 0.07 | MP11: =interpolate_look_up(MP10,4:4,5:5) -> 0.07 | MQ11: =interpolate_look_up(MQ10,4:4,5:5) -> 0.07 | MR11: =interpolate_look_up(MR10,4:4,5:5) -> 0.07 | MS11: =interpolate_look_up(MS10,4:4,5:5) -> 0.07 | MT11: =interpolate_look_up(MT10,4:4,5:5) -> 0.07 | MU11: =interpolate_look_up(MU10,4:4,5:5) -> 0.07 | MV11: =interpolate_look_up(MV10,4:4,5:5) -> 0.07 | MW11: =interpolate_look_up(MW10,4:4,5:5) -> 0.07 | MX11: =interpolate_look_up(MX10,4:4,5:5) -> 0.07 | MY11: =interpolate_look_up(MY10,4:4,5:5) -> 0.07 | MZ11: =interpolate_look_up(MZ10,4:4,5:5) -> 0.07 | NA11: =interpolate_look_up(NA10,4:4,5:5) -> 0.07 | NB11: =interpolate_look_up(NB10,4:4,5:5) -> 0.07 | NC11: =interpolate_look_up(NC10,4:4,5:5) -> 0.07 | ND11: =interpolate_look_up(ND10,4:4,5:5) -> 0.07 | NE11: =interpolate_look_up(NE10,4:4,5:5) -> 0.07 | NF11: =interpolate_look_up(NF10,4:4,5:5) -> 0.07 | NG11: =interpolate_look_up(NG10,4:4,5:5) -> 0.07 | NH11: =interpolate_look_up(NH10,4:4,5:5) -> 0.07 | NI11: =interpolate_look_up(NI10,4:4,5:5) -> 0.07 | NJ11: =interpolate_look_up(NJ10,4:4,5:5) -> 0.07 | NK11: =interpolate_look_up(NK10,4:4,5:5) -> 0.07 | NL11: =interpolate_look_up(NL10,4:4,5:5) -> 0.07 | NM11: =interpolate_look_up(NM10,4:4,5:5) -> 0.07 | NN11: =interpolate_look_up(NN10,4:4,5:5) -> 0.07 | NO11: =interpolate_look_up(NO10,4:4,5:5) -> 0.07 | NP11: =interpolate_look_up(NP10,4:4,5:5) -> 0.07 | NQ11: =interpolate_look_up(NQ10,4:4,5:5) -> 0.07 | NR11: =interpolate_look_up(NR10,4:4,5:5) -> 0.07 | NS11: =interpolate_look_up(NS10,4:4,5:5) -> 0.07 | NT11: =interpolate_look_up(NT10,4:4,5:5) -> 0.07 | NU11: =interpolate_look_up(NU10,4:4,5:5) -> 0.07 | NV11: =interpolate_look_up(NV10,4:4,5:5) -> 0.07 | NW11: =interpolate_look_up(NW10,4:4,5:5) -> 0.07 | NX11: =interpolate_look_up(NX10,4:4,5:5) -> 0.07 | NY11: =interpolate_look_up(NY10,4:4,5:5) -> 0.07 | NZ11: =interpolate_look_up(NZ10,4:4,5:5) -> 0.07 | OA11: =interpolate_look_up(OA10,4:4,5:5) -> 0.07 | OB11: =interpolate_look_up(OB10,4:4,5:5) -> 0.07 | OC11: =interpolate_look_up(OC10,4:4,5:5) -> 0.07 | OD11: =interpolate_look_up(OD10,4:4,5:5) -> 0.07 | OE11: =interpolate_look_up(OE10,4:4,5:5) -> 0.07 | OF11: =interpolate_look_up(OF10,4:4,5:5) -> 0.07 | OG11: =interpolate_look_up(OG10,4:4,5:5) -> 0.07 | OH11: =interpolate_look_up(OH10,4:4,5:5) -> 0.07 | OI11: =interpolate_look_up(OI10,4:4,5:5) -> 0.07 | OJ11: =interpolate_look_up(OJ10,4:4,5:5) -> 0.07 | OK11: =interpolate_look_up(OK10,4:4,5:5) -> 0.07 | OL11: =interpolate_look_up(OL10,4:4,5:5) -> 0.07 | OM11: =interpolate_look_up(OM10,4:4,5:5) -> 0.07 | ON11: =interpolate_look_up(ON10,4:4,5:5) -> 0.07 | OO11: =interpolate_look_up(OO10,4:4,5:5) -> 0.07 | OP11: =interpolate_look_up(OP10,4:4,5:5) -> 0.07 | OQ11: =interpolate_look_up(OQ10,4:4,5:5) -> 0.07 | OR11: =interpolate_look_up(OR10,4:4,5:5) -> 0.07 | OS11: =interpolate_look_up(OS10,4:4,5:5) -> 0.07 | OT11: =interpolate_look_up(OT10,4:4,5:5) -> 0.07 | OU11: =interpolate_look_up(OU10,4:4,5:5) -> 0.07 | OV11: =interpolate_look_up(OV10,4:4,5:5) -> 0.07 | OW11: =interpolate_look_up(OW10,4:4,5:5) -> 0.07 | OX11: =interpolate_look_up(OX10,4:4,5:5) -> 0.07 | OY11: =interpolate_look_up(OY10,4:4,5:5) -> 0.07 | OZ11: =interpolate_look_up(OZ10,4:4,5:5) -> 0.07 | PA11: =interpolate_look_up(PA10,4:4,5:5) -> 0.07 | PB11: =interpolate_look_up(PB10,4:4,5:5) -> 0.07 | PC11: =interpolate_look_up(PC10,4:4,5:5) -> 0.07 | PD11: =interpolate_look_up(PD10,4:4,5:5) -> 0.07 | PE11: =interpolate_look_up(PE10,4:4,5:5) -> 0.07 | PF11: =interpolate_look_up(PF10,4:4,5:5) -> 0.07 | PG11: =interpolate_look_up(PG10,4:4,5:5) -> 0.07 | PH11: =interpolate_look_up(PH10,4:4,5:5) -> 0.07 | PI11: =interpolate_look_up(PI10,4:4,5:5) -> 0.07 | PJ11: =interpolate_look_up(PJ10,4:4,5:5) -> 0.07 | PK11: =interpolate_look_up(PK10,4:4,5:5) -> 0.07 | PL11: =interpolate_look_up(PL10,4:4,5:5) -> 0.07 | PM11: =interpolate_look_up(PM10,4:4,5:5) -> 0.07 | PN11: =interpolate_look_up(PN10,4:4,5:5) -> 0.07 | PO11: =interpolate_look_up(PO10,4:4,5:5) -> 0.07 | PP11: =interpolate_look_up(PP10,4:4,5:5) -> 0.07 | PQ11: =interpolate_look_up(PQ10,4:4,5:5) -> 0.07 | PR11: =interpolate_look_up(PR10,4:4,5:5) -> 0.07 | PS11: =interpolate_look_up(PS10,4:4,5:5) -> 0.07 | PT11: =interpolate_look_up(PT10,4:4,5:5) -> 0.07 | PU11: =interpolate_look_up(PU10,4:4,5:5) -> 0.07 | PV11: =interpolate_look_up(PV10,4:4,5:5) -> 0.07 | PW11: =interpolate_look_up(PW10,4:4,5:5) -> 0.07 | PX11: =interpolate_look_up(PX10,4:4,5:5) -> 0.07 | PY11: =interpolate_look_up(PY10,4:4,5:5) -> 0.07 | PZ11: =interpolate_look_up(PZ10,4:4,5:5) -> 0.07 | QA11: =interpolate_look_up(QA10,4:4,5:5) -> 0.07 | QB11: =interpolate_look_up(QB10,4:4,5:5) -> 0.07 | QC11: =interpolate_look_up(QC10,4:4,5:5) -> 0.07 | QD11: =interpolate_look_up(QD10,4:4,5:5) -> 0.07 | QE11: =interpolate_look_up(QE10,4:4,5:5) -> 0.07 | QF11: =interpolate_look_up(QF10,4:4,5:5) -> 0.07 | QG11: =interpolate_look_up(QG10,4:4,5:5) -> 0.07 | QH11: =interpolate_look_up(QH10,4:4,5:5) -> 0.07 | QI11: =interpolate_look_up(QI10,4:4,5:5) -> 0.07 | QJ11: =interpolate_look_up(QJ10,4:4,5:5) -> 0.07 | QK11: =interpolate_look_up(QK10,4:4,5:5) -> 0.07 | QL11: =interpolate_look_up(QL10,4:4,5:5) -> 0.07 | QM11: =interpolate_look_up(QM10,4:4,5:5) -> 0.07 | QN11: =interpolate_look_up(QN10,4:4,5:5) -> 0.07 | QO11: =interpolate_look_up(QO10,4:4,5:5) -> 0.07 | QP11: =interpolate_look_up(QP10,4:4,5:5) -> 0.07 | QQ11: =interpolate_look_up(QQ10,4:4,5:5) -> 0.07 | QR11: =interpolate_look_up(QR10,4:4,5:5) -> 0.07 | QS11: =interpolate_look_up(QS10,4:4,5:5) -> 0.07 | QT11: =interpolate_look_up(QT10,4:4,5:5) -> 0.07 | QU11: =interpolate_look_up(QU10,4:4,5:5) -> 0.07 | QV11: =interpolate_look_up(QV10,4:4,5:5) -> 0.07 | QW11: =interpolate_look_up(QW10,4:4,5:5) -> 0.07 | QX11: =interpolate_look_up(QX10,4:4,5:5) -> 0.07 | QY11: =interpolate_look_up(QY10,4:4,5:5) -> 0.07 | QZ11: =interpolate_look_up(QZ10,4:4,5:5) -> 0.07 | RA11: =interpolate_look_up(RA10,4:4,5:5) -> 0.07 | RB11: =interpolate_look_up(RB10,4:4,5:5) -> 0.07 | RC11: =interpolate_look_up(RC10,4:4,5:5) -> 0.07 | RD11: =interpolate_look_up(RD10,4:4,5:5) -> 0.07 | RE11: =interpolate_look_up(RE10,4:4,5:5) -> 0.07 | RF11: =interpolate_look_up(RF10,4:4,5:5) -> 0.07 | RG11: =interpolate_look_up(RG10,4:4,5:5) -> 0.07 | RH11: =interpolate_look_up(RH10,4:4,5:5) -> 0.07 | RI11: =interpolate_look_up(RI10,4:4,5:5) -> 0.07 | RJ11: =interpolate_look_up(RJ10,4:4,5:5) -> 0.07 | RK11: =interpolate_look_up(RK10,4:4,5:5) -> 0.07 | RL11: =interpolate_look_up(RL10,4:4,5:5) -> 0.07 | RM11: =interpolate_look_up(RM10,4:4,5:5) -> 0.07 | RN11: =interpolate_look_up(RN10,4:4,5:5) -> 0.07 | RO11: =interpolate_look_up(RO10,4:4,5:5) -> 0.07 | RP11: =interpolate_look_up(RP10,4:4,5:5) -> 0.07 | RQ11: =interpolate_look_up(RQ10,4:4,5:5) -> 0.07 | RR11: =interpolate_look_up(RR10,4:4,5:5) -> 0.07 | RS11: =interpolate_look_up(RS10,4:4,5:5) -> 0.07 | RT11: =interpolate_look_up(RT10,4:4,5:5) -> 0.07 | RU11: =interpolate_look_up(RU10,4:4,5:5) -> 0.07 | RV11: =interpolate_look_up(RV10,4:4,5:5) -> 0.07 | RW11: =interpolate_look_up(RW10,4:4,5:5) -> 0.07 | RX11: =interpolate_look_up(RX10,4:4,5:5) -> 0.07 | RY11: =interpolate_look_up(RY10,4:4,5:5) -> 0.07 | RZ11: =interpolate_look_up(RZ10,4:4,5:5) -> 0.07 | SA11: =interpolate_look_up(SA10,4:4,5:5) -> 0.07 | SB11: =interpolate_look_up(SB10,4:4,5:5) -> 0.07 | SC11: =interpolate_look_up(SC10,4:4,5:5) -> 0.07 | SD11: =interpolate_look_up(SD10,4:4,5:5) -> 0.07 | SE11: =interpolate_look_up(SE10,4:4,5:5) -> 0.07 | SF11: =interpolate_look_up(SF10,4:4,5:5) -> 0.07 | SG11: =interpolate_look_up(SG10,4:4,5:5) -> 0.07 | SH11: =interpolate_look_up(SH10,4:4,5:5) -> 0.07 | SI11: =interpolate_look_up(SI10,4:4,5:5) -> 0.07 | SJ11: =interpolate_look_up(SJ10,4:4,5:5) -> 0.07 | SK11: =interpolate_look_up(SK10,4:4,5:5) -> 0.07
D12: Payout | E12: =(1-$E$6/E11) -> 0.5555555556 | F12: =(1-$E$6/F11) -> 0.5931443264 | G12: 0.6275540369 | H12: 0.6590535553 | I12: 0.6878890102 | J12: 0.7142857143 | K12: 0.7142857143 | L12: 0.7142857143 | M12: 0.7142857143 | N12: 0.7142857143 | O12: 0.7142857143 | P12: 0.7142857143 | Q12: 0.7142857143 | R12: 0.7142857143 | S12: 0.7142857143 | T12: 0.7142857143 | U12: 0.7142857143 | V12: 0.7142857143 | W12: 0.7142857143 | X12: 0.7142857143 | Y12: 0.7142857143 | Z12: 0.7142857143 | AA12: 0.7142857143 | AB12: 0.7142857143 | AC12: 0.7142857143 | AD12: 0.7142857143 | AE12: 0.7142857143 | AF12: 0.7142857143 | AG12: 0.7142857143 | AH12: 0.7142857143 | AI12: 0.7142857143 | AJ12: 0.7142857143 | AK12: 0.7142857143 | AL12: 0.7142857143 | AM12: 0.7142857143 | AN12: 0.7142857143 | AO12: 0.7142857143 | AP12: 0.7142857143 | AQ12: 0.7142857143 | AR12: 0.7142857143 | AS12: 0.7142857143 | AT12: 0.7142857143 | AU12: 0.7142857143 | AV12: 0.7142857143 | AW12: 0.7142857143 | AX12: 0.7142857143 | AY12: 0.7142857143 | AZ12: 0.7142857143 | BA12: 0.7142857143 | BB12: 0.7142857143 | BC12: 0.7142857143 | BD12: 0.7142857143 | BE12: 0.7142857143 | BF12: 0.7142857143 | BG12: 0.7142857143 | BH12: 0.7142857143 | BI12: 0.7142857143 | BJ12: 0.7142857143 | BK12: 0.7142857143 | BL12: 0.7142857143 | BM12: 0.7142857143 | BN12: 0.7142857143 | BO12: 0.7142857143 | BP12: 0.7142857143 | BQ12: 0.7142857143 | BR12: =(1-$E$6/BR11) -> 0.7142857143 | BS12: 0.7142857143 | BT12: 0.7142857143 | BU12: 0.7142857143 | BV12: 0.7142857143 | BW12: 0.7142857143 | BX12: 0.7142857143 | BY12: 0.7142857143 | BZ12: 0.7142857143 | CA12: 0.7142857143 | CB12: 0.7142857143 | CC12: 0.7142857143 | CD12: 0.7142857143 | CE12: 0.7142857143 | CF12: 0.7142857143 | CG12: 0.7142857143 | CH12: 0.7142857143 | CI12: 0.7142857143 | CJ12: 0.7142857143 | CK12: 0.7142857143 | CL12: 0.7142857143 | CM12: 0.7142857143 | CN12: 0.7142857143 | CO12: 0.7142857143 | CP12: 0.7142857143 | CQ12: 0.7142857143 | CR12: 0.7142857143 | CS12: 0.7142857143 | CT12: 0.7142857143 | CU12: 0.7142857143 | CV12: 0.7142857143 | CW12: 0.7142857143 | CX12: 0.7142857143 | CY12: 0.7142857143 | CZ12: 0.7142857143 | DA12: 0.7142857143 | DB12: 0.7142857143 | DC12: 0.7142857143 | DD12: 0.7142857143 | DE12: 0.7142857143 | DF12: 0.7142857143 | DG12: 0.7142857143 | DH12: 0.7142857143 | DI12: 0.7142857143 | DJ12: 0.7142857143 | DK12: 0.7142857143 | DL12: 0.7142857143 | DM12: 0.7142857143 | DN12: 0.7142857143 | DO12: 0.7142857143 | DP12: 0.7142857143 | DQ12: 0.7142857143 | DR12: 0.7142857143 | DS12: 0.7142857143 | DT12: 0.7142857143 | DU12: 0.7142857143 | DV12: 0.7142857143 | DW12: 0.7142857143 | DX12: 0.7142857143 | DY12: 0.7142857143 | DZ12: 0.7142857143 | EA12: 0.7142857143 | EB12: 0.7142857143 | EC12: 0.7142857143 | ED12: =(1-$E$6/ED11) -> 0.7142857143 | EE12: 0.7142857143 | EF12: 0.7142857143 | EG12: 0.7142857143 | EH12: 0.7142857143 | EI12: 0.7142857143 | EJ12: 0.7142857143 | EK12: 0.7142857143 | EL12: 0.7142857143 | EM12: 0.7142857143 | EN12: 0.7142857143 | EO12: 0.7142857143 | EP12: 0.7142857143 | EQ12: 0.7142857143 | ER12: 0.7142857143 | ES12: 0.7142857143 | ET12: 0.7142857143 | EU12: 0.7142857143 | EV12: 0.7142857143 | EW12: 0.7142857143 | EX12: 0.7142857143 | EY12: 0.7142857143 | EZ12: 0.7142857143 | FA12: 0.7142857143 | FB12: 0.7142857143 | FC12: 0.7142857143 | FD12: 0.7142857143 | FE12: 0.7142857143 | FF12: 0.7142857143 | FG12: 0.7142857143 | FH12: 0.7142857143 | FI12: 0.7142857143 | FJ12: 0.7142857143 | FK12: 0.7142857143 | FL12: 0.7142857143 | FM12: 0.7142857143 | FN12: 0.7142857143 | FO12: 0.7142857143 | FP12: 0.7142857143 | FQ12: 0.7142857143 | FR12: 0.7142857143 | FS12: 0.7142857143 | FT12: 0.7142857143 | FU12: 0.7142857143 | FV12: 0.7142857143 | FW12: 0.7142857143 | FX12: 0.7142857143 | FY12: 0.7142857143 | FZ12: 0.7142857143 | GA12: 0.7142857143 | GB12: 0.7142857143 | GC12: 0.7142857143 | GD12: 0.7142857143 | GE12: 0.7142857143 | GF12: 0.7142857143 | GG12: 0.7142857143 | GH12: 0.7142857143 | GI12: 0.7142857143 | GJ12: 0.7142857143 | GK12: 0.7142857143 | GL12: 0.7142857143 | GM12: 0.7142857143 | GN12: 0.7142857143 | GO12: 0.7142857143 | GP12: =(1-$E$6/GP11) -> 0.7142857143 | GQ12: 0.7142857143 | GR12: 0.7142857143 | GS12: 0.7142857143 | GT12: 0.7142857143 | GU12: 0.7142857143 | GV12: 0.7142857143 | GW12: 0.7142857143 | GX12: 0.7142857143 | GY12: 0.7142857143 | GZ12: 0.7142857143 | HA12: 0.7142857143 | HB12: 0.7142857143 | HC12: 0.7142857143 | HD12: 0.7142857143 | HE12: 0.7142857143 | HF12: 0.7142857143 | HG12: 0.7142857143 | HH12: 0.7142857143 | HI12: 0.7142857143 | HJ12: 0.7142857143 | HK12: 0.7142857143 | HL12: 0.7142857143 | HM12: 0.7142857143 | HN12: 0.7142857143 | HO12: 0.7142857143 | HP12: 0.7142857143 | HQ12: 0.7142857143 | HR12: 0.7142857143 | HS12: 0.7142857143 | HT12: 0.7142857143 | HU12: 0.7142857143 | HV12: 0.7142857143 | HW12: 0.7142857143 | HX12: 0.7142857143 | HY12: 0.7142857143 | HZ12: 0.7142857143 | IA12: 0.7142857143 | IB12: 0.7142857143 | IC12: 0.7142857143 | ID12: 0.7142857143 | IE12: 0.7142857143 | IF12: 0.7142857143 | IG12: 0.7142857143 | IH12: 0.7142857143 | II12: 0.7142857143 | IJ12: 0.7142857143 | IK12: 0.7142857143 | IL12: 0.7142857143 | IM12: 0.7142857143 | IN12: 0.7142857143 | IO12: 0.7142857143 | IP12: 0.7142857143 | IQ12: 0.7142857143 | IR12: 0.7142857143 | IS12: 0.7142857143 | IT12: 0.7142857143 | IU12: 0.7142857143 | IV12: 0.7142857143 | IW12: 0.7142857143 | IX12: 0.7142857143 | IY12: 0.7142857143 | IZ12: 0.7142857143 | JA12: 0.7142857143 | JB12: =(1-$E$6/JB11) -> 0.7142857143 | JC12: 0.7142857143 | JD12: 0.7142857143 | JE12: 0.7142857143 | JF12: 0.7142857143 | JG12: 0.7142857143 | JH12: 0.7142857143 | JI12: 0.7142857143 | JJ12: 0.7142857143 | JK12: 0.7142857143 | JL12: 0.7142857143 | JM12: 0.7142857143 | JN12: 0.7142857143 | JO12: 0.7142857143 | JP12: 0.7142857143 | JQ12: 0.7142857143 | JR12: 0.7142857143 | JS12: 0.7142857143 | JT12: 0.7142857143 | JU12: 0.7142857143 | JV12: 0.7142857143 | JW12: 0.7142857143 | JX12: 0.7142857143 | JY12: 0.7142857143 | JZ12: 0.7142857143 | KA12: 0.7142857143 | KB12: 0.7142857143 | KC12: 0.7142857143 | KD12: 0.7142857143 | KE12: 0.7142857143 | KF12: 0.7142857143 | KG12: 0.7142857143 | KH12: 0.7142857143 | KI12: 0.7142857143 | KJ12: 0.7142857143 | KK12: 0.7142857143 | KL12: 0.7142857143 | KM12: 0.7142857143 | KN12: 0.7142857143 | KO12: 0.7142857143 | KP12: 0.7142857143 | KQ12: 0.7142857143 | KR12: 0.7142857143 | KS12: 0.7142857143 | KT12: =(1-$E$6/KT11) -> 0.7142857143 | KU12: =(1-$E$6/KU11) -> 0.7142857143 | KV12: =(1-$E$6/KV11) -> 0.7142857143 | KW12: =(1-$E$6/KW11) -> 0.7142857143 | KX12: =(1-$E$6/KX11) -> 0.7142857143 | KY12: =(1-$E$6/KY11) -> 0.7142857143 | KZ12: =(1-$E$6/KZ11) -> 0.7142857143 | LA12: =(1-$E$6/LA11) -> 0.7142857143 | LB12: =(1-$E$6/LB11) -> 0.7142857143 | LC12: =(1-$E$6/LC11) -> 0.7142857143 | LD12: =(1-$E$6/LD11) -> 0.7142857143 | LE12: =(1-$E$6/LE11) -> 0.7142857143 | LF12: =(1-$E$6/LF11) -> 0.7142857143 | LG12: =(1-$E$6/LG11) -> 0.7142857143 | LH12: =(1-$E$6/LH11) -> 0.7142857143 | LI12: =(1-$E$6/LI11) -> 0.7142857143 | LJ12: =(1-$E$6/LJ11) -> 0.7142857143 | LK12: =(1-$E$6/LK11) -> 0.7142857143 | LL12: =(1-$E$6/LL11) -> 0.7142857143 | LM12: =(1-$E$6/LM11) -> 0.7142857143 | LN12: =(1-$E$6/LN11) -> 0.7142857143 | LO12: =(1-$E$6/LO11) -> 0.7142857143 | LP12: =(1-$E$6/LP11) -> 0.7142857143 | LQ12: =(1-$E$6/LQ11) -> 0.7142857143 | LR12: =(1-$E$6/LR11) -> 0.7142857143 | LS12: =(1-$E$6/LS11) -> 0.7142857143 | LT12: =(1-$E$6/LT11) -> 0.7142857143 | LU12: =(1-$E$6/LU11) -> 0.7142857143 | LV12: =(1-$E$6/LV11) -> 0.7142857143 | LW12: =(1-$E$6/LW11) -> 0.7142857143 | LX12: =(1-$E$6/LX11) -> 0.7142857143 | LY12: =(1-$E$6/LY11) -> 0.7142857143 | LZ12: =(1-$E$6/LZ11) -> 0.7142857143 | MA12: =(1-$E$6/MA11) -> 0.7142857143 | MB12: =(1-$E$6/MB11) -> 0.7142857143 | MC12: =(1-$E$6/MC11) -> 0.7142857143 | MD12: =(1-$E$6/MD11) -> 0.7142857143 | ME12: =(1-$E$6/ME11) -> 0.7142857143 | MF12: =(1-$E$6/MF11) -> 0.7142857143 | MG12: =(1-$E$6/MG11) -> 0.7142857143 | MH12: =(1-$E$6/MH11) -> 0.7142857143 | MI12: =(1-$E$6/MI11) -> 0.7142857143 | MJ12: =(1-$E$6/MJ11) -> 0.7142857143 | MK12: =(1-$E$6/MK11) -> 0.7142857143 | ML12: =(1-$E$6/ML11) -> 0.7142857143 | MM12: =(1-$E$6/MM11) -> 0.7142857143 | MN12: =(1-$E$6/MN11) -> 0.7142857143 | MO12: =(1-$E$6/MO11) -> 0.7142857143 | MP12: =(1-$E$6/MP11) -> 0.7142857143 | MQ12: =(1-$E$6/MQ11) -> 0.7142857143 | MR12: =(1-$E$6/MR11) -> 0.7142857143 | MS12: =(1-$E$6/MS11) -> 0.7142857143 | MT12: =(1-$E$6/MT11) -> 0.7142857143 | MU12: =(1-$E$6/MU11) -> 0.7142857143 | MV12: =(1-$E$6/MV11) -> 0.7142857143 | MW12: =(1-$E$6/MW11) -> 0.7142857143 | MX12: =(1-$E$6/MX11) -> 0.7142857143 | MY12: =(1-$E$6/MY11) -> 0.7142857143 | MZ12: =(1-$E$6/MZ11) -> 0.7142857143 | NA12: =(1-$E$6/NA11) -> 0.7142857143 | NB12: =(1-$E$6/NB11) -> 0.7142857143 | NC12: =(1-$E$6/NC11) -> 0.7142857143 | ND12: =(1-$E$6/ND11) -> 0.7142857143 | NE12: =(1-$E$6/NE11) -> 0.7142857143 | NF12: =(1-$E$6/NF11) -> 0.7142857143 | NG12: =(1-$E$6/NG11) -> 0.7142857143 | NH12: =(1-$E$6/NH11) -> 0.7142857143 | NI12: =(1-$E$6/NI11) -> 0.7142857143 | NJ12: =(1-$E$6/NJ11) -> 0.7142857143 | NK12: =(1-$E$6/NK11) -> 0.7142857143 | NL12: =(1-$E$6/NL11) -> 0.7142857143 | NM12: =(1-$E$6/NM11) -> 0.7142857143 | NN12: =(1-$E$6/NN11) -> 0.7142857143 | NO12: =(1-$E$6/NO11) -> 0.7142857143 | NP12: =(1-$E$6/NP11) -> 0.7142857143 | NQ12: =(1-$E$6/NQ11) -> 0.7142857143 | NR12: =(1-$E$6/NR11) -> 0.7142857143 | NS12: =(1-$E$6/NS11) -> 0.7142857143 | NT12: =(1-$E$6/NT11) -> 0.7142857143 | NU12: =(1-$E$6/NU11) -> 0.7142857143 | NV12: =(1-$E$6/NV11) -> 0.7142857143 | NW12: =(1-$E$6/NW11) -> 0.7142857143 | NX12: =(1-$E$6/NX11) -> 0.7142857143 | NY12: =(1-$E$6/NY11) -> 0.7142857143 | NZ12: =(1-$E$6/NZ11) -> 0.7142857143 | OA12: =(1-$E$6/OA11) -> 0.7142857143 | OB12: =(1-$E$6/OB11) -> 0.7142857143 | OC12: =(1-$E$6/OC11) -> 0.7142857143 | OD12: =(1-$E$6/OD11) -> 0.7142857143 | OE12: =(1-$E$6/OE11) -> 0.7142857143 | OF12: =(1-$E$6/OF11) -> 0.7142857143 | OG12: =(1-$E$6/OG11) -> 0.7142857143 | OH12: =(1-$E$6/OH11) -> 0.7142857143 | OI12: =(1-$E$6/OI11) -> 0.7142857143 | OJ12: =(1-$E$6/OJ11) -> 0.7142857143 | OK12: =(1-$E$6/OK11) -> 0.7142857143 | OL12: =(1-$E$6/OL11) -> 0.7142857143 | OM12: =(1-$E$6/OM11) -> 0.7142857143 | ON12: =(1-$E$6/ON11) -> 0.7142857143 | OO12: =(1-$E$6/OO11) -> 0.7142857143 | OP12: =(1-$E$6/OP11) -> 0.7142857143 | OQ12: =(1-$E$6/OQ11) -> 0.7142857143 | OR12: =(1-$E$6/OR11) -> 0.7142857143 | OS12: =(1-$E$6/OS11) -> 0.7142857143 | OT12: =(1-$E$6/OT11) -> 0.7142857143 | OU12: =(1-$E$6/OU11) -> 0.7142857143 | OV12: =(1-$E$6/OV11) -> 0.7142857143 | OW12: =(1-$E$6/OW11) -> 0.7142857143 | OX12: =(1-$E$6/OX11) -> 0.7142857143 | OY12: =(1-$E$6/OY11) -> 0.7142857143 | OZ12: =(1-$E$6/OZ11) -> 0.7142857143 | PA12: =(1-$E$6/PA11) -> 0.7142857143 | PB12: =(1-$E$6/PB11) -> 0.7142857143 | PC12: =(1-$E$6/PC11) -> 0.7142857143 | PD12: =(1-$E$6/PD11) -> 0.7142857143 | PE12: =(1-$E$6/PE11) -> 0.7142857143 | PF12: =(1-$E$6/PF11) -> 0.7142857143 | PG12: =(1-$E$6/PG11) -> 0.7142857143 | PH12: =(1-$E$6/PH11) -> 0.7142857143 | PI12: =(1-$E$6/PI11) -> 0.7142857143 | PJ12: =(1-$E$6/PJ11) -> 0.7142857143 | PK12: =(1-$E$6/PK11) -> 0.7142857143 | PL12: =(1-$E$6/PL11) -> 0.7142857143 | PM12: =(1-$E$6/PM11) -> 0.7142857143 | PN12: =(1-$E$6/PN11) -> 0.7142857143 | PO12: =(1-$E$6/PO11) -> 0.7142857143 | PP12: =(1-$E$6/PP11) -> 0.7142857143 | PQ12: =(1-$E$6/PQ11) -> 0.7142857143 | PR12: =(1-$E$6/PR11) -> 0.7142857143 | PS12: =(1-$E$6/PS11) -> 0.7142857143 | PT12: =(1-$E$6/PT11) -> 0.7142857143 | PU12: =(1-$E$6/PU11) -> 0.7142857143 | PV12: =(1-$E$6/PV11) -> 0.7142857143 | PW12: =(1-$E$6/PW11) -> 0.7142857143 | PX12: =(1-$E$6/PX11) -> 0.7142857143 | PY12: =(1-$E$6/PY11) -> 0.7142857143 | PZ12: =(1-$E$6/PZ11) -> 0.7142857143 | QA12: =(1-$E$6/QA11) -> 0.7142857143 | QB12: =(1-$E$6/QB11) -> 0.7142857143 | QC12: =(1-$E$6/QC11) -> 0.7142857143 | QD12: =(1-$E$6/QD11) -> 0.7142857143 | QE12: =(1-$E$6/QE11) -> 0.7142857143 | QF12: =(1-$E$6/QF11) -> 0.7142857143 | QG12: =(1-$E$6/QG11) -> 0.7142857143 | QH12: =(1-$E$6/QH11) -> 0.7142857143 | QI12: =(1-$E$6/QI11) -> 0.7142857143 | QJ12: =(1-$E$6/QJ11) -> 0.7142857143 | QK12: =(1-$E$6/QK11) -> 0.7142857143 | QL12: =(1-$E$6/QL11) -> 0.7142857143 | QM12: =(1-$E$6/QM11) -> 0.7142857143 | QN12: =(1-$E$6/QN11) -> 0.7142857143 | QO12: =(1-$E$6/QO11) -> 0.7142857143 | QP12: =(1-$E$6/QP11) -> 0.7142857143 | QQ12: =(1-$E$6/QQ11) -> 0.7142857143 | QR12: =(1-$E$6/QR11) -> 0.7142857143 | QS12: =(1-$E$6/QS11) -> 0.7142857143 | QT12: =(1-$E$6/QT11) -> 0.7142857143 | QU12: =(1-$E$6/QU11) -> 0.7142857143 | QV12: =(1-$E$6/QV11) -> 0.7142857143 | QW12: =(1-$E$6/QW11) -> 0.7142857143 | QX12: =(1-$E$6/QX11) -> 0.7142857143 | QY12: =(1-$E$6/QY11) -> 0.7142857143 | QZ12: =(1-$E$6/QZ11) -> 0.7142857143 | RA12: =(1-$E$6/RA11) -> 0.7142857143 | RB12: =(1-$E$6/RB11) -> 0.7142857143 | RC12: =(1-$E$6/RC11) -> 0.7142857143 | RD12: =(1-$E$6/RD11) -> 0.7142857143 | RE12: =(1-$E$6/RE11) -> 0.7142857143 | RF12: =(1-$E$6/RF11) -> 0.7142857143 | RG12: =(1-$E$6/RG11) -> 0.7142857143 | RH12: =(1-$E$6/RH11) -> 0.7142857143 | RI12: =(1-$E$6/RI11) -> 0.7142857143 | RJ12: =(1-$E$6/RJ11) -> 0.7142857143 | RK12: =(1-$E$6/RK11) -> 0.7142857143 | RL12: =(1-$E$6/RL11) -> 0.7142857143 | RM12: =(1-$E$6/RM11) -> 0.7142857143 | RN12: =(1-$E$6/RN11) -> 0.7142857143 | RO12: =(1-$E$6/RO11) -> 0.7142857143 | RP12: =(1-$E$6/RP11) -> 0.7142857143 | RQ12: =(1-$E$6/RQ11) -> 0.7142857143 | RR12: =(1-$E$6/RR11) -> 0.7142857143 | RS12: =(1-$E$6/RS11) -> 0.7142857143 | RT12: =(1-$E$6/RT11) -> 0.7142857143 | RU12: =(1-$E$6/RU11) -> 0.7142857143 | RV12: =(1-$E$6/RV11) -> 0.7142857143 | RW12: =(1-$E$6/RW11) -> 0.7142857143 | RX12: =(1-$E$6/RX11) -> 0.7142857143 | RY12: =(1-$E$6/RY11) -> 0.7142857143 | RZ12: =(1-$E$6/RZ11) -> 0.7142857143 | SA12: =(1-$E$6/SA11) -> 0.7142857143 | SB12: =(1-$E$6/SB11) -> 0.7142857143 | SC12: =(1-$E$6/SC11) -> 0.7142857143 | SD12: =(1-$E$6/SD11) -> 0.7142857143 | SE12: =(1-$E$6/SE11) -> 0.7142857143 | SF12: =(1-$E$6/SF11) -> 0.7142857143 | SG12: =(1-$E$6/SG11) -> 0.7142857143 | SH12: =(1-$E$6/SH11) -> 0.7142857143 | SI12: =(1-$E$6/SI11) -> 0.7142857143 | SJ12: =(1-$E$6/SJ11) -> 0.7142857143 | SK12: =(1-$E$6/SK11) -> 0.7142857143
D14: Opening Book Value | F14: =E17 -> 1000 | G14: =F17 -> 1020 | H14: 1040.4 | I14: 1061.208 | J14: 1082.43216 | K14: 1104.080803 | L14: 1126.162419 | M14: 1148.685668 | N14: 1171.659381 | O14: 1195.092569 | P14: 1218.99442 | Q14: 1243.374308 | R14: 1268.241795 | S14: 1293.60663 | T14: 1319.478763 | U14: 1345.868338 | V14: 1372.785705 | W14: 1400.241419 | X14: 1428.246248 | Y14: 1456.811173 | Z14: 1485.947396 | AA14: 1515.666344 | AB14: 1545.979671 | AC14: 1576.899264 | AD14: 1608.437249 | AE14: 1640.605994 | AF14: 1673.418114 | AG14: 1706.886477 | AH14: 1741.024206 | AI14: 1775.84469 | AJ14: 1811.361584 | AK14: 1847.588816 | AL14: 1884.540592 | AM14: 1922.231404 | AN14: 1960.676032 | AO14: 1999.889553 | AP14: 2039.887344 | AQ14: 2080.685091 | AR14: 2122.298792 | AS14: 2164.744768 | AT14: 2208.039664 | AU14: 2252.200457 | AV14: 2297.244466 | AW14: 2343.189355 | AX14: 2390.053142 | AY14: 2437.854205 | AZ14: 2486.611289 | BA14: 2536.343515 | BB14: 2587.070385 | BC14: 2638.811793 | BD14: 2691.588029 | BE14: 2745.41979 | BF14: 2800.328185 | BG14: 2856.334749 | BH14: 2913.461444 | BI14: 2971.730673 | BJ14: 3031.165286 | BK14: 3091.788592 | BL14: 3153.624364 | BM14: 3216.696851 | BN14: 3281.030788 | BO14: 3346.651404 | BP14: 3413.584432 | BQ14: 3481.856121 | BR14: 3551.493243 | BS14: =BR17 -> 3622.523108 | BT14: 3694.97357 | BU14: 3768.873042 | BV14: 3844.250503 | BW14: 3921.135513 | BX14: 3999.558223 | BY14: 4079.549387 | BZ14: 4161.140375 | CA14: 4244.363183 | CB14: 4329.250446 | CC14: 4415.835455 | CD14: 4504.152164 | CE14: 4594.235208 | CF14: 4686.119912 | CG14: 4779.84231 | CH14: 4875.439156 | CI14: 4972.947939 | CJ14: 5072.406898 | CK14: 5173.855036 | CL14: 5277.332137 | CM14: 5382.878779 | CN14: 5490.536355 | CO14: 5600.347082 | CP14: 5712.354024 | CQ14: 5826.601104 | CR14: 5943.133126 | CS14: 6061.995789 | CT14: 6183.235705 | CU14: 6306.900419 | CV14: 6433.038427 | CW14: 6561.699196 | CX14: 6692.93318 | CY14: 6826.791843 | CZ14: 6963.32768 | DA14: 7102.594234 | DB14: 7244.646118 | DC14: 7389.539041 | DD14: 7537.329821 | DE14: 7688.076418 | DF14: 7841.837946 | DG14: 7998.674705 | DH14: 8158.648199 | DI14: 8321.821163 | DJ14: 8488.257586 | DK14: 8658.022738 | DL14: 8831.183193 | DM14: 9007.806857 | DN14: 9187.962994 | DO14: 9371.722254 | DP14: 9559.156699 | DQ14: 9750.339833 | DR14: 9945.34663 | DS14: 10144.25356 | DT14: 10347.13863 | DU14: 10554.08141 | DV14: 10765.16303 | DW14: 10980.46629 | DX14: 11200.07562 | DY14: 11424.07713 | DZ14: 11652.55868 | EA14: 11885.60985 | EB14: 12123.32205 | EC14: 12365.78849 | ED14: 12613.10426 | EE14: =ED17 -> 12865.36634 | EF14: 13122.67367 | EG14: 13385.12714 | EH14: 13652.82969 | EI14: 13925.88628 | EJ14: 14204.404 | EK14: 14488.49208 | EL14: 14778.26193 | EM14: 15073.82716 | EN14: 15375.30371 | EO14: 15682.80978 | EP14: 15996.46598 | EQ14: 16316.3953 | ER14: 16642.7232 | ES14: 16975.57767 | ET14: 17315.08922 | EU14: 17661.39101 | EV14: 18014.61883 | EW14: 18374.9112 | EX14: 18742.40943 | EY14: 19117.25761 | EZ14: 19499.60277 | FA14: 19889.59482 | FB14: 20287.38672 | FC14: 20693.13445 | FD14: 21106.99714 | FE14: 21529.13708 | FF14: 21959.71983 | FG14: 22398.91422 | FH14: 22846.89251 | FI14: 23303.83036 | FJ14: 23769.90696 | FK14: 24245.3051 | FL14: 24730.21121 | FM14: 25224.81543 | FN14: 25729.31174 | FO14: 26243.89797 | FP14: 26768.77593 | FQ14: 27304.15145 | FR14: 27850.23448 | FS14: 28407.23917 | FT14: 28975.38395 | FU14: 29554.89163 | FV14: 30145.98947 | FW14: 30748.90925 | FX14: 31363.88744 | FY14: 31991.16519 | FZ14: 32630.98849 | GA14: 33283.60826 | GB14: 33949.28043 | GC14: 34628.26604 | GD14: 35320.83136 | GE14: 36027.24798 | GF14: 36747.79294 | GG14: 37482.7488 | GH14: 38232.40378 | GI14: 38997.05185 | GJ14: 39776.99289 | GK14: 40572.53275 | GL14: 41383.9834 | GM14: 42211.66307 | GN14: 43055.89633 | GO14: 43917.01426 | GP14: 44795.35455 | GQ14: =GP17 -> 45691.26164 | GR14: 46605.08687 | GS14: 47537.18861 | GT14: 48487.93238 | GU14: 49457.69103 | GV14: 50446.84485 | GW14: 51455.78174 | GX14: 52484.89738 | GY14: 53534.59533 | GZ14: 54605.28723 | HA14: 55697.39298 | HB14: 56811.34084 | HC14: 57947.56765 | HD14: 59106.51901 | HE14: 60288.64939 | HF14: 61494.42237 | HG14: 62724.31082 | HH14: 63978.79704 | HI14: 65258.37298 | HJ14: 66563.54044 | HK14: 67894.81125 | HL14: 69252.70747 | HM14: 70637.76162 | HN14: 72050.51685 | HO14: 73491.52719 | HP14: 74961.35774 | HQ14: 76460.58489 | HR14: 77989.79659 | HS14: 79549.59252 | HT14: 81140.58437 | HU14: 82763.39606 | HV14: 84418.66398 | HW14: 86107.03726 | HX14: 87829.178 | HY14: 89585.76156 | HZ14: 91377.47679 | IA14: 93205.02633 | IB14: 95069.12686 | IC14: 96970.50939 | ID14: 98909.91958 | IE14: 100888.118 | IF14: 102905.8803 | IG14: 104963.9979 | IH14: 107063.2779 | II14: 109204.5435 | IJ14: 111388.6343 | IK14: 113616.407 | IL14: 115888.7352 | IM14: 118206.5099 | IN14: 120570.6401 | IO14: 122982.0529 | IP14: 125441.6939 | IQ14: 127950.5278 | IR14: 130509.5383 | IS14: 133119.7291 | IT14: 135782.1237 | IU14: 138497.7662 | IV14: 141267.7215 | IW14: 144093.0759 | IX14: 146974.9374 | IY14: 149914.4362 | IZ14: 152912.7249 | JA14: 155970.9794 | JB14: 159090.399 | JC14: =JB17 -> 162272.207 | JD14: 165517.6511 | JE14: 168828.0041 | JF14: 172204.5642 | JG14: 175648.6555 | JH14: 179161.6286 | JI14: 182744.8612 | JJ14: 186399.7584 | JK14: 190127.7536 | JL14: 193930.3087 | JM14: 197808.9148 | JN14: 201765.0931 | JO14: 205800.395 | JP14: 209916.4029 | JQ14: 214114.7309 | JR14: 218397.0256 | JS14: 222764.9661 | JT14: 227220.2654 | JU14: 231764.6707 | JV14: 236399.9641 | JW14: 241127.9634 | JX14: 245950.5227 | JY14: 250869.5331 | JZ14: 255886.9238 | KA14: 261004.6623 | KB14: 266224.7555 | KC14: 271549.2506 | KD14: 276980.2356 | KE14: 282519.8403 | KF14: 288170.2371 | KG14: 293933.6419 | KH14: 299812.3147 | KI14: 305808.561 | KJ14: 311924.7322 | KK14: 318163.2269 | KL14: 324526.4914 | KM14: 331017.0213 | KN14: 337637.3617 | KO14: 344390.1089 | KP14: 351277.9111 | KQ14: 358303.4693 | KR14: 365469.5387 | KS14: 372778.9295 | KT14: 380234.5081 | KU14: 387839.1982 | KV14: 395595.9822 | KW14: 403507.9018 | KX14: 411578.0599 | KY14: 419809.6211 | KZ14: 428205.8135 | LA14: 436769.9298 | LB14: 445505.3284 | LC14: 454415.4349 | LD14: 463503.7436 | LE14: 472773.8185 | LF14: 482229.2949 | LG14: 491873.8808 | LH14: 501711.3584 | LI14: 511745.5855 | LJ14: 521980.4972 | LK14: 532420.1072 | LL14: 543068.5093 | LM14: 553929.8795 | LN14: 565008.4771 | LO14: =LN17 -> 576308.6467 | LP14: 587834.8196 | LQ14: 599591.516 | LR14: 611583.3463 | LS14: 623815.0132 | LT14: 636291.3135 | LU14: 649017.1398 | LV14: 661997.4826 | LW14: 675237.4322 | LX14: 688742.1809 | LY14: 702517.0245 | LZ14: 716567.365 | MA14: 730898.7123 | MB14: 745516.6865 | MC14: 760427.0202 | MD14: 775635.5606 | ME14: 791148.2719 | MF14: 806971.2373 | MG14: 823110.662 | MH14: 839572.8753 | MI14: 856364.3328 | MJ14: 873491.6194 | MK14: 890961.4518 | ML14: 908780.6809 | MM14: 926956.2945 | MN14: 945495.4204 | MO14: 964405.3288 | MP14: 983693.4354 | MQ14: 1003367.304 | MR14: 1023434.65 | MS14: 1043903.343 | MT14: 1064781.41 | MU14: 1086077.038 | MV14: 1107798.579 | MW14: 1129954.551 | MX14: 1152553.642 | MY14: 1175604.714 | MZ14: 1199116.809 | NA14: 1223099.145 | NB14: 1247561.128 | NC14: 1272512.35 | ND14: 1297962.597 | NE14: 1323921.849 | NF14: 1350400.286 | NG14: 1377408.292 | NH14: 1404956.458 | NI14: 1433055.587 | NJ14: 1461716.699 | NK14: 1490951.033 | NL14: 1520770.053 | NM14: 1551185.454 | NN14: 1582209.163 | NO14: 1613853.347 | NP14: 1646130.414 | NQ14: 1679053.022 | NR14: 1712634.082 | NS14: 1746886.764 | NT14: 1781824.499 | NU14: 1817460.989 | NV14: 1853810.209 | NW14: 1890886.413 | NX14: 1928704.142 | NY14: 1967278.224 | NZ14: 2006623.789 | OA14: =NZ17 -> 2046756.265 | OB14: 2087691.39 | OC14: 2129445.218 | OD14: 2172034.122 | OE14: 2215474.805 | OF14: 2259784.301 | OG14: 2304979.987 | OH14: 2351079.586 | OI14: 2398101.178 | OJ14: 2446063.202 | OK14: 2494984.466 | OL14: 2544884.155 | OM14: 2595781.838 | ON14: 2647697.475 | OO14: 2700651.424 | OP14: 2754664.453 | OQ14: 2809757.742 | OR14: 2865952.897 | OS14: 2923271.955 | OT14: 2981737.394 | OU14: 3041372.142 | OV14: 3102199.584 | OW14: 3164243.576 | OX14: 3227528.448 | OY14: 3292079.017 | OZ14: 3357920.597 | PA14: 3425079.009 | PB14: 3493580.589 | PC14: 3563452.201 | PD14: 3634721.245 | PE14: 3707415.67 | PF14: 3781563.983 | PG14: 3857195.263 | PH14: 3934339.168 | PI14: 4013025.951 | PJ14: 4093286.471 | PK14: 4175152.2 | PL14: 4258655.244 | PM14: 4343828.349 | PN14: 4430704.916 | PO14: 4519319.014 | PP14: 4609705.394 | PQ14: 4701899.502 | PR14: 4795937.492 | PS14: 4891856.242 | PT14: 4989693.367 | PU14: 5089487.234 | PV14: 5191276.979 | PW14: 5295102.519 | PX14: 5401004.569 | PY14: 5509024.66 | PZ14: 5619205.154 | QA14: 5731589.257 | QB14: 5846221.042 | QC14: 5963145.463 | QD14: 6082408.372 | QE14: 6204056.539 | QF14: 6328137.67 | QG14: 6454700.423 | QH14: 6583794.432 | QI14: 6715470.321 | QJ14: 6849779.727 | QK14: 6986775.322 | QL14: 7126510.828 | QM14: =QL17 -> 7269041.045 | QN14: 7414421.865 | QO14: 7562710.303 | QP14: 7713964.509 | QQ14: 7868243.799 | QR14: 8025608.675 | QS14: 8186120.848 | QT14: 8349843.265 | QU14: 8516840.131 | QV14: 8687176.933 | QW14: 8860920.472 | QX14: 9038138.881 | QY14: 9218901.659 | QZ14: 9403279.692 | RA14: 9591345.286 | RB14: 9783172.192 | RC14: 9978835.636 | RD14: 10178412.35 | RE14: 10381980.6 | RF14: 10589620.21 | RG14: 10801412.61 | RH14: 11017440.86 | RI14: 11237789.68 | RJ14: 11462545.47 | RK14: 11691796.38 | RL14: 11925632.31 | RM14: 12164144.96 | RN14: 12407427.86 | RO14: 12655576.41 | RP14: 12908687.94 | RQ14: 13166861.7 | RR14: 13430198.94 | RS14: 13698802.91 | RT14: 13972778.97 | RU14: 14252234.55 | RV14: 14537279.24 | RW14: 14828024.83 | RX14: 15124585.32 | RY14: 15427077.03 | RZ14: 15735618.57 | SA14: 16050330.94 | SB14: 16371337.56 | SC14: 16698764.31 | SD14: 17032739.6 | SE14: 17373394.39 | SF14: 17720862.28 | SG14: 18075279.52 | SH14: 18436785.11 | SI14: 18805520.82 | SJ14: 19181631.23 | SK14: 19565263.86
D15: Add: Income | F15: =F14*F11 -> 49.15748089 | G15: =G14*G11 -> 54.77304635 | H15: 61.03011286 | I15: 68.00196307 | J15: 75.7702512 | K15: 77.28565622 | L15: 78.83136935 | M15: 80.40799674 | N15: 82.01615667 | O15: 83.6564798 | P15: 85.3296094 | Q15: 87.03620159 | R15: 88.77692562 | S15: 90.55246413 | T15: 92.36351341 | U15: 94.21078368 | V15: 96.09499936 | W15: 98.01689934 | X15: 99.97723733 | Y15: 101.9767821 | Z15: 104.0163177 | AA15: 106.0966441 | AB15: 108.218577 | AC15: 110.3829485 | AD15: 112.5906075 | AE15: 114.8424196 | AF15: 117.139268 | AG15: 119.4820534 | AH15: 121.8716944 | AI15: 124.3091283 | AJ15: 126.7953109 | AK15: 129.3312171 | AL15: 131.9178414 | AM15: 134.5561983 | AN15: 137.2473222 | AO15: 139.9922687 | AP15: 142.7921141 | AQ15: 145.6479563 | AR15: 148.5609155 | AS15: 151.5321338 | AT15: 154.5627765 | AU15: 157.654032 | AV15: 160.8071126 | AW15: 164.0232549 | AX15: 167.30372 | AY15: 170.6497944 | AZ15: 174.0627903 | BA15: 177.5440461 | BB15: 181.094927 | BC15: 184.7168255 | BD15: 188.411162 | BE15: 192.1793853 | BF15: 196.022973 | BG15: 199.9434324 | BH15: 203.9423011 | BI15: 208.0211471 | BJ15: 212.1815701 | BK15: 216.4252015 | BL15: 220.7537055 | BM15: 225.1687796 | BN15: 229.6721552 | BO15: 234.2655983 | BP15: 238.9509103 | BQ15: 243.7299285 | BR15: 248.604527 | BS15: =BS14*BS11 -> 253.5766176 | BT15: 258.6481499 | BU15: 263.8211129 | BV15: 269.0975352 | BW15: 274.4794859 | BX15: 279.9690756 | BY15: 285.5684571 | BZ15: 291.2798263 | CA15: 297.1054228 | CB15: 303.0475312 | CC15: 309.1084819 | CD15: 315.2906515 | CE15: 321.5964645 | CF15: 328.0283938 | CG15: 334.5889617 | CH15: 341.2807409 | CI15: 348.1063557 | CJ15: 355.0684829 | CK15: 362.1698525 | CL15: 369.4132496 | CM15: 376.8015146 | CN15: 384.3375449 | CO15: 392.0242957 | CP15: 399.8647817 | CQ15: 407.8620773 | CR15: 416.0193188 | CS15: 424.3397052 | CT15: 432.8264993 | CU15: 441.4830293 | CV15: 450.3126899 | CW15: 459.3189437 | CX15: 468.5053226 | CY15: 477.875429 | CZ15: 487.4329376 | DA15: 497.1815964 | DB15: 507.1252283 | DC15: 517.2677328 | DD15: 527.6130875 | DE15: 538.1653493 | DF15: 548.9286562 | DG15: 559.9072294 | DH15: 571.1053739 | DI15: 582.5274814 | DJ15: 594.1780311 | DK15: 606.0615917 | DL15: 618.1828235 | DM15: 630.54648 | DN15: 643.1574096 | DO15: 656.0205578 | DP15: 669.1409689 | DQ15: 682.5237883 | DR15: 696.1742641 | DS15: 710.0977494 | DT15: 724.2997043 | DU15: 738.7856984 | DV15: 753.5614124 | DW15: 768.6326406 | DX15: 784.0052935 | DY15: 799.6853993 | DZ15: 815.6791073 | EA15: 831.9926895 | EB15: 848.6325432 | EC15: 865.6051941 | ED15: 882.917298 | EE15: =EE14*EE11 -> 900.575644 | EF15: 918.5871568 | EG15: 936.9589 | EH15: 955.698078 | EI15: 974.8120395 | EJ15: 994.3082803 | EK15: 1014.194446 | EL15: 1034.478335 | EM15: 1055.167902 | EN15: 1076.27126 | EO15: 1097.796685 | EP15: 1119.752618 | EQ15: 1142.147671 | ER15: 1164.990624 | ES15: 1188.290437 | ET15: 1212.056245 | EU15: 1236.29737 | EV15: 1261.023318 | EW15: 1286.243784 | EX15: 1311.96866 | EY15: 1338.208033 | EZ15: 1364.972194 | FA15: 1392.271638 | FB15: 1420.11707 | FC15: 1448.519412 | FD15: 1477.4898 | FE15: 1507.039596 | FF15: 1537.180388 | FG15: 1567.923996 | FH15: 1599.282476 | FI15: 1631.268125 | FJ15: 1663.893488 | FK15: 1697.171357 | FL15: 1731.114784 | FM15: 1765.73708 | FN15: 1801.051822 | FO15: 1837.072858 | FP15: 1873.814315 | FQ15: 1911.290602 | FR15: 1949.516414 | FS15: 1988.506742 | FT15: 2028.276877 | FU15: 2068.842414 | FV15: 2110.219263 | FW15: 2152.423648 | FX15: 2195.472121 | FY15: 2239.381563 | FZ15: 2284.169194 | GA15: 2329.852578 | GB15: 2376.44963 | GC15: 2423.978623 | GD15: 2472.458195 | GE15: 2521.907359 | GF15: 2572.345506 | GG15: 2623.792416 | GH15: 2676.268265 | GI15: 2729.79363 | GJ15: 2784.389502 | GK15: 2840.077292 | GL15: 2896.878838 | GM15: 2954.816415 | GN15: 3013.912743 | GO15: 3074.190998 | GP15: 3135.674818 | GQ15: =GQ14*GQ11 -> 3198.388315 | GR15: 3262.356081 | GS15: 3327.603202 | GT15: 3394.155267 | GU15: 3462.038372 | GV15: 3531.279139 | GW15: 3601.904722 | GX15: 3673.942817 | GY15: 3747.421673 | GZ15: 3822.370106 | HA15: 3898.817508 | HB15: 3976.793859 | HC15: 4056.329736 | HD15: 4137.45633 | HE15: 4220.205457 | HF15: 4304.609566 | HG15: 4390.701758 | HH15: 4478.515793 | HI15: 4568.086109 | HJ15: 4659.447831 | HK15: 4752.636787 | HL15: 4847.689523 | HM15: 4944.643314 | HN15: 5043.53618 | HO15: 5144.406903 | HP15: 5247.295041 | HQ15: 5352.240942 | HR15: 5459.285761 | HS15: 5568.471476 | HT15: 5679.840906 | HU15: 5793.437724 | HV15: 5909.306479 | HW15: 6027.492608 | HX15: 6148.04246 | HY15: 6271.003309 | HZ15: 6396.423376 | IA15: 6524.351843 | IB15: 6654.83888 | IC15: 6787.935658 | ID15: 6923.694371 | IE15: 7062.168258 | IF15: 7203.411623 | IG15: 7347.479856 | IH15: 7494.429453 | II15: 7644.318042 | IJ15: 7797.204403 | IK15: 7953.148491 | IL15: 8112.211461 | IM15: 8274.45569 | IN15: 8439.944804 | IO15: 8608.7437 | IP15: 8780.918574 | IQ15: 8956.536945 | IR15: 9135.667684 | IS15: 9318.381038 | IT15: 9504.748659 | IU15: 9694.843632 | IV15: 9888.740504 | IW15: 10086.51531 | IX15: 10288.24562 | IY15: 10494.01053 | IZ15: 10703.89074 | JA15: 10917.96856 | JB15: 11136.32793 | JC15: =JC14*JC11 -> 11359.05449 | JD15: 11586.23558 | JE15: 11817.96029 | JF15: 12054.3195 | JG15: 12295.40589 | JH15: 12541.314 | JI15: 12792.14028 | JJ15: 13047.98309 | JK15: 13308.94275 | JL15: 13575.12161 | JM15: 13846.62404 | JN15: 14123.55652 | JO15: 14406.02765 | JP15: 14694.1482 | JQ15: 14988.03117 | JR15: 15287.79179 | JS15: 15593.54763 | JT15: 15905.41858 | JU15: 16223.52695 | JV15: 16547.99749 | JW15: 16878.95744 | JX15: 17216.53659 | JY15: 17560.86732 | JZ15: 17912.08466 | KA15: 18270.32636 | KB15: 18635.73289 | KC15: 19008.44754 | KD15: 19388.61649 | KE15: 19776.38882 | KF15: 20171.9166 | KG15: 20575.35493 | KH15: 20986.86203 | KI15: 21406.59927 | KJ15: 21834.73126 | KK15: 22271.42588 | KL15: 22716.8544 | KM15: 23171.19149 | KN15: 23634.61532 | KO15: 24107.30762 | KP15: 24589.45378 | KQ15: 25081.24285 | KR15: 25582.86771 | KS15: 26094.52506 | KT15: =KT14*KT11 -> 26616.41556 | KU15: =KU14*KU11 -> 27148.74388 | KV15: =KV14*KV11 -> 27691.71875 | KW15: =KW14*KW11 -> 28245.55313 | KX15: =KX14*KX11 -> 28810.46419 | KY15: =KY14*KY11 -> 29386.67347 | KZ15: =KZ14*KZ11 -> 29974.40694 | LA15: =LA14*LA11 -> 30573.89508 | LB15: =LB14*LB11 -> 31185.37298 | LC15: =LC14*LC11 -> 31809.08044 | LD15: =LD14*LD11 -> 32445.26205 | LE15: =LE14*LE11 -> 33094.16729 | LF15: =LF14*LF11 -> 33756.05064 | LG15: =LG14*LG11 -> 34431.17165 | LH15: =LH14*LH11 -> 35119.79509 | LI15: =LI14*LI11 -> 35822.19099 | LJ15: =LJ14*LJ11 -> 36538.63481 | LK15: =LK14*LK11 -> 37269.4075 | LL15: =LL14*LL11 -> 38014.79565 | LM15: =LM14*LM11 -> 38775.09157 | LN15: =LN14*LN11 -> 39550.5934 | LO15: =LO14*LO11 -> 40341.60527 | LP15: =LP14*LP11 -> 41148.43737 | LQ15: =LQ14*LQ11 -> 41971.40612 | LR15: =LR14*LR11 -> 42810.83424 | LS15: =LS14*LS11 -> 43667.05093 | LT15: =LT14*LT11 -> 44540.39194 | LU15: =LU14*LU11 -> 45431.19978 | LV15: =LV14*LV11 -> 46339.82378 | LW15: =LW14*LW11 -> 47266.62025 | LX15: =LX14*LX11 -> 48211.95266 | LY15: =LY14*LY11 -> 49176.19171 | LZ15: =LZ14*LZ11 -> 50159.71555 | MA15: =MA14*MA11 -> 51162.90986 | MB15: =MB14*MB11 -> 52186.16806 | MC15: =MC14*MC11 -> 53229.89142 | MD15: =MD14*MD11 -> 54294.48924 | ME15: =ME14*ME11 -> 55380.37903 | MF15: =MF14*MF11 -> 56487.98661 | MG15: =MG14*MG11 -> 57617.74634 | MH15: =MH14*MH11 -> 58770.10127 | MI15: =MI14*MI11 -> 59945.50329 | MJ15: =MJ14*MJ11 -> 61144.41336 | MK15: =MK14*MK11 -> 62367.30163 | ML15: =ML14*ML11 -> 63614.64766 | MM15: =MM14*MM11 -> 64886.94061 | MN15: =MN14*MN11 -> 66184.67943 | MO15: =MO14*MO11 -> 67508.37301 | MP15: =MP14*MP11 -> 68858.54047 | MQ15: =MQ14*MQ11 -> 70235.71128 | MR15: =MR14*MR11 -> 71640.42551 | MS15: =MS14*MS11 -> 73073.23402 | MT15: =MT14*MT11 -> 74534.6987 | MU15: =MU14*MU11 -> 76025.39267 | MV15: =MV14*MV11 -> 77545.90053 | MW15: =MW14*MW11 -> 79096.81854 | MX15: =MX14*MX11 -> 80678.75491 | MY15: =MY14*MY11 -> 82292.33001 | MZ15: =MZ14*MZ11 -> 83938.17661 | NA15: =NA14*NA11 -> 85616.94014 | NB15: =NB14*NB11 -> 87329.27894 | NC15: =NC14*NC11 -> 89075.86452 | ND15: =ND14*ND11 -> 90857.38181 | NE15: =NE14*NE11 -> 92674.52945 | NF15: =NF14*NF11 -> 94528.02004 | NG15: =NG14*NG11 -> 96418.58044 | NH15: =NH14*NH11 -> 98346.95205 | NI15: =NI14*NI11 -> 100313.8911 | NJ15: =NJ14*NJ11 -> 102320.1689 | NK15: =NK14*NK11 -> 104366.5723 | NL15: =NL14*NL11 -> 106453.9037 | NM15: =NM14*NM11 -> 108582.9818 | NN15: =NN14*NN11 -> 110754.6414 | NO15: =NO14*NO11 -> 112969.7343 | NP15: =NP14*NP11 -> 115229.129 | NQ15: =NQ14*NQ11 -> 117533.7115 | NR15: =NR14*NR11 -> 119884.3858 | NS15: =NS14*NS11 -> 122282.0735 | NT15: =NT14*NT11 -> 124727.715 | NU15: =NU14*NU11 -> 127222.2693 | NV15: =NV14*NV11 -> 129766.7146 | NW15: =NW14*NW11 -> 132362.0489 | NX15: =NX14*NX11 -> 135009.2899 | NY15: =NY14*NY11 -> 137709.4757 | NZ15: =NZ14*NZ11 -> 140463.6652 | OA15: =OA14*OA11 -> 143272.9385 | OB15: =OB14*OB11 -> 146138.3973 | OC15: =OC14*OC11 -> 149061.1652 | OD15: =OD14*OD11 -> 152042.3885 | OE15: =OE14*OE11 -> 155083.2363 | OF15: =OF14*OF11 -> 158184.901 | OG15: =OG14*OG11 -> 161348.5991 | OH15: =OH14*OH11 -> 164575.571 | OI15: =OI14*OI11 -> 167867.0825 | OJ15: =OJ14*OJ11 -> 171224.4241 | OK15: =OK14*OK11 -> 174648.9126 | OL15: =OL14*OL11 -> 178141.8909 | OM15: =OM14*OM11 -> 181704.7287 | ON15: =ON14*ON11 -> 185338.8232 | OO15: =OO14*OO11 -> 189045.5997 | OP15: =OP14*OP11 -> 192826.5117 | OQ15: =OQ14*OQ11 -> 196683.0419 | OR15: =OR14*OR11 -> 200616.7028 | OS15: =OS14*OS11 -> 204629.0368 | OT15: =OT14*OT11 -> 208721.6176 | OU15: =OU14*OU11 -> 212896.0499 | OV15: =OV14*OV11 -> 217153.9709 | OW15: =OW14*OW11 -> 221497.0503 | OX15: =OX14*OX11 -> 225926.9913 | OY15: =OY14*OY11 -> 230445.5312 | OZ15: =OZ14*OZ11 -> 235054.4418 | PA15: =PA14*PA11 -> 239755.5306 | PB15: =PB14*PB11 -> 244550.6412 | PC15: =PC14*PC11 -> 249441.6541 | PD15: =PD14*PD11 -> 254430.4871 | PE15: =PE14*PE11 -> 259519.0969 | PF15: =PF14*PF11 -> 264709.4788 | PG15: =PG14*PG11 -> 270003.6684 | PH15: =PH14*PH11 -> 275403.7418 | PI15: =PI14*PI11 -> 280911.8166 | PJ15: =PJ14*PJ11 -> 286530.0529 | PK15: =PK14*PK11 -> 292260.654 | PL15: =PL14*PL11 -> 298105.8671 | PM15: =PM14*PM11 -> 304067.9844 | PN15: =PN14*PN11 -> 310149.3441 | PO15: =PO14*PO11 -> 316352.331 | PP15: =PP14*PP11 -> 322679.3776 | PQ15: =PQ14*PQ11 -> 329132.9652 | PR15: =PR14*PR11 -> 335715.6245 | PS15: =PS14*PS11 -> 342429.937 | PT15: =PT14*PT11 -> 349278.5357 | PU15: =PU14*PU11 -> 356264.1064 | PV15: =PV14*PV11 -> 363389.3885 | PW15: =PW14*PW11 -> 370657.1763 | PX15: =PX14*PX11 -> 378070.3198 | PY15: =PY14*PY11 -> 385631.7262 | PZ15: =PZ14*PZ11 -> 393344.3607 | QA15: =QA14*QA11 -> 401211.248 | QB15: =QB14*QB11 -> 409235.4729 | QC15: =QC14*QC11 -> 417420.1824 | QD15: =QD14*QD11 -> 425768.586 | QE15: =QE14*QE11 -> 434283.9578 | QF15: =QF14*QF11 -> 442969.6369 | QG15: =QG14*QG11 -> 451829.0296 | QH15: =QH14*QH11 -> 460865.6102 | QI15: =QI14*QI11 -> 470082.9224 | QJ15: =QJ14*QJ11 -> 479484.5809 | QK15: =QK14*QK11 -> 489074.2725 | QL15: =QL14*QL11 -> 498855.758 | QM15: =QM14*QM11 -> 508832.8731 | QN15: =QN14*QN11 -> 519009.5306 | QO15: =QO14*QO11 -> 529389.7212 | QP15: =QP14*QP11 -> 539977.5156 | QQ15: =QQ14*QQ11 -> 550777.0659 | QR15: =QR14*QR11 -> 561792.6072 | QS15: =QS14*QS11 -> 573028.4594 | QT15: =QT14*QT11 -> 584489.0286 | QU15: =QU14*QU11 -> 596178.8091 | QV15: =QV14*QV11 -> 608102.3853 | QW15: =QW14*QW11 -> 620264.433 | QX15: =QX14*QX11 -> 632669.7217 | QY15: =QY14*QY11 -> 645323.1161 | QZ15: =QZ14*QZ11 -> 658229.5785 | RA15: =RA14*RA11 -> 671394.17 | RB15: =RB14*RB11 -> 684822.0534 | RC15: =RC14*RC11 -> 698518.4945 | RD15: =RD14*RD11 -> 712488.8644 | RE15: =RE14*RE11 -> 726738.6417 | RF15: =RF14*RF11 -> 741273.4145 | RG15: =RG14*RG11 -> 756098.8828 | RH15: =RH14*RH11 -> 771220.8605 | RI15: =RI14*RI11 -> 786645.2777 | RJ15: =RJ14*RJ11 -> 802378.1832 | RK15: =RK14*RK11 -> 818425.7469 | RL15: =RL14*RL11 -> 834794.2618 | RM15: =RM14*RM11 -> 851490.1471 | RN15: =RN14*RN11 -> 868519.95 | RO15: =RO14*RO11 -> 885890.349 | RP15: =RP14*RP11 -> 903608.156 | RQ15: =RQ14*RQ11 -> 921680.3191 | RR15: =RR14*RR11 -> 940113.9255 | RS15: =RS14*RS11 -> 958916.204 | RT15: =RT14*RT11 -> 978094.5281 | RU15: =RU14*RU11 -> 997656.4186 | RV15: =RV14*RV11 -> 1017609.547 | RW15: =RW14*RW11 -> 1037961.738 | RX15: =RX14*RX11 -> 1058720.973 | RY15: =RY14*RY11 -> 1079895.392 | RZ15: =RZ14*RZ11 -> 1101493.3 | SA15: =SA14*SA11 -> 1123523.166 | SB15: =SB14*SB11 -> 1145993.629 | SC15: =SC14*SC11 -> 1168913.502 | SD15: =SD14*SD11 -> 1192291.772 | SE15: =SE14*SE11 -> 1216137.607 | SF15: =SF14*SF11 -> 1240460.36 | SG15: =SG14*SG11 -> 1265269.567 | SH15: =SH14*SH11 -> 1290574.958 | SI15: =SI14*SI11 -> 1316386.457 | SJ15: =SJ14*SJ11 -> 1342714.186 | SK15: =SK14*SK11 -> 1369568.47
D16: Less: Dividend | F16: =F15*F12 -> 29.15748089 | G16: =G15*G12 -> 34.37304635 | H16: 40.22211286 | I16: 46.77780307 | J16: 54.121608 | K16: 55.20404016 | L16: 56.30812096 | M16: 57.43428338 | N16: 58.58296905 | O16: 59.75462843 | P16: 60.949721 | Q16: 62.16871542 | R16: 63.41208973 | S16: 64.68033152 | T16: 65.97393815 | U16: 67.29341692 | V16: 68.63928525 | W16: 70.01207096 | X16: 71.41231238 | Y16: 72.84055863 | Z16: 74.2973698 | AA16: 75.78331719 | AB16: 77.29898354 | AC16: 78.84496321 | AD16: 80.42186247 | AE16: 82.03029972 | AF16: 83.67090572 | AG16: 85.34432383 | AH16: 87.05121031 | AI16: 88.79223451 | AJ16: 90.56807921 | AK16: 92.37944079 | AL16: 94.22702961 | AM16: 96.1115702 | AN16: 98.0338016 | AO16: 99.99447763 | AP16: 101.9943672 | AQ16: 104.0342545 | AR16: 106.1149396 | AS16: 108.2372384 | AT16: 110.4019832 | AU16: 112.6100228 | AV16: 114.8622233 | AW16: 117.1594678 | AX16: 119.5026571 | AY16: 121.8927103 | AZ16: 124.3305645 | BA16: 126.8171758 | BB16: 129.3535193 | BC16: 131.9405897 | BD16: 134.5794015 | BE16: 137.2709895 | BF16: 140.0164093 | BG16: 142.8167375 | BH16: 145.6730722 | BI16: 148.5865337 | BJ16: 151.5582643 | BK16: 154.5894296 | BL16: 157.6812182 | BM16: 160.8348426 | BN16: 164.0515394 | BO16: 167.3325702 | BP16: 170.6792216 | BQ16: 174.092806 | BR16: 177.5746622 | BS16: =BS15*BS12 -> 181.1261554 | BT16: 184.7486785 | BU16: 188.4436521 | BV16: 192.2125251 | BW16: 196.0567756 | BX16: 199.9779111 | BY16: 203.9774694 | BZ16: 208.0570188 | CA16: 212.2181591 | CB16: 216.4625223 | CC16: 220.7917728 | CD16: 225.2076082 | CE16: 229.7117604 | CF16: 234.3059956 | CG16: 238.9921155 | CH16: 243.7719578 | CI16: 248.647397 | CJ16: 253.6203449 | CK16: 258.6927518 | CL16: 263.8666068 | CM16: 269.143939 | CN16: 274.5268178 | CO16: 280.0173541 | CP16: 285.6177012 | CQ16: 291.3300552 | CR16: 297.1566563 | CS16: 303.0997894 | CT16: 309.1617852 | CU16: 315.3450209 | CV16: 321.6519214 | CW16: 328.0849598 | CX16: 334.646659 | CY16: 341.3395922 | CZ16: 348.166384 | DA16: 355.1297117 | DB16: 362.2323059 | DC16: 369.476952 | DD16: 376.8664911 | DE16: 384.4038209 | DF16: 392.0918973 | DG16: 399.9337353 | DH16: 407.93241 | DI16: 416.0910582 | DJ16: 424.4128793 | DK16: 432.9011369 | DL16: 441.5591596 | DM16: 450.3903428 | DN16: 459.3981497 | DO16: 468.5861127 | DP16: 477.9578349 | DQ16: 487.5169916 | DR16: 497.2673315 | DS16: 507.2126781 | DT16: 517.3569317 | DU16: 527.7040703 | DV16: 538.2581517 | DW16: 549.0233147 | DX16: 560.003781 | DY16: 571.2038567 | DZ16: 582.6279338 | EA16: 594.2804925 | EB16: 606.1661023 | EC16: 618.2894244 | ED16: 630.6552129 | EE16: =EE15*EE12 -> 643.2683171 | EF16: 656.1336835 | EG16: 669.2563571 | EH16: 682.6414843 | EI16: 696.2943139 | EJ16: 710.2202002 | EK16: 724.4246042 | EL16: 738.9130963 | EM16: 753.6913582 | EN16: 768.7651854 | EO16: 784.1404891 | EP16: 799.8232989 | EQ16: 815.8197649 | ER16: 832.1361602 | ES16: 848.7788834 | ET16: 865.754461 | EU16: 883.0695503 | EV16: 900.7309413 | EW16: 918.7455601 | EX16: 937.1204713 | EY16: 955.8628807 | EZ16: 974.9801383 | FA16: 994.4797411 | FB16: 1014.369336 | FC16: 1034.656723 | FD16: 1055.349857 | FE16: 1076.456854 | FF16: 1097.985991 | FG16: 1119.945711 | FH16: 1142.344625 | FI16: 1165.191518 | FJ16: 1188.495348 | FK16: 1212.265255 | FL16: 1236.51056 | FM16: 1261.240772 | FN16: 1286.465587 | FO16: 1312.194899 | FP16: 1338.438797 | FQ16: 1365.207573 | FR16: 1392.511724 | FS16: 1420.361959 | FT16: 1448.769198 | FU16: 1477.744582 | FV16: 1507.299473 | FW16: 1537.445463 | FX16: 1568.194372 | FY16: 1599.558259 | FZ16: 1631.549425 | GA16: 1664.180413 | GB16: 1697.464021 | GC16: 1731.413302 | GD16: 1766.041568 | GE16: 1801.362399 | GF16: 1837.389647 | GG16: 1874.13744 | GH16: 1911.620189 | GI16: 1949.852593 | GJ16: 1988.849645 | GK16: 2028.626637 | GL16: 2069.19917 | GM16: 2110.583154 | GN16: 2152.794817 | GO16: 2195.850713 | GP16: 2239.767727 | GQ16: =GQ15*GQ12 -> 2284.563082 | GR16: 2330.254343 | GS16: 2376.85943 | GT16: 2424.396619 | GU16: 2472.884551 | GV16: 2522.342242 | GW16: 2572.789087 | GX16: 2624.244869 | GY16: 2676.729766 | GZ16: 2730.264362 | HA16: 2784.869649 | HB16: 2840.567042 | HC16: 2897.378383 | HD16: 2955.32595 | HE16: 3014.432469 | HF16: 3074.721119 | HG16: 3136.215541 | HH16: 3198.939852 | HI16: 3262.918649 | HJ16: 3328.177022 | HK16: 3394.740562 | HL16: 3462.635374 | HM16: 3531.888081 | HN16: 3602.525843 | HO16: 3674.57636 | HP16: 3748.067887 | HQ16: 3823.029245 | HR16: 3899.489829 | HS16: 3977.479626 | HT16: 4057.029219 | HU16: 4138.169803 | HV16: 4220.933199 | HW16: 4305.351863 | HX16: 4391.4589 | HY16: 4479.288078 | HZ16: 4568.87384 | IA16: 4660.251317 | IB16: 4753.456343 | IC16: 4848.52547 | ID16: 4945.495979 | IE16: 5044.405899 | IF16: 5145.294017 | IG16: 5248.199897 | IH16: 5353.163895 | II16: 5460.227173 | IJ16: 5569.431716 | IK16: 5680.820351 | IL16: 5794.436758 | IM16: 5910.325493 | IN16: 6028.532003 | IO16: 6149.102643 | IP16: 6272.084696 | IQ16: 6397.526389 | IR16: 6525.476917 | IS16: 6655.986456 | IT16: 6789.106185 | IU16: 6924.888308 | IV16: 7063.386075 | IW16: 7204.653796 | IX16: 7348.746872 | IY16: 7495.721809 | IZ16: 7645.636246 | JA16: 7798.548971 | JB16: 7954.51995 | JC16: =JC15*JC12 -> 8113.610349 | JD16: 8275.882556 | JE16: 8441.400207 | JF16: 8610.228211 | JG16: 8782.432775 | JH16: 8958.081431 | JI16: 9137.24306 | JJ16: 9319.987921 | JK16: 9506.387679 | JL16: 9696.515433 | JM16: 9890.445741 | JN16: 10088.25466 | JO16: 10290.01975 | JP16: 10495.82014 | JQ16: 10705.73655 | JR16: 10919.85128 | JS16: 11138.2483 | JT16: 11361.01327 | JU16: 11588.23354 | JV16: 11819.99821 | JW16: 12056.39817 | JX16: 12297.52613 | JY16: 12543.47666 | JZ16: 12794.34619 | KA16: 13050.23311 | KB16: 13311.23778 | KC16: 13577.46253 | KD16: 13849.01178 | KE16: 14125.99202 | KF16: 14408.51186 | KG16: 14696.68209 | KH16: 14990.61574 | KI16: 15290.42805 | KJ16: 15596.23661 | KK16: 15908.16134 | KL16: 16226.32457 | KM16: 16550.85106 | KN16: 16881.86808 | KO16: 17219.50545 | KP16: 17563.89555 | KQ16: 17915.17347 | KR16: 18273.47693 | KS16: 18638.94647 | KT16: 19011.7254 | KU16: 19391.95991 | KV16: 19779.79911 | KW16: 20175.39509 | KX16: 20578.90299 | KY16: 20990.48105 | KZ16: 21410.29067 | LA16: 21838.49649 | LB16: 22275.26642 | LC16: 22720.77175 | LD16: 23175.18718 | LE16: 23638.69092 | LF16: 24111.46474 | LG16: 24593.69404 | LH16: 25085.56792 | LI16: 25587.27928 | LJ16: 26099.02486 | LK16: 26621.00536 | LL16: 27153.42547 | LM16: 27696.49398 | LN16: 28250.42386 | LO16: 28815.43233 | LP16: 29391.74098 | LQ16: 29979.5758 | LR16: 30579.16732 | LS16: 31190.75066 | LT16: 31814.56567 | LU16: 32450.85699 | LV16: 33099.87413 | LW16: 33761.87161 | LX16: 34437.10904 | LY16: 35125.85122 | LZ16: 35828.36825 | MA16: 36544.93561 | MB16: 37275.83433 | MC16: 38021.35101 | MD16: 38781.77803 | ME16: 39557.41359 | MF16: 40348.56186 | MG16: 41155.5331 | MH16: 41978.64376 | MI16: 42818.21664 | MJ16: 43674.58097 | MK16: 44548.07259 | ML16: 45439.03404 | MM16: 46347.81472 | MN16: 47274.77102 | MO16: 48220.26644 | MP16: 49184.67177 | MQ16: 50168.3652 | MR16: 51171.73251 | MS16: 52195.16716 | MT16: 53239.0705 | MU16: 54303.85191 | MV16: 55389.92895 | MW16: 56497.72753 | MX16: 57627.68208 | MY16: 58780.23572 | MZ16: 59955.84043 | NA16: 61154.95724 | NB16: 62378.05639 | NC16: 63625.61752 | ND16: 64898.12987 | NE16: 66196.09246 | NF16: 67520.01431 | NG16: 68870.4146 | NH16: 70247.82289 | NI16: 71652.77935 | NJ16: 73085.83494 | NK16: 74547.55163 | NL16: 76038.50267 | NM16: 77559.27272 | NN16: 79110.45817 | NO16: 80692.66734 | NP16: 82306.52068 | NQ16: 83952.6511 | NR16: 85631.70412 | NS16: 87344.3382 | NT16: 89091.22497 | NU16: 90873.04947 | NV16: 92690.51046 | NW16: 94544.32066 | NX16: 96435.20708 | NY16: 98363.91122 | NZ16: 100331.1894 | OA16: 102337.8132 | OB16: 104384.5695 | OC16: 106472.2609 | OD16: 108601.7061 | OE16: 110773.7402 | OF16: 112989.215 | OG16: 115248.9993 | OH16: 117553.9793 | OI16: 119905.0589 | OJ16: 122303.1601 | OK16: 124749.2233 | OL16: 127244.2078 | OM16: 129789.0919 | ON16: 132384.8737 | OO16: 135032.5712 | OP16: 137733.2226 | OQ16: 140487.8871 | OR16: 143297.6448 | OS16: 146163.5977 | OT16: 149086.8697 | OU16: 152068.6071 | OV16: 155109.9792 | OW16: 158212.1788 | OX16: 161376.4224 | OY16: 164603.9508 | OZ16: 167896.0298 | PA16: 171253.9504 | PB16: 174679.0295 | PC16: 178172.61 | PD16: 181736.0622 | PE16: 185370.7835 | PF16: 189078.1992 | PG16: 192859.7631 | PH16: 196716.9584 | PI16: 200651.2976 | PJ16: 204664.3235 | PK16: 208757.61 | PL16: 212932.7622 | PM16: 217191.4174 | PN16: 221535.2458 | PO16: 225965.9507 | PP16: 230485.2697 | PQ16: 235094.9751 | PR16: 239796.8746 | PS16: 244592.8121 | PT16: 249484.6683 | PU16: 254474.3617 | PV16: 259563.849 | PW16: 264755.1259 | PX16: 270050.2284 | PY16: 275451.233 | PZ16: 280960.2577 | QA16: 286579.4628 | QB16: 292311.0521 | QC16: 298157.2731 | QD16: 304120.4186 | QE16: 310202.827 | QF16: 316406.8835 | QG16: 322735.0212 | QH16: 329189.7216 | QI16: 335773.516 | QJ16: 342488.9863 | QK16: 349338.7661 | QL16: 356325.5414 | QM16: 363452.0522 | QN16: 370721.0933 | QO16: 378135.5151 | QP16: 385698.2254 | QQ16: 393412.1899 | QR16: 401280.4337 | QS16: 409306.0424 | QT16: 417492.1633 | QU16: 425842.0065 | QV16: 434358.8467 | QW16: 443046.0236 | QX16: 451906.9441 | QY16: 460945.083 | QZ16: 470163.9846 | RA16: 479567.2643 | RB16: 489158.6096 | RC16: 498941.7818 | RD16: 508920.6174 | RE16: 519099.0298 | RF16: 529481.0104 | RG16: 540070.6306 | RH16: 550872.0432 | RI16: 561889.484 | RJ16: 573127.2737 | RK16: 584589.8192 | RL16: 596281.6156 | RM16: 608207.2479 | RN16: 620371.3929 | RO16: 632778.8207 | RP16: 645434.3971 | RQ16: 658343.0851 | RR16: 671509.9468 | RS16: 684940.1457 | RT16: 698638.9486 | RU16: 712611.7276 | RV16: 726863.9621 | RW16: 741401.2414 | RX16: 756229.2662 | RY16: 771353.8515 | RZ16: 786780.9286 | SA16: 802516.5471 | SB16: 818566.8781 | SC16: 834938.2156 | SD16: 851636.98 | SE16: 868669.7196 | SF16: 886043.1139 | SG16: 903763.9762 | SH16: 921839.2557 | SI16: 940276.0409 | SJ16: 959081.5617 | SK16: 978263.1929
D17: Closing Book Value | E17: =Inputs!G14 -> 1000 | F17: =F14+F15-F16 -> 1020 | G17: =G14+G15-G16 -> 1040.4 | H17: 1061.208 | I17: 1082.43216 | J17: 1104.080803 | K17: 1126.162419 | L17: 1148.685668 | M17: 1171.659381 | N17: 1195.092569 | O17: 1218.99442 | P17: 1243.374308 | Q17: 1268.241795 | R17: 1293.60663 | S17: 1319.478763 | T17: 1345.868338 | U17: 1372.785705 | V17: 1400.241419 | W17: 1428.246248 | X17: 1456.811173 | Y17: 1485.947396 | Z17: 1515.666344 | AA17: 1545.979671 | AB17: 1576.899264 | AC17: 1608.437249 | AD17: 1640.605994 | AE17: 1673.418114 | AF17: 1706.886477 | AG17: 1741.024206 | AH17: 1775.84469 | AI17: 1811.361584 | AJ17: 1847.588816 | AK17: 1884.540592 | AL17: 1922.231404 | AM17: 1960.676032 | AN17: 1999.889553 | AO17: 2039.887344 | AP17: 2080.685091 | AQ17: 2122.298792 | AR17: 2164.744768 | AS17: 2208.039664 | AT17: 2252.200457 | AU17: 2297.244466 | AV17: 2343.189355 | AW17: 2390.053142 | AX17: 2437.854205 | AY17: 2486.611289 | AZ17: 2536.343515 | BA17: 2587.070385 | BB17: 2638.811793 | BC17: 2691.588029 | BD17: 2745.41979 | BE17: 2800.328185 | BF17: 2856.334749 | BG17: 2913.461444 | BH17: 2971.730673 | BI17: 3031.165286 | BJ17: 3091.788592 | BK17: 3153.624364 | BL17: 3216.696851 | BM17: 3281.030788 | BN17: 3346.651404 | BO17: 3413.584432 | BP17: 3481.856121 | BQ17: 3551.493243 | BR17: 3622.523108 | BS17: =BS14+BS15-BS16 -> 3694.97357 | BT17: 3768.873042 | BU17: 3844.250503 | BV17: 3921.135513 | BW17: 3999.558223 | BX17: 4079.549387 | BY17: 4161.140375 | BZ17: 4244.363183 | CA17: 4329.250446 | CB17: 4415.835455 | CC17: 4504.152164 | CD17: 4594.235208 | CE17: 4686.119912 | CF17: 4779.84231 | CG17: 4875.439156 | CH17: 4972.947939 | CI17: 5072.406898 | CJ17: 5173.855036 | CK17: 5277.332137 | CL17: 5382.878779 | CM17: 5490.536355 | CN17: 5600.347082 | CO17: 5712.354024 | CP17: 5826.601104 | CQ17: 5943.133126 | CR17: 6061.995789 | CS17: 6183.235705 | CT17: 6306.900419 | CU17: 6433.038427 | CV17: 6561.699196 | CW17: 6692.93318 | CX17: 6826.791843 | CY17: 6963.32768 | CZ17: 7102.594234 | DA17: 7244.646118 | DB17: 7389.539041 | DC17: 7537.329821 | DD17: 7688.076418 | DE17: 7841.837946 | DF17: 7998.674705 | DG17: 8158.648199 | DH17: 8321.821163 | DI17: 8488.257586 | DJ17: 8658.022738 | DK17: 8831.183193 | DL17: 9007.806857 | DM17: 9187.962994 | DN17: 9371.722254 | DO17: 9559.156699 | DP17: 9750.339833 | DQ17: 9945.34663 | DR17: 10144.25356 | DS17: 10347.13863 | DT17: 10554.08141 | DU17: 10765.16303 | DV17: 10980.46629 | DW17: 11200.07562 | DX17: 11424.07713 | DY17: 11652.55868 | DZ17: 11885.60985 | EA17: 12123.32205 | EB17: 12365.78849 | EC17: 12613.10426 | ED17: 12865.36634 | EE17: =EE14+EE15-EE16 -> 13122.67367 | EF17: 13385.12714 | EG17: 13652.82969 | EH17: 13925.88628 | EI17: 14204.404 | EJ17: 14488.49208 | EK17: 14778.26193 | EL17: 15073.82716 | EM17: 15375.30371 | EN17: 15682.80978 | EO17: 15996.46598 | EP17: 16316.3953 | EQ17: 16642.7232 | ER17: 16975.57767 | ES17: 17315.08922 | ET17: 17661.39101 | EU17: 18014.61883 | EV17: 18374.9112 | EW17: 18742.40943 | EX17: 19117.25761 | EY17: 19499.60277 | EZ17: 19889.59482 | FA17: 20287.38672 | FB17: 20693.13445 | FC17: 21106.99714 | FD17: 21529.13708 | FE17: 21959.71983 | FF17: 22398.91422 | FG17: 22846.89251 | FH17: 23303.83036 | FI17: 23769.90696 | FJ17: 24245.3051 | FK17: 24730.21121 | FL17: 25224.81543 | FM17: 25729.31174 | FN17: 26243.89797 | FO17: 26768.77593 | FP17: 27304.15145 | FQ17: 27850.23448 | FR17: 28407.23917 | FS17: 28975.38395 | FT17: 29554.89163 | FU17: 30145.98947 | FV17: 30748.90925 | FW17: 31363.88744 | FX17: 31991.16519 | FY17: 32630.98849 | FZ17: 33283.60826 | GA17: 33949.28043 | GB17: 34628.26604 | GC17: 35320.83136 | GD17: 36027.24798 | GE17: 36747.79294 | GF17: 37482.7488 | GG17: 38232.40378 | GH17: 38997.05185 | GI17: 39776.99289 | GJ17: 40572.53275 | GK17: 41383.9834 | GL17: 42211.66307 | GM17: 43055.89633 | GN17: 43917.01426 | GO17: 44795.35455 | GP17: 45691.26164 | GQ17: =GQ14+GQ15-GQ16 -> 46605.08687 | GR17: 47537.18861 | GS17: 48487.93238 | GT17: 49457.69103 | GU17: 50446.84485 | GV17: 51455.78174 | GW17: 52484.89738 | GX17: 53534.59533 | GY17: 54605.28723 | GZ17: 55697.39298 | HA17: 56811.34084 | HB17: 57947.56765 | HC17: 59106.51901 | HD17: 60288.64939 | HE17: 61494.42237 | HF17: 62724.31082 | HG17: 63978.79704 | HH17: 65258.37298 | HI17: 66563.54044 | HJ17: 67894.81125 | HK17: 69252.70747 | HL17: 70637.76162 | HM17: 72050.51685 | HN17: 73491.52719 | HO17: 74961.35774 | HP17: 76460.58489 | HQ17: 77989.79659 | HR17: 79549.59252 | HS17: 81140.58437 | HT17: 82763.39606 | HU17: 84418.66398 | HV17: 86107.03726 | HW17: 87829.178 | HX17: 89585.76156 | HY17: 91377.47679 | HZ17: 93205.02633 | IA17: 95069.12686 | IB17: 96970.50939 | IC17: 98909.91958 | ID17: 100888.118 | IE17: 102905.8803 | IF17: 104963.9979 | IG17: 107063.2779 | IH17: 109204.5435 | II17: 111388.6343 | IJ17: 113616.407 | IK17: 115888.7352 | IL17: 118206.5099 | IM17: 120570.6401 | IN17: 122982.0529 | IO17: 125441.6939 | IP17: 127950.5278 | IQ17: 130509.5383 | IR17: 133119.7291 | IS17: 135782.1237 | IT17: 138497.7662 | IU17: 141267.7215 | IV17: 144093.0759 | IW17: 146974.9374 | IX17: 149914.4362 | IY17: 152912.7249 | IZ17: 155970.9794 | JA17: 159090.399 | JB17: 162272.207 | JC17: =JC14+JC15-JC16 -> 165517.6511 | JD17: 168828.0041 | JE17: 172204.5642 | JF17: 175648.6555 | JG17: 179161.6286 | JH17: 182744.8612 | JI17: 186399.7584 | JJ17: 190127.7536 | JK17: 193930.3087 | JL17: 197808.9148 | JM17: 201765.0931 | JN17: 205800.395 | JO17: 209916.4029 | JP17: 214114.7309 | JQ17: 218397.0256 | JR17: 222764.9661 | JS17: 227220.2654 | JT17: 231764.6707 | JU17: 236399.9641 | JV17: 241127.9634 | JW17: 245950.5227 | JX17: 250869.5331 | JY17: 255886.9238 | JZ17: 261004.6623 | KA17: 266224.7555 | KB17: 271549.2506 | KC17: 276980.2356 | KD17: 282519.8403 | KE17: 288170.2371 | KF17: 293933.6419 | KG17: 299812.3147 | KH17: 305808.561 | KI17: 311924.7322 | KJ17: 318163.2269 | KK17: 324526.4914 | KL17: 331017.0213 | KM17: 337637.3617 | KN17: 344390.1089 | KO17: 351277.9111 | KP17: 358303.4693 | KQ17: 365469.5387 | KR17: 372778.9295 | KS17: 380234.5081 | KT17: =KT14+KT15-KT16 -> 387839.1982 | KU17: =KU14+KU15-KU16 -> 395595.9822 | KV17: =KV14+KV15-KV16 -> 403507.9018 | KW17: =KW14+KW15-KW16 -> 411578.0599 | KX17: =KX14+KX15-KX16 -> 419809.6211 | KY17: =KY14+KY15-KY16 -> 428205.8135 | KZ17: =KZ14+KZ15-KZ16 -> 436769.9298 | LA17: =LA14+LA15-LA16 -> 445505.3284 | LB17: =LB14+LB15-LB16 -> 454415.4349 | LC17: =LC14+LC15-LC16 -> 463503.7436 | LD17: =LD14+LD15-LD16 -> 472773.8185 | LE17: =LE14+LE15-LE16 -> 482229.2949 | LF17: =LF14+LF15-LF16 -> 491873.8808 | LG17: =LG14+LG15-LG16 -> 501711.3584 | LH17: =LH14+LH15-LH16 -> 511745.5855 | LI17: =LI14+LI15-LI16 -> 521980.4972 | LJ17: =LJ14+LJ15-LJ16 -> 532420.1072 | LK17: =LK14+LK15-LK16 -> 543068.5093 | LL17: =LL14+LL15-LL16 -> 553929.8795 | LM17: =LM14+LM15-LM16 -> 565008.4771 | LN17: =LN14+LN15-LN16 -> 576308.6467 | LO17: =LO14+LO15-LO16 -> 587834.8196 | LP17: =LP14+LP15-LP16 -> 599591.516 | LQ17: =LQ14+LQ15-LQ16 -> 611583.3463 | LR17: =LR14+LR15-LR16 -> 623815.0132 | LS17: =LS14+LS15-LS16 -> 636291.3135 | LT17: =LT14+LT15-LT16 -> 649017.1398 | LU17: =LU14+LU15-LU16 -> 661997.4826 | LV17: =LV14+LV15-LV16 -> 675237.4322 | LW17: =LW14+LW15-LW16 -> 688742.1809 | LX17: =LX14+LX15-LX16 -> 702517.0245 | LY17: =LY14+LY15-LY16 -> 716567.365 | LZ17: =LZ14+LZ15-LZ16 -> 730898.7123 | MA17: =MA14+MA15-MA16 -> 745516.6865 | MB17: =MB14+MB15-MB16 -> 760427.0202 | MC17: =MC14+MC15-MC16 -> 775635.5606 | MD17: =MD14+MD15-MD16 -> 791148.2719 | ME17: =ME14+ME15-ME16 -> 806971.2373 | MF17: =MF14+MF15-MF16 -> 823110.662 | MG17: =MG14+MG15-MG16 -> 839572.8753 | MH17: =MH14+MH15-MH16 -> 856364.3328 | MI17: =MI14+MI15-MI16 -> 873491.6194 | MJ17: =MJ14+MJ15-MJ16 -> 890961.4518 | MK17: =MK14+MK15-MK16 -> 908780.6809 | ML17: =ML14+ML15-ML16 -> 926956.2945 | MM17: =MM14+MM15-MM16 -> 945495.4204 | MN17: =MN14+MN15-MN16 -> 964405.3288 | MO17: =MO14+MO15-MO16 -> 983693.4354 | MP17: =MP14+MP15-MP16 -> 1003367.304 | MQ17: =MQ14+MQ15-MQ16 -> 1023434.65 | MR17: =MR14+MR15-MR16 -> 1043903.343 | MS17: =MS14+MS15-MS16 -> 1064781.41 | MT17: =MT14+MT15-MT16 -> 1086077.038 | MU17: =MU14+MU15-MU16 -> 1107798.579 | MV17: =MV14+MV15-MV16 -> 1129954.551 | MW17: =MW14+MW15-MW16 -> 1152553.642 | MX17: =MX14+MX15-MX16 -> 1175604.714 | MY17: =MY14+MY15-MY16 -> 1199116.809 | MZ17: =MZ14+MZ15-MZ16 -> 1223099.145 | NA17: =NA14+NA15-NA16 -> 1247561.128 | NB17: =NB14+NB15-NB16 -> 1272512.35 | NC17: =NC14+NC15-NC16 -> 1297962.597 | ND17: =ND14+ND15-ND16 -> 1323921.849 | NE17: =NE14+NE15-NE16 -> 1350400.286 | NF17: =NF14+NF15-NF16 -> 1377408.292 | NG17: =NG14+NG15-NG16 -> 1404956.458 | NH17: =NH14+NH15-NH16 -> 1433055.587 | NI17: =NI14+NI15-NI16 -> 1461716.699 | NJ17: =NJ14+NJ15-NJ16 -> 1490951.033 | NK17: =NK14+NK15-NK16 -> 1520770.053 | NL17: =NL14+NL15-NL16 -> 1551185.454 | NM17: =NM14+NM15-NM16 -> 1582209.163 | NN17: =NN14+NN15-NN16 -> 1613853.347 | NO17: =NO14+NO15-NO16 -> 1646130.414 | NP17: =NP14+NP15-NP16 -> 1679053.022 | NQ17: =NQ14+NQ15-NQ16 -> 1712634.082 | NR17: =NR14+NR15-NR16 -> 1746886.764 | NS17: =NS14+NS15-NS16 -> 1781824.499 | NT17: =NT14+NT15-NT16 -> 1817460.989 | NU17: =NU14+NU15-NU16 -> 1853810.209 | NV17: =NV14+NV15-NV16 -> 1890886.413 | NW17: =NW14+NW15-NW16 -> 1928704.142 | NX17: =NX14+NX15-NX16 -> 1967278.224 | NY17: =NY14+NY15-NY16 -> 2006623.789 | NZ17: =NZ14+NZ15-NZ16 -> 2046756.265 | OA17: =OA14+OA15-OA16 -> 2087691.39 | OB17: =OB14+OB15-OB16 -> 2129445.218 | OC17: =OC14+OC15-OC16 -> 2172034.122 | OD17: =OD14+OD15-OD16 -> 2215474.805 | OE17: =OE14+OE15-OE16 -> 2259784.301 | OF17: =OF14+OF15-OF16 -> 2304979.987 | OG17: =OG14+OG15-OG16 -> 2351079.586 | OH17: =OH14+OH15-OH16 -> 2398101.178 | OI17: =OI14+OI15-OI16 -> 2446063.202 | OJ17: =OJ14+OJ15-OJ16 -> 2494984.466 | OK17: =OK14+OK15-OK16 -> 2544884.155 | OL17: =OL14+OL15-OL16 -> 2595781.838 | OM17: =OM14+OM15-OM16 -> 2647697.475 | ON17: =ON14+ON15-ON16 -> 2700651.424 | OO17: =OO14+OO15-OO16 -> 2754664.453 | OP17: =OP14+OP15-OP16 -> 2809757.742 | OQ17: =OQ14+OQ15-OQ16 -> 2865952.897 | OR17: =OR14+OR15-OR16 -> 2923271.955 | OS17: =OS14+OS15-OS16 -> 2981737.394 | OT17: =OT14+OT15-OT16 -> 3041372.142 | OU17: =OU14+OU15-OU16 -> 3102199.584 | OV17: =OV14+OV15-OV16 -> 3164243.576 | OW17: =OW14+OW15-OW16 -> 3227528.448 | OX17: =OX14+OX15-OX16 -> 3292079.017 | OY17: =OY14+OY15-OY16 -> 3357920.597 | OZ17: =OZ14+OZ15-OZ16 -> 3425079.009 | PA17: =PA14+PA15-PA16 -> 3493580.589 | PB17: =PB14+PB15-PB16 -> 3563452.201 | PC17: =PC14+PC15-PC16 -> 3634721.245 | PD17: =PD14+PD15-PD16 -> 3707415.67 | PE17: =PE14+PE15-PE16 -> 3781563.983 | PF17: =PF14+PF15-PF16 -> 3857195.263 | PG17: =PG14+PG15-PG16 -> 3934339.168 | PH17: =PH14+PH15-PH16 -> 4013025.951 | PI17: =PI14+PI15-PI16 -> 4093286.471 | PJ17: =PJ14+PJ15-PJ16 -> 4175152.2 | PK17: =PK14+PK15-PK16 -> 4258655.244 | PL17: =PL14+PL15-PL16 -> 4343828.349 | PM17: =PM14+PM15-PM16 -> 4430704.916 | PN17: =PN14+PN15-PN16 -> 4519319.014 | PO17: =PO14+PO15-PO16 -> 4609705.394 | PP17: =PP14+PP15-PP16 -> 4701899.502 | PQ17: =PQ14+PQ15-PQ16 -> 4795937.492 | PR17: =PR14+PR15-PR16 -> 4891856.242 | PS17: =PS14+PS15-PS16 -> 4989693.367 | PT17: =PT14+PT15-PT16 -> 5089487.234 | PU17: =PU14+PU15-PU16 -> 5191276.979 | PV17: =PV14+PV15-PV16 -> 5295102.519 | PW17: =PW14+PW15-PW16 -> 5401004.569 | PX17: =PX14+PX15-PX16 -> 5509024.66 | PY17: =PY14+PY15-PY16 -> 5619205.154 | PZ17: =PZ14+PZ15-PZ16 -> 5731589.257 | QA17: =QA14+QA15-QA16 -> 5846221.042 | QB17: =QB14+QB15-QB16 -> 5963145.463 | QC17: =QC14+QC15-QC16 -> 6082408.372 | QD17: =QD14+QD15-QD16 -> 6204056.539 | QE17: =QE14+QE15-QE16 -> 6328137.67 | QF17: =QF14+QF15-QF16 -> 6454700.423 | QG17: =QG14+QG15-QG16 -> 6583794.432 | QH17: =QH14+QH15-QH16 -> 6715470.321 | QI17: =QI14+QI15-QI16 -> 6849779.727 | QJ17: =QJ14+QJ15-QJ16 -> 6986775.322 | QK17: =QK14+QK15-QK16 -> 7126510.828 | QL17: =QL14+QL15-QL16 -> 7269041.045 | QM17: =QM14+QM15-QM16 -> 7414421.865 | QN17: =QN14+QN15-QN16 -> 7562710.303 | QO17: =QO14+QO15-QO16 -> 7713964.509 | QP17: =QP14+QP15-QP16 -> 7868243.799 | QQ17: =QQ14+QQ15-QQ16 -> 8025608.675 | QR17: =QR14+QR15-QR16 -> 8186120.848 | QS17: =QS14+QS15-QS16 -> 8349843.265 | QT17: =QT14+QT15-QT16 -> 8516840.131 | QU17: =QU14+QU15-QU16 -> 8687176.933 | QV17: =QV14+QV15-QV16 -> 8860920.472 | QW17: =QW14+QW15-QW16 -> 9038138.881 | QX17: =QX14+QX15-QX16 -> 9218901.659 | QY17: =QY14+QY15-QY16 -> 9403279.692 | QZ17: =QZ14+QZ15-QZ16 -> 9591345.286 | RA17: =RA14+RA15-RA16 -> 9783172.192 | RB17: =RB14+RB15-RB16 -> 9978835.636 | RC17: =RC14+RC15-RC16 -> 10178412.35 | RD17: =RD14+RD15-RD16 -> 10381980.6 | RE17: =RE14+RE15-RE16 -> 10589620.21 | RF17: =RF14+RF15-RF16 -> 10801412.61 | RG17: =RG14+RG15-RG16 -> 11017440.86 | RH17: =RH14+RH15-RH16 -> 11237789.68 | RI17: =RI14+RI15-RI16 -> 11462545.47 | RJ17: =RJ14+RJ15-RJ16 -> 11691796.38 | RK17: =RK14+RK15-RK16 -> 11925632.31 | RL17: =RL14+RL15-RL16 -> 12164144.96 | RM17: =RM14+RM15-RM16 -> 12407427.86 | RN17: =RN14+RN15-RN16 -> 12655576.41 | RO17: =RO14+RO15-RO16 -> 12908687.94 | RP17: =RP14+RP15-RP16 -> 13166861.7 | RQ17: =RQ14+RQ15-RQ16 -> 13430198.94 | RR17: =RR14+RR15-RR16 -> 13698802.91 | RS17: =RS14+RS15-RS16 -> 13972778.97 | RT17: =RT14+RT15-RT16 -> 14252234.55 | RU17: =RU14+RU15-RU16 -> 14537279.24 | RV17: =RV14+RV15-RV16 -> 14828024.83 | RW17: =RW14+RW15-RW16 -> 15124585.32 | RX17: =RX14+RX15-RX16 -> 15427077.03 | RY17: =RY14+RY15-RY16 -> 15735618.57 | RZ17: =RZ14+RZ15-RZ16 -> 16050330.94 | SA17: =SA14+SA15-SA16 -> 16371337.56 | SB17: =SB14+SB15-SB16 -> 16698764.31 | SC17: =SC14+SC15-SC16 -> 17032739.6 | SD17: =SD14+SD15-SD16 -> 17373394.39 | SE17: =SE14+SE15-SE16 -> 17720862.28 | SF17: =SF14+SF15-SF16 -> 18075279.52 | SG17: =SG14+SG15-SG16 -> 18436785.11 | SH17: =SH14+SH15-SH16 -> 18805520.82 | SI17: =SI14+SI15-SI16 -> 19181631.23 | SJ17: =SJ14+SJ15-SJ16 -> 19565263.86 | SK17: =SK14+SK15-SK16 -> 19956569.14
D18: Terminal Value | SK18: =SK15*(1-F6/F5)/(E8-E6) -> 24456579.82
D19: Total Cash | F19: =F16+F18 -> 29.15748089 | G19: =G16+G18 -> 34.37304635 | H19: 40.22211286 | I19: 46.77780307 | J19: 54.121608 | K19: 55.20404016 | L19: 56.30812096 | M19: 57.43428338 | N19: 58.58296905 | O19: 59.75462843 | P19: 60.949721 | Q19: 62.16871542 | R19: 63.41208973 | S19: 64.68033152 | T19: 65.97393815 | U19: 67.29341692 | V19: 68.63928525 | W19: 70.01207096 | X19: 71.41231238 | Y19: 72.84055863 | Z19: 74.2973698 | AA19: 75.78331719 | AB19: 77.29898354 | AC19: 78.84496321 | AD19: 80.42186247 | AE19: 82.03029972 | AF19: 83.67090572 | AG19: 85.34432383 | AH19: 87.05121031 | AI19: 88.79223451 | AJ19: 90.56807921 | AK19: 92.37944079 | AL19: 94.22702961 | AM19: 96.1115702 | AN19: 98.0338016 | AO19: 99.99447763 | AP19: 101.9943672 | AQ19: 104.0342545 | AR19: 106.1149396 | AS19: 108.2372384 | AT19: 110.4019832 | AU19: 112.6100228 | AV19: 114.8622233 | AW19: 117.1594678 | AX19: 119.5026571 | AY19: 121.8927103 | AZ19: 124.3305645 | BA19: 126.8171758 | BB19: 129.3535193 | BC19: 131.9405897 | BD19: 134.5794015 | BE19: 137.2709895 | BF19: 140.0164093 | BG19: 142.8167375 | BH19: 145.6730722 | BI19: 148.5865337 | BJ19: 151.5582643 | BK19: 154.5894296 | BL19: 157.6812182 | BM19: 160.8348426 | BN19: 164.0515394 | BO19: 167.3325702 | BP19: 170.6792216 | BQ19: 174.092806 | BR19: 177.5746622 | BS19: =BS16+BS18 -> 181.1261554 | BT19: 184.7486785 | BU19: 188.4436521 | BV19: 192.2125251 | BW19: 196.0567756 | BX19: 199.9779111 | BY19: 203.9774694 | BZ19: 208.0570188 | CA19: 212.2181591 | CB19: 216.4625223 | CC19: 220.7917728 | CD19: 225.2076082 | CE19: 229.7117604 | CF19: 234.3059956 | CG19: 238.9921155 | CH19: 243.7719578 | CI19: 248.647397 | CJ19: 253.6203449 | CK19: 258.6927518 | CL19: 263.8666068 | CM19: 269.143939 | CN19: 274.5268178 | CO19: 280.0173541 | CP19: 285.6177012 | CQ19: 291.3300552 | CR19: 297.1566563 | CS19: 303.0997894 | CT19: 309.1617852 | CU19: 315.3450209 | CV19: 321.6519214 | CW19: 328.0849598 | CX19: 334.646659 | CY19: 341.3395922 | CZ19: 348.166384 | DA19: 355.1297117 | DB19: 362.2323059 | DC19: 369.476952 | DD19: 376.8664911 | DE19: 384.4038209 | DF19: 392.0918973 | DG19: 399.9337353 | DH19: 407.93241 | DI19: 416.0910582 | DJ19: 424.4128793 | DK19: 432.9011369 | DL19: 441.5591596 | DM19: 450.3903428 | DN19: 459.3981497 | DO19: 468.5861127 | DP19: 477.9578349 | DQ19: 487.5169916 | DR19: 497.2673315 | DS19: 507.2126781 | DT19: 517.3569317 | DU19: 527.7040703 | DV19: 538.2581517 | DW19: 549.0233147 | DX19: 560.003781 | DY19: 571.2038567 | DZ19: 582.6279338 | EA19: 594.2804925 | EB19: 606.1661023 | EC19: 618.2894244 | ED19: 630.6552129 | EE19: =EE16+EE18 -> 643.2683171 | EF19: 656.1336835 | EG19: 669.2563571 | EH19: 682.6414843 | EI19: 696.2943139 | EJ19: 710.2202002 | EK19: 724.4246042 | EL19: 738.9130963 | EM19: 753.6913582 | EN19: 768.7651854 | EO19: 784.1404891 | EP19: 799.8232989 | EQ19: 815.8197649 | ER19: 832.1361602 | ES19: 848.7788834 | ET19: 865.754461 | EU19: 883.0695503 | EV19: 900.7309413 | EW19: 918.7455601 | EX19: 937.1204713 | EY19: 955.8628807 | EZ19: 974.9801383 | FA19: 994.4797411 | FB19: 1014.369336 | FC19: 1034.656723 | FD19: 1055.349857 | FE19: 1076.456854 | FF19: 1097.985991 | FG19: 1119.945711 | FH19: 1142.344625 | FI19: 1165.191518 | FJ19: 1188.495348 | FK19: 1212.265255 | FL19: 1236.51056 | FM19: 1261.240772 | FN19: 1286.465587 | FO19: 1312.194899 | FP19: 1338.438797 | FQ19: 1365.207573 | FR19: 1392.511724 | FS19: 1420.361959 | FT19: 1448.769198 | FU19: 1477.744582 | FV19: 1507.299473 | FW19: 1537.445463 | FX19: 1568.194372 | FY19: 1599.558259 | FZ19: 1631.549425 | GA19: 1664.180413 | GB19: 1697.464021 | GC19: 1731.413302 | GD19: 1766.041568 | GE19: 1801.362399 | GF19: 1837.389647 | GG19: 1874.13744 | GH19: 1911.620189 | GI19: 1949.852593 | GJ19: 1988.849645 | GK19: 2028.626637 | GL19: 2069.19917 | GM19: 2110.583154 | GN19: 2152.794817 | GO19: 2195.850713 | GP19: 2239.767727 | GQ19: =GQ16+GQ18 -> 2284.563082 | GR19: 2330.254343 | GS19: 2376.85943 | GT19: 2424.396619 | GU19: 2472.884551 | GV19: 2522.342242 | GW19: 2572.789087 | GX19: 2624.244869 | GY19: 2676.729766 | GZ19: 2730.264362 | HA19: 2784.869649 | HB19: 2840.567042 | HC19: 2897.378383 | HD19: 2955.32595 | HE19: 3014.432469 | HF19: 3074.721119 | HG19: 3136.215541 | HH19: 3198.939852 | HI19: 3262.918649 | HJ19: 3328.177022 | HK19: 3394.740562 | HL19: 3462.635374 | HM19: 3531.888081 | HN19: 3602.525843 | HO19: 3674.57636 | HP19: 3748.067887 | HQ19: 3823.029245 | HR19: 3899.489829 | HS19: 3977.479626 | HT19: 4057.029219 | HU19: 4138.169803 | HV19: 4220.933199 | HW19: 4305.351863 | HX19: 4391.4589 | HY19: 4479.288078 | HZ19: 4568.87384 | IA19: 4660.251317 | IB19: 4753.456343 | IC19: 4848.52547 | ID19: 4945.495979 | IE19: 5044.405899 | IF19: 5145.294017 | IG19: 5248.199897 | IH19: 5353.163895 | II19: 5460.227173 | IJ19: 5569.431716 | IK19: 5680.820351 | IL19: 5794.436758 | IM19: 5910.325493 | IN19: 6028.532003 | IO19: 6149.102643 | IP19: 6272.084696 | IQ19: 6397.526389 | IR19: 6525.476917 | IS19: 6655.986456 | IT19: 6789.106185 | IU19: 6924.888308 | IV19: 7063.386075 | IW19: 7204.653796 | IX19: 7348.746872 | IY19: 7495.721809 | IZ19: 7645.636246 | JA19: 7798.548971 | JB19: 7954.51995 | JC19: =JC16+JC18 -> 8113.610349 | JD19: 8275.882556 | JE19: 8441.400207 | JF19: 8610.228211 | JG19: 8782.432775 | JH19: 8958.081431 | JI19: 9137.24306 | JJ19: 9319.987921 | JK19: 9506.387679 | JL19: 9696.515433 | JM19: 9890.445741 | JN19: 10088.25466 | JO19: 10290.01975 | JP19: 10495.82014 | JQ19: 10705.73655 | JR19: 10919.85128 | JS19: 11138.2483 | JT19: 11361.01327 | JU19: 11588.23354 | JV19: 11819.99821 | JW19: 12056.39817 | JX19: 12297.52613 | JY19: 12543.47666 | JZ19: 12794.34619 | KA19: 13050.23311 | KB19: 13311.23778 | KC19: 13577.46253 | KD19: 13849.01178 | KE19: 14125.99202 | KF19: 14408.51186 | KG19: 14696.68209 | KH19: 14990.61574 | KI19: 15290.42805 | KJ19: 15596.23661 | KK19: 15908.16134 | KL19: 16226.32457 | KM19: 16550.85106 | KN19: 16881.86808 | KO19: 17219.50545 | KP19: 17563.89555 | KQ19: 17915.17347 | KR19: 18273.47693 | KS19: 18638.94647 | KT19: 19011.7254 | KU19: 19391.95991 | KV19: 19779.79911 | KW19: 20175.39509 | KX19: 20578.90299 | KY19: 20990.48105 | KZ19: 21410.29067 | LA19: 21838.49649 | LB19: 22275.26642 | LC19: 22720.77175 | LD19: 23175.18718 | LE19: 23638.69092 | LF19: 24111.46474 | LG19: 24593.69404 | LH19: 25085.56792 | LI19: 25587.27928 | LJ19: 26099.02486 | LK19: 26621.00536 | LL19: 27153.42547 | LM19: 27696.49398 | LN19: 28250.42386 | LO19: =LO16+LO18 -> 28815.43233 | LP19: 29391.74098 | LQ19: 29979.5758 | LR19: 30579.16732 | LS19: 31190.75066 | LT19: 31814.56567 | LU19: 32450.85699 | LV19: 33099.87413 | LW19: 33761.87161 | LX19: 34437.10904 | LY19: 35125.85122 | LZ19: 35828.36825 | MA19: 36544.93561 | MB19: 37275.83433 | MC19: 38021.35101 | MD19: 38781.77803 | ME19: 39557.41359 | MF19: 40348.56186 | MG19: 41155.5331 | MH19: 41978.64376 | MI19: 42818.21664 | MJ19: 43674.58097 | MK19: 44548.07259 | ML19: 45439.03404 | MM19: 46347.81472 | MN19: 47274.77102 | MO19: 48220.26644 | MP19: 49184.67177 | MQ19: 50168.3652 | MR19: 51171.73251 | MS19: 52195.16716 | MT19: 53239.0705 | MU19: 54303.85191 | MV19: 55389.92895 | MW19: 56497.72753 | MX19: 57627.68208 | MY19: 58780.23572 | MZ19: 59955.84043 | NA19: 61154.95724 | NB19: 62378.05639 | NC19: 63625.61752 | ND19: 64898.12987 | NE19: 66196.09246 | NF19: 67520.01431 | NG19: 68870.4146 | NH19: 70247.82289 | NI19: 71652.77935 | NJ19: 73085.83494 | NK19: 74547.55163 | NL19: 76038.50267 | NM19: 77559.27272 | NN19: 79110.45817 | NO19: 80692.66734 | NP19: 82306.52068 | NQ19: 83952.6511 | NR19: 85631.70412 | NS19: 87344.3382 | NT19: 89091.22497 | NU19: 90873.04947 | NV19: 92690.51046 | NW19: 94544.32066 | NX19: 96435.20708 | NY19: 98363.91122 | NZ19: 100331.1894 | OA19: =OA16+OA18 -> 102337.8132 | OB19: 104384.5695 | OC19: 106472.2609 | OD19: 108601.7061 | OE19: 110773.7402 | OF19: 112989.215 | OG19: 115248.9993 | OH19: 117553.9793 | OI19: 119905.0589 | OJ19: 122303.1601 | OK19: 124749.2233 | OL19: 127244.2078 | OM19: 129789.0919 | ON19: 132384.8737 | OO19: 135032.5712 | OP19: 137733.2226 | OQ19: 140487.8871 | OR19: 143297.6448 | OS19: 146163.5977 | OT19: 149086.8697 | OU19: 152068.6071 | OV19: 155109.9792 | OW19: 158212.1788 | OX19: 161376.4224 | OY19: 164603.9508 | OZ19: 167896.0298 | PA19: 171253.9504 | PB19: 174679.0295 | PC19: 178172.61 | PD19: 181736.0622 | PE19: 185370.7835 | PF19: 189078.1992 | PG19: 192859.7631 | PH19: 196716.9584 | PI19: 200651.2976 | PJ19: 204664.3235 | PK19: 208757.61 | PL19: 212932.7622 | PM19: 217191.4174 | PN19: 221535.2458 | PO19: 225965.9507 | PP19: 230485.2697 | PQ19: 235094.9751 | PR19: 239796.8746 | PS19: 244592.8121 | PT19: 249484.6683 | PU19: 254474.3617 | PV19: 259563.849 | PW19: 264755.1259 | PX19: 270050.2284 | PY19: 275451.233 | PZ19: 280960.2577 | QA19: 286579.4628 | QB19: 292311.0521 | QC19: 298157.2731 | QD19: 304120.4186 | QE19: 310202.827 | QF19: 316406.8835 | QG19: 322735.0212 | QH19: 329189.7216 | QI19: 335773.516 | QJ19: 342488.9863 | QK19: 349338.7661 | QL19: 356325.5414 | QM19: =QM16+QM18 -> 363452.0522 | QN19: 370721.0933 | QO19: 378135.5151 | QP19: 385698.2254 | QQ19: 393412.1899 | QR19: 401280.4337 | QS19: 409306.0424 | QT19: 417492.1633 | QU19: 425842.0065 | QV19: 434358.8467 | QW19: 443046.0236 | QX19: 451906.9441 | QY19: 460945.083 | QZ19: 470163.9846 | RA19: 479567.2643 | RB19: 489158.6096 | RC19: 498941.7818 | RD19: 508920.6174 | RE19: 519099.0298 | RF19: 529481.0104 | RG19: 540070.6306 | RH19: 550872.0432 | RI19: 561889.484 | RJ19: 573127.2737 | RK19: 584589.8192 | RL19: 596281.6156 | RM19: 608207.2479 | RN19: 620371.3929 | RO19: 632778.8207 | RP19: 645434.3971 | RQ19: 658343.0851 | RR19: 671509.9468 | RS19: 684940.1457 | RT19: 698638.9486 | RU19: 712611.7276 | RV19: 726863.9621 | RW19: 741401.2414 | RX19: 756229.2662 | RY19: 771353.8515 | RZ19: 786780.9286 | SA19: 802516.5471 | SB19: 818566.8781 | SC19: 834938.2156 | SD19: 851636.98 | SE19: 868669.7196 | SF19: 886043.1139 | SG19: 903763.9762 | SH19: 921839.2557 | SI19: 940276.0409 | SJ19: 959081.5617 | SK19: 25434843.02
D20: Growth Rate | G20: =G15/F15-1 -> 0.1142362334 | H20: =H15/G15-1 -> 0.1142362334 | I20: 0.1142362334 | J20: 0.1142362334 | K20: 0.02 | L20: 0.02 | M20: 0.02 | N20: 0.02 | O20: 0.02 | P20: 0.02 | Q20: 0.02 | R20: 0.02 | S20: 0.02 | T20: 0.02 | U20: 0.02 | V20: 0.02 | W20: 0.02 | X20: 0.02 | Y20: 0.02 | Z20: 0.02 | AA20: 0.02 | AB20: 0.02 | AC20: 0.02 | AD20: 0.02 | AE20: 0.02 | AF20: 0.02 | AG20: 0.02 | AH20: 0.02 | AI20: 0.02 | AJ20: 0.02 | AK20: 0.02 | AL20: 0.02 | AM20: 0.02 | AN20: 0.02 | AO20: 0.02 | AP20: 0.02 | AQ20: 0.02 | AR20: 0.02 | AS20: 0.02 | AT20: 0.02 | AU20: 0.02 | AV20: 0.02 | AW20: 0.02 | AX20: 0.02 | AY20: 0.02 | AZ20: 0.02 | BA20: 0.02 | BB20: 0.02 | BC20: 0.02 | BD20: 0.02 | BE20: 0.02 | BF20: 0.02 | BG20: 0.02 | BH20: 0.02 | BI20: 0.02 | BJ20: 0.02 | BK20: 0.02 | BL20: 0.02 | BM20: 0.02 | BN20: 0.02 | BO20: 0.02 | BP20: 0.02 | BQ20: 0.02 | BR20: 0.02 | BS20: 0.02 | BT20: =BT15/BS15-1 -> 0.02 | BU20: 0.02 | BV20: 0.02 | BW20: 0.02 | BX20: 0.02 | BY20: 0.02 | BZ20: 0.02 | CA20: 0.02 | CB20: 0.02 | CC20: 0.02 | CD20: 0.02 | CE20: 0.02 | CF20: 0.02 | CG20: 0.02 | CH20: 0.02 | CI20: 0.02 | CJ20: 0.02 | CK20: 0.02 | CL20: 0.02 | CM20: 0.02 | CN20: 0.02 | CO20: 0.02 | CP20: 0.02 | CQ20: 0.02 | CR20: 0.02 | CS20: 0.02 | CT20: 0.02 | CU20: 0.02 | CV20: 0.02 | CW20: 0.02 | CX20: 0.02 | CY20: 0.02 | CZ20: 0.02 | DA20: 0.02 | DB20: 0.02 | DC20: 0.02 | DD20: 0.02 | DE20: 0.02 | DF20: 0.02 | DG20: 0.02 | DH20: 0.02 | DI20: 0.02 | DJ20: 0.02 | DK20: 0.02 | DL20: 0.02 | DM20: 0.02 | DN20: 0.02 | DO20: 0.02 | DP20: 0.02 | DQ20: 0.02 | DR20: 0.02 | DS20: 0.02 | DT20: 0.02 | DU20: 0.02 | DV20: 0.02 | DW20: 0.02 | DX20: 0.02 | DY20: 0.02 | DZ20: 0.02 | EA20: 0.02 | EB20: 0.02 | EC20: 0.02 | ED20: 0.02 | EE20: 0.02 | EF20: =EF15/EE15-1 -> 0.02 | EG20: 0.02 | EH20: 0.02 | EI20: 0.02 | EJ20: 0.02 | EK20: 0.02 | EL20: 0.02 | EM20: 0.02 | EN20: 0.02 | EO20: 0.02 | EP20: 0.02 | EQ20: 0.02 | ER20: 0.02 | ES20: 0.02 | ET20: 0.02 | EU20: 0.02 | EV20: 0.02 | EW20: 0.02 | EX20: 0.02 | EY20: 0.02 | EZ20: 0.02 | FA20: 0.02 | FB20: 0.02 | FC20: 0.02 | FD20: 0.02 | FE20: 0.02 | FF20: 0.02 | FG20: 0.02 | FH20: 0.02 | FI20: 0.02 | FJ20: 0.02 | FK20: 0.02 | FL20: 0.02 | FM20: 0.02 | FN20: 0.02 | FO20: 0.02 | FP20: 0.02 | FQ20: 0.02 | FR20: 0.02 | FS20: 0.02 | FT20: 0.02 | FU20: 0.02 | FV20: 0.02 | FW20: 0.02 | FX20: 0.02 | FY20: 0.02 | FZ20: 0.02 | GA20: 0.02 | GB20: 0.02 | GC20: 0.02 | GD20: 0.02 | GE20: 0.02 | GF20: 0.02 | GG20: 0.02 | GH20: 0.02 | GI20: 0.02 | GJ20: 0.02 | GK20: 0.02 | GL20: 0.02 | GM20: 0.02 | GN20: 0.02 | GO20: 0.02 | GP20: 0.02 | GQ20: 0.02 | GR20: =GR15/GQ15-1 -> 0.02 | GS20: 0.02 | GT20: 0.02 | GU20: 0.02 | GV20: 0.02 | GW20: 0.02 | GX20: 0.02 | GY20: 0.02 | GZ20: 0.02 | HA20: 0.02 | HB20: 0.02 | HC20: 0.02 | HD20: 0.02 | HE20: 0.02 | HF20: 0.02 | HG20: 0.02 | HH20: 0.02 | HI20: 0.02 | HJ20: 0.02 | HK20: 0.02 | HL20: 0.02 | HM20: 0.02 | HN20: 0.02 | HO20: 0.02 | HP20: 0.02 | HQ20: 0.02 | HR20: 0.02 | HS20: 0.02 | HT20: 0.02 | HU20: 0.02 | HV20: 0.02 | HW20: 0.02 | HX20: 0.02 | HY20: 0.02 | HZ20: 0.02 | IA20: 0.02 | IB20: 0.02 | IC20: 0.02 | ID20: 0.02 | IE20: 0.02 | IF20: 0.02 | IG20: 0.02 | IH20: 0.02 | II20: 0.02 | IJ20: 0.02 | IK20: 0.02 | IL20: 0.02 | IM20: 0.02 | IN20: 0.02 | IO20: 0.02 | IP20: 0.02 | IQ20: 0.02 | IR20: 0.02 | IS20: 0.02 | IT20: 0.02 | IU20: 0.02 | IV20: 0.02 | IW20: 0.02 | IX20: 0.02 | IY20: 0.02 | IZ20: 0.02 | JA20: 0.02 | JB20: 0.02 | JC20: 0.02 | JD20: =JD15/JC15-1 -> 0.02 | JE20: 0.02 | JF20: 0.02 | JG20: 0.02 | JH20: 0.02 | JI20: 0.02 | JJ20: 0.02 | JK20: 0.02 | JL20: 0.02 | JM20: 0.02 | JN20: 0.02 | JO20: 0.02 | JP20: 0.02 | JQ20: 0.02 | JR20: 0.02 | JS20: 0.02 | JT20: 0.02 | JU20: 0.02 | JV20: 0.02 | JW20: 0.02 | JX20: 0.02 | JY20: 0.02 | JZ20: 0.02 | KA20: 0.02 | KB20: 0.02 | KC20: 0.02 | KD20: 0.02 | KE20: 0.02 | KF20: 0.02 | KG20: 0.02 | KH20: 0.02 | KI20: 0.02 | KJ20: 0.02 | KK20: 0.02 | KL20: 0.02 | KM20: 0.02 | KN20: 0.02 | KO20: 0.02 | KP20: 0.02 | KQ20: 0.02 | KR20: 0.02 | KS20: 0.02 | KT20: 0.02 | KU20: 0.02 | KV20: 0.02 | KW20: 0.02 | KX20: 0.02 | KY20: 0.02 | KZ20: 0.02 | LA20: 0.02 | LB20: 0.02 | LC20: 0.02 | LD20: 0.02 | LE20: 0.02 | LF20: 0.02 | LG20: 0.02 | LH20: 0.02 | LI20: 0.02 | LJ20: 0.02 | LK20: 0.02 | LL20: 0.02 | LM20: 0.02 | LN20: 0.02 | LO20: 0.02 | LP20: =LP15/LO15-1 -> 0.02 | LQ20: 0.02 | LR20: 0.02 | LS20: 0.02 | LT20: 0.02 | LU20: 0.02 | LV20: 0.02 | LW20: 0.02 | LX20: 0.02 | LY20: 0.02 | LZ20: 0.02 | MA20: 0.02 | MB20: 0.02 | MC20: 0.02 | MD20: 0.02 | ME20: 0.02 | MF20: 0.02 | MG20: 0.02 | MH20: 0.02 | MI20: 0.02 | MJ20: 0.02 | MK20: 0.02 | ML20: 0.02 | MM20: 0.02 | MN20: 0.02 | MO20: 0.02 | MP20: 0.02 | MQ20: 0.02 | MR20: 0.02 | MS20: 0.02 | MT20: 0.02 | MU20: 0.02 | MV20: 0.02 | MW20: 0.02 | MX20: 0.02 | MY20: 0.02 | MZ20: 0.02 | NA20: 0.02 | NB20: 0.02 | NC20: 0.02 | ND20: 0.02 | NE20: 0.02 | NF20: 0.02 | NG20: 0.02 | NH20: 0.02 | NI20: 0.02 | NJ20: 0.02 | NK20: 0.02 | NL20: 0.02 | NM20: 0.02 | NN20: 0.02 | NO20: 0.02 | NP20: 0.02 | NQ20: 0.02 | NR20: 0.02 | NS20: 0.02 | NT20: 0.02 | NU20: 0.02 | NV20: 0.02 | NW20: 0.02 | NX20: 0.02 | NY20: 0.02 | NZ20: 0.02 | OA20: 0.02 | OB20: =OB15/OA15-1 -> 0.02 | OC20: 0.02 | OD20: 0.02 | OE20: 0.02 | OF20: 0.02 | OG20: 0.02 | OH20: 0.02 | OI20: 0.02 | OJ20: 0.02 | OK20: 0.02 | OL20: 0.02 | OM20: 0.02 | ON20: 0.02 | OO20: 0.02 | OP20: 0.02 | OQ20: 0.02 | OR20: 0.02 | OS20: 0.02 | OT20: 0.02 | OU20: 0.02 | OV20: 0.02 | OW20: 0.02 | OX20: 0.02 | OY20: 0.02 | OZ20: 0.02 | PA20: 0.02 | PB20: 0.02 | PC20: 0.02 | PD20: 0.02 | PE20: 0.02 | PF20: 0.02 | PG20: 0.02 | PH20: 0.02 | PI20: 0.02 | PJ20: 0.02 | PK20: 0.02 | PL20: 0.02 | PM20: 0.02 | PN20: 0.02 | PO20: 0.02 | PP20: 0.02 | PQ20: 0.02 | PR20: 0.02 | PS20: 0.02 | PT20: 0.02 | PU20: 0.02 | PV20: 0.02 | PW20: 0.02 | PX20: 0.02 | PY20: 0.02 | PZ20: 0.02 | QA20: 0.02 | QB20: 0.02 | QC20: 0.02 | QD20: 0.02 | QE20: 0.02 | QF20: 0.02 | QG20: 0.02 | QH20: 0.02 | QI20: 0.02 | QJ20: 0.02 | QK20: 0.02 | QL20: 0.02 | QM20: 0.02 | QN20: =QN15/QM15-1 -> 0.02 | QO20: 0.02 | QP20: 0.02 | QQ20: 0.02 | QR20: 0.02 | QS20: 0.02 | QT20: 0.02 | QU20: 0.02 | QV20: 0.02 | QW20: 0.02 | QX20: 0.02 | QY20: 0.02 | QZ20: 0.02 | RA20: 0.02 | RB20: 0.02 | RC20: 0.02 | RD20: 0.02 | RE20: 0.02 | RF20: 0.02 | RG20: 0.02 | RH20: 0.02 | RI20: 0.02 | RJ20: 0.02 | RK20: 0.02 | RL20: 0.02 | RM20: 0.02 | RN20: 0.02 | RO20: 0.02 | RP20: 0.02 | RQ20: 0.02 | RR20: 0.02 | RS20: 0.02 | RT20: 0.02 | RU20: 0.02 | RV20: 0.02 | RW20: 0.02 | RX20: 0.02 | RY20: 0.02 | RZ20: 0.02 | SA20: 0.02 | SB20: 0.02 | SC20: 0.02 | SD20: 0.02 | SE20: 0.02 | SF20: 0.02 | SG20: 0.02 | SH20: 0.02 | SI20: 0.02 | SJ20: 0.02 | SK20: 0.02
D22: Value | E22: =NPV($E$8,F19:SK19) -> 1200.657178 | G22: =_xlfn.FORMULATEXT(E22) -> =NPV($E$8,F19:SK19)
D23: Formula Value | E23: =Inputs!AI17 -> 803.5714286
D25: PE Ratio - Correct | E25: =E22/F15 -> 24.42470924 | G25: =_xlfn.FORMULATEXT(E25) -> =E22/F15
D26: PE Ratio - Formula | E26: =E23/F15 -> 16.34687974 | G26: =_xlfn.FORMULATEXT(E26) -> =E23/F15

Sheet Ships
B2: Timline
C3: Period | H3: 0 | I3: 1 | J3: 2 | K3: 3 | L3: 4 | M3: 5 | N3: 6 | O3: 7 | P3: 8 | Q3: 9 | R3: 10 | S3: 11 | T3: 12 | U3: 13 | V3: 14 | W3: 15 | X3: 16 | Y3: 17 | Z3: 18 | AA3: 19 | AB3: 20 | AC3: 21 | AD3: 22 | AE3: 23 | AF3: 24 | AG3: 25 | AH3: 26 | AI3: 27 | AJ3: 28 | AK3: 29 | AL3: 30 | AM3: 31 | AN3: 32 | AO3: 33 | AP3: 34 | AQ3: 35 | AR3: 36 | AS3: 37 | AT3: 38 | AU3: 39 | AV3: 40
C4: Date | E4: 2024-01-01 | H4: =E4-1 -> 2023-12-31 | I4: =EDATE(H4,12) -> 2024-12-31 | J4: =EDATE(I4,12) -> 2025-12-31 | K4: 2026-12-31 | L4: 2027-12-31 | M4: 2028-12-31 | N4: 2029-12-31 | O4: 2030-12-31 | P4: 2031-12-31 | Q4: 2032-12-31 | R4: 2033-12-31 | S4: 2034-12-31 | T4: 2035-12-31 | U4: 2036-12-31 | V4: 2037-12-31 | W4: 2038-12-31 | X4: 2039-12-31 | Y4: 2040-12-31 | Z4: 2041-12-31 | AA4: 2042-12-31 | AB4: 2043-12-31 | AC4: 2044-12-31 | AD4: 2045-12-31 | AE4: 2046-12-31 | AF4: 2047-12-31 | AG4: 2048-12-31 | AH4: 2049-12-31 | AI4: 2050-12-31 | AJ4: 2051-12-31 | AK4: 2052-12-31 | AL4: 2053-12-31 | AM4: 2054-12-31 | AN4: 2055-12-31 | AO4: 2056-12-31 | AP4: 2057-12-31 | AQ4: 2058-12-31 | AR4: 2059-12-31 | AS4: 2060-12-31 | AT4: 2061-12-31 | AU4: 2062-12-31 | AV4: 2063-12-31
B6: Inputs
C7: Ship 1 | I7: Results
D8: EBITDA | E8: 100
D9: Synergies | E9: 10 | I9: Total EBITDA | L9: =I58 -> 561.5
D10: Age | E10: 20 | I10: Total Value No Synergies | L10: =F63 -> 9003.085127
D11: Life | E11: 35 | I11: Total Value with Synergies | L11: =F76 -> 9702.469094
D12: Remaining Life | E12: =E11-E10 -> 15
D13: Retirement | E13: =EDATE(E4,E12*12) -> 2039-01-01 | I13: EV/BITDA No Synergies | L13: =L10/L9 -> 16.03398954
D14: Inflation | E14: 0.01 | I14: EV/EBITDA with Synergies | L14: =L11/L9 -> 17.27955315
D15: Cost of Capital | E15: 0.06
D16: Include | E16: TRUE
C18: Ship 2
D19: EBITDA | E19: 150
D20: Synergies | E20: 20
D21: Age | E21: 4
D22: Life | E22: 35
D23: Remaining Life | E23: =E22-E21 -> 31
D24: Retirement | E24: =EDATE(E4,E23*12) -> 2055-01-01
D25: Inflation | E25: 0.02
D26: Cost of Capital | E26: 0.07
D27: Include | E27: TRUE
C29: Ship 3
D30: EBITDA | E30: 300
D31: Synergies | E31: 15
D32: Age | E32: 1
D33: Life | E33: 35
D34: Remaining Life | E34: =E33-E32 -> 34
D35: Retirement | E35: =EDATE(E4,E34*12) -> 2058-01-01
D36: Inflation | E36: 0.025
D37: Cost of Capital | E37: 0.065
D38: Incude | E38: TRUE
B41: Model - Timing
C42: Ship 1 Life | E42: =E13 -> 2039-01-01 | G42: =SUM(I42:XFD42) -> 15 | I42: =(I$4<=$E42)*1 -> 1 | J42: =(J$4<=$E42)*1 -> 1 | K42: 1 | L42: 1 | M42: 1 | N42: 1 | O42: 1 | P42: 1 | Q42: 1 | R42: 1 | S42: 1 | T42: 1 | U42: 1 | V42: 1 | W42: 1 | X42: 0 | Y42: 0 | Z42: 0 | AA42: 0 | AB42: 0 | AC42: 0 | AD42: 0 | AE42: 0 | AF42: 0 | AG42: 0 | AH42: 0 | AI42: 0 | AJ42: 0 | AK42: 0 | AL42: 0 | AM42: 0 | AN42: 0 | AO42: 0 | AP42: 0 | AQ42: 0 | AR42: 0 | AS42: 0 | AT42: 0 | AU42: 0 | AV42: 0
C43: Ship 2 Life | E43: =E24 -> 2055-01-01 | G43: =SUM(I43:XFD43) -> 31 | I43: =(I$4<=$E43)*1 -> 1 | J43: 1 | K43: 1 | L43: 1 | M43: 1 | N43: 1 | O43: 1 | P43: 1 | Q43: 1 | R43: 1 | S43: 1 | T43: 1 | U43: 1 | V43: 1 | W43: 1 | X43: 1 | Y43: 1 | Z43: 1 | AA43: 1 | AB43: 1 | AC43: 1 | AD43: 1 | AE43: 1 | AF43: 1 | AG43: 1 | AH43: 1 | AI43: 1 | AJ43: 1 | AK43: 1 | AL43: 1 | AM43: 1 | AN43: 0 | AO43: 0 | AP43: 0 | AQ43: 0 | AR43: 0 | AS43: 0 | AT43: 0 | AU43: 0 | AV43: 0
C44: Ship 3 Life | E44: =E35 -> 2058-01-01 | G44: =SUM(I44:XFD44) -> 34 | I44: 1 | J44: 1 | K44: 1 | L44: 1 | M44: 1 | N44: 1 | O44: 1 | P44: 1 | Q44: 1 | R44: 1 | S44: 1 | T44: 1 | U44: 1 | V44: 1 | W44: 1 | X44: 1 | Y44: 1 | Z44: 1 | AA44: 1 | AB44: 1 | AC44: 1 | AD44: 1 | AE44: 1 | AF44: 1 | AG44: 1 | AH44: 1 | AI44: 1 | AJ44: 1 | AK44: 1 | AL44: 1 | AM44: 1 | AN44: 1 | AO44: 1 | AP44: 1 | AQ44: 0 | AR44: 0 | AS44: 0 | AT44: 0 | AU44: 0 | AV44: 0
C46: Ship 1 EBITDA Base | E46: =E8 -> 100 | I46: =$E46*I42 -> 100 | J46: =$E46*J42 -> 100 | K46: 100 | L46: 100 | M46: 100 | N46: 100 | O46: 100 | P46: 100 | Q46: 100 | R46: 100 | S46: 100 | T46: 100 | U46: 100 | V46: 100 | W46: 100 | X46: 0 | Y46: 0 | Z46: 0 | AA46: 0 | AB46: 0 | AC46: 0 | AD46: 0 | AE46: 0 | AF46: 0 | AG46: 0 | AH46: 0 | AI46: 0 | AJ46: 0 | AK46: 0 | AL46: 0 | AM46: 0 | AN46: 0 | AO46: 0 | AP46: 0 | AQ46: 0 | AR46: 0 | AS46: 0 | AT46: 0 | AU46: 0 | AV46: 0
C47: Ship 2 EBITDA Base | E47: =E19 -> 150 | I47: =$E47*I43 -> 150 | J47: 150 | K47: 150 | L47: 150 | M47: 150 | N47: 150 | O47: 150 | P47: 150 | Q47: 150 | R47: 150 | S47: 150 | T47: 150 | U47: 150 | V47: 150 | W47: 150 | X47: 150 | Y47: 150 | Z47: 150 | AA47: 150 | AB47: 150 | AC47: 150 | AD47: 150 | AE47: 150 | AF47: 150 | AG47: 150 | AH47: 150 | AI47: 150 | AJ47: 150 | AK47: 150 | AL47: 150 | AM47: 150 | AN47: 0 | AO47: 0 | AP47: 0 | AQ47: 0 | AR47: 0 | AS47: 0 | AT47: 0 | AU47: 0 | AV47: 0
C48: Ship 3 EBITDA Base | E48: =E30 -> 300 | I48: 300 | J48: 300 | K48: 300 | L48: 300 | M48: 300 | N48: 300 | O48: 300 | P48: 300 | Q48: 300 | R48: 300 | S48: 300 | T48: 300 | U48: 300 | V48: 300 | W48: 300 | X48: 300 | Y48: 300 | Z48: 300 | AA48: 300 | AB48: 300 | AC48: 300 | AD48: 300 | AE48: 300 | AF48: 300 | AG48: 300 | AH48: 300 | AI48: 300 | AJ48: 300 | AK48: 300 | AL48: 300 | AM48: 300 | AN48: 300 | AO48: 300 | AP48: 300 | AQ48: 0 | AR48: 0 | AS48: 0 | AT48: 0 | AU48: 0 | AV48: 0
D49: Total | I49: =SUM(I46:I48) -> 550 | J49: =SUM(J46:J48) -> 550 | K49: 550 | L49: 550 | M49: 550 | N49: 550 | O49: 550 | P49: 550 | Q49: 550 | R49: 550 | S49: 550 | T49: 550 | U49: 550 | V49: 550 | W49: 550 | X49: 450 | Y49: 450 | Z49: 450 | AA49: 450 | AB49: 450 | AC49: 450 | AD49: 450 | AE49: 450 | AF49: 450 | AG49: 450 | AH49: 450 | AI49: 450 | AJ49: 450 | AK49: 450 | AL49: 450 | AM49: 450 | AN49: 300 | AO49: 300 | AP49: 300 | AQ49: 0 | AR49: 0 | AS49: 0 | AT49: 0 | AU49: 0 | AV49: 0
C51: Ship 1 Inflation Index | E51: =E14 -> 0.01 | H51: 1 | I51: =H51*(1+$E51) -> 1.01 | J51: =I51*(1+$E51) -> 1.0201 | K51: 1.030301 | L51: 1.04060401 | M51: 1.05101005 | N51: 1.061520151 | O51: 1.072135352 | P51: 1.082856706 | Q51: 1.093685273 | R51: 1.104622125 | S51: 1.115668347 | T51: 1.12682503 | U51: 1.13809328 | V51: 1.149474213 | W51: 1.160968955 | X51: 1.172578645 | Y51: 1.184304431 | Z51: 1.196147476 | AA51: 1.20810895 | AB51: 1.22019004 | AC51: 1.23239194 | AD51: 1.24471586 | AE51: 1.257163018 | AF51: 1.269734649 | AG51: 1.282431995 | AH51: 1.295256315 | AI51: 1.308208878 | AJ51: 1.321290967 | AK51: 1.334503877 | AL51: 1.347848915 | AM51: 1.361327404 | AN51: 1.374940679 | AO51: 1.388690085 | AP51: 1.402576986 | AQ51: 1.416602756 | AR51: 1.430768784 | AS51: 1.445076471 | AT51: 1.459527236 | AU51: 1.474122509 | AV51: 1.488863734
C52: Ship 2 Inflation Index | E52: =E25 -> 0.02 | H52: 1 | I52: =H52*(1+$E52) -> 1.02 | J52: 1.0404 | K52: 1.061208 | L52: 1.08243216 | M52: 1.104080803 | N52: 1.126162419 | O52: 1.148685668 | P52: 1.171659381 | Q52: 1.195092569 | R52: 1.21899442 | S52: 1.243374308 | T52: 1.268241795 | U52: 1.29360663 | V52: 1.319478763 | W52: 1.345868338 | X52: 1.372785705 | Y52: 1.400241419 | Z52: 1.428246248 | AA52: 1.456811173 | AB52: 1.485947396 | AC52: 1.515666344 | AD52: 1.545979671 | AE52: 1.576899264 | AF52: 1.608437249 | AG52: 1.640605994 | AH52: 1.673418114 | AI52: 1.706886477 | AJ52: 1.741024206 | AK52: 1.77584469 | AL52: 1.811361584 | AM52: 1.847588816 | AN52: 1.884540592 | AO52: 1.922231404 | AP52: 1.960676032 | AQ52: 1.999889553 | AR52: 2.039887344 | AS52: 2.080685091 | AT52: 2.122298792 | AU52: 2.164744768 | AV52: 2.208039664
C53: Ship 3 Inflation Index | E53: =E36 -> 0.025 | H53: 1 | I53: 1.025 | J53: 1.050625 | K53: 1.076890625 | L53: 1.103812891 | M53: 1.131408213 | N53: 1.159693418 | O53: 1.188685754 | P53: 1.218402898 | Q53: 1.24886297 | R53: 1.280084544 | S53: 1.312086658 | T53: 1.344888824 | U53: 1.378511045 | V53: 1.412973821 | W53: 1.448298166 | X53: 1.484505621 | Y53: 1.521618261 | Z53: 1.559658718 | AA53: 1.598650186 | AB53: 1.63861644 | AC53: 1.679581851 | AD53: 1.721571398 | AE53: 1.764610683 | AF53: 1.80872595 | AG53: 1.853944098 | AH53: 1.900292701 | AI53: 1.947800018 | AJ53: 1.996495019 | AK53: 2.046407394 | AL53: 2.097567579 | AM53: 2.150006769 | AN53: 2.203756938 | AO53: 2.258850861 | AP53: 2.315322133 | AQ53: 2.373205186 | AR53: 2.432535316 | AS53: 2.493348699 | AT53: 2.555682416 | AU53: 2.619574476 | AV53: 2.685063838
C55: Ship 1 EBITDA Inflated | E55: =E16 -> TRUE | I55: =$E55*I46*I51 -> 101 | J55: 102.01 | K55: 103.0301 | L55: 104.060401 | M55: 105.101005 | N55: 106.1520151 | O55: 107.2135352 | P55: 108.2856706 | Q55: 109.3685273 | R55: 110.4622125 | S55: 111.5668347 | T55: 112.682503 | U55: 113.809328 | V55: 114.9474213 | W55: 116.0968955 | X55: 0 | Y55: 0 | Z55: 0 | AA55: 0 | AB55: 0 | AC55: 0 | AD55: 0 | AE55: 0 | AF55: 0 | AG55: 0 | AH55: 0 | AI55: 0 | AJ55: 0 | AK55: 0 | AL55: 0 | AM55: 0 | AN55: 0 | AO55: 0 | AP55: 0 | AQ55: 0 | AR55: 0 | AS55: 0 | AT55: 0 | AU55: 0 | AV55: 0
C56: Ship 1 EBITDA Inflated | E56: =E27 -> TRUE | I56: =$E56*I47*I52 -> 153 | J56: 156.06 | K56: 159.1812 | L56: 162.364824 | M56: 165.6121205 | N56: 168.9243629 | O56: 172.3028501 | P56: 175.7489072 | Q56: 179.2638853 | R56: 182.849163 | S56: 186.5061463 | T56: 190.2362692 | U56: 194.0409946 | V56: 197.9218145 | W56: 201.8802507 | X56: 205.9178558 | Y56: 210.0362129 | Z56: 214.2369371 | AA56: 218.5216759 | AB56: 222.8921094 | AC56: 227.3499516 | AD56: 231.8969506 | AE56: 236.5348896 | AF56: 241.2655874 | AG56: 246.0908992 | AH56: 251.0127172 | AI56: 256.0329715 | AJ56: 261.1536309 | AK56: 266.3767035 | AL56: 271.7042376 | AM56: 277.1383224 | AN56: 0 | AO56: 0 | AP56: 0 | AQ56: 0 | AR56: 0 | AS56: 0 | AT56: 0 | AU56: 0 | AV56: 0
C57: Ship 1 EBITDA Inflated | E57: =E38 -> TRUE | I57: =$E57*I48*I53 -> 307.5 | J57: 315.1875 | K57: 323.0671875 | L57: 331.1438672 | M57: 339.4224639 | N57: 347.9080255 | O57: 356.6057261 | P57: 365.5208693 | Q57: 374.658891 | R57: 384.0253633 | S57: 393.6259973 | T57: 403.4666473 | U57: 413.5533135 | V57: 423.8921463 | W57: 434.4894499 | X57: 445.3516862 | Y57: 456.4854784 | Z57: 467.8976153 | AA57: 479.5950557 | AB57: 491.5849321 | AC57: 503.8745554 | AD57: 516.4714193 | AE57: 529.3832048 | AF57: 542.6177849 | AG57: 556.1832295 | AH57: 570.0878102 | AI57: 584.3400055 | AJ57: 598.9485056 | AK57: 613.9222183 | AL57: 629.2702737 | AM57: 645.0020306 | AN57: 661.1270813 | AO57: 677.6552584 | AP57: 694.5966398 | AQ57: 0 | AR57: 0 | AS57: 0 | AT57: 0 | AU57: 0 | AV57: 0
D58: Total | I58: =SUM(I55:I57) -> 561.5 | J58: =SUM(J55:J57) -> 573.2575 | K58: 585.2784875 | L58: 597.5690922 | M58: 610.1355894 | N58: 622.9844034 | O58: 636.1221115 | P58: 649.555447 | Q58: 663.2913035 | R58: 677.3367388 | S58: 691.6989783 | T58: 706.3854195 | U58: 721.4036361 | V58: 736.7613821 | W58: 752.4665962 | X58: 651.269542 | Y58: 666.5216912 | Z58: 682.1345524 | AA58: 698.1167316 | AB58: 714.4770415 | AC58: 731.224507 | AD58: 748.3683699 | AE58: 765.9180944 | AF58: 783.8833723 | AG58: 802.2741287 | AH58: 821.1005274 | AI58: 840.372977 | AJ58: 860.1021366 | AK58: 880.2989218 | AL58: 900.9745113 | AM58: 922.1403529 | AN58: 661.1270813 | AO58: 677.6552584 | AP58: 694.5966398 | AQ58: 0 | AR58: 0 | AS58: 0 | AT58: 0 | AU58: 0 | AV58: 0
C60: PV of EBITDA - Ship 1 | E60: =$E$15 -> 0.06 | F60: =NPV(E60,I55:AV55) -> 1041.447801
C61: PV of EBITDA - Ship 2 | E61: =$E$26 -> 0.07 | F61: =NPV(E61,I56:AV56) -> 2365.887856
C62: PV of EBITDA - Ship 3 | E62: =$E$37 -> 0.065 | F62: =NPV(E62,I57:AV57) -> 5595.74947
D63: Total | F63: =SUM(F60:F62) -> 9003.085127
C65: Synergies - Ship 1 | E65: =E9 -> 10 | I65: =$E65*I51*I42 -> 10.1 | J65: 10.201 | K65: 10.30301 | L65: 10.4060401 | M65: 10.5101005 | N65: 10.61520151 | O65: 10.72135352 | P65: 10.82856706 | Q65: 10.93685273 | R65: 11.04622125 | S65: 11.15668347 | T65: 11.2682503 | U65: 11.3809328 | V65: 11.49474213 | W65: 11.60968955 | X65: 0 | Y65: 0 | Z65: 0 | AA65: 0 | AB65: 0 | AC65: 0 | AD65: 0 | AE65: 0 | AF65: 0 | AG65: 0 | AH65: 0 | AI65: 0 | AJ65: 0 | AK65: 0 | AL65: 0 | AM65: 0 | AN65: 0 | AO65: 0 | AP65: 0 | AQ65: 0 | AR65: 0 | AS65: 0 | AT65: 0 | AU65: 0 | AV65: 0
C66: Synergies - Ship 2 | E66: =E20 -> 20 | I66: =$E66*I52*I43 -> 20.4 | J66: 20.808 | K66: 21.22416 | L66: 21.6486432 | M66: 22.08161606 | N66: 22.52324839 | O66: 22.97371335 | P66: 23.43318762 | Q66: 23.90185137 | R66: 24.3798884 | S66: 24.86748617 | T66: 25.36483589 | U66: 25.87213261 | V66: 26.38957526 | W66: 26.91736677 | X66: 27.4557141 | Y66: 28.00482838 | Z66: 28.56492495 | AA66: 29.13622345 | AB66: 29.71894792 | AC66: 30.31332688 | AD66: 30.91959342 | AE66: 31.53798528 | AF66: 32.16874499 | AG66: 32.81211989 | AH66: 33.46836229 | AI66: 34.13772953 | AJ66: 34.82048412 | AK66: 35.51689381 | AL66: 36.22723168 | AM66: 36.95177632 | AN66: 0 | AO66: 0 | AP66: 0 | AQ66: 0 | AR66: 0 | AS66: 0 | AT66: 0 | AU66: 0 | AV66: 0
C67: Synergies - Ship 3 | E67: =E31 -> 15 | I67: =$E67*I53*I44 -> 15.375 | J67: 15.759375 | K67: 16.15335937 | L67: 16.55719336 | M67: 16.97112319 | N67: 17.39540127 | O67: 17.83028631 | P67: 18.27604346 | Q67: 18.73294455 | R67: 19.20126816 | S67: 19.68129987 | T67: 20.17333236 | U67: 20.67766567 | V67: 21.19460731 | W67: 21.7244725 | X67: 22.26758431 | Y67: 22.82427392 | Z67: 23.39488077 | AA67: 23.97975278 | AB67: 24.5792466 | AC67: 25.19372777 | AD67: 25.82357096 | AE67: 26.46916024 | AF67: 27.13088924 | AG67: 27.80916147 | AH67: 28.50439051 | AI67: 29.21700027 | AJ67: 29.94742528 | AK67: 30.69611091 | AL67: 31.46351369 | AM67: 32.25010153 | AN67: 33.05635407 | AO67: 33.88276292 | AP67: 34.72983199 | AQ67: 0 | AR67: 0 | AS67: 0 | AT67: 0 | AU67: 0 | AV67: 0
C69: Ship 1 EBITDA After Synergy | I69: =I55+I65 -> 111.1 | J69: 112.211 | K69: 113.33311 | L69: 114.4664411 | M69: 115.6111055 | N69: 116.7672166 | O69: 117.9348887 | P69: 119.1142376 | Q69: 120.30538 | R69: 121.5084338 | S69: 122.7235181 | T69: 123.9507533 | U69: 125.1902608 | V69: 126.4421635 | W69: 127.7065851 | X69: 0 | Y69: 0 | Z69: 0 | AA69: 0 | AB69: 0 | AC69: 0 | AD69: 0 | AE69: 0 | AF69: 0 | AG69: 0 | AH69: 0 | AI69: 0 | AJ69: 0 | AK69: 0 | AL69: 0 | AM69: 0 | AN69: 0 | AO69: 0 | AP69: 0 | AQ69: 0 | AR69: 0 | AS69: 0 | AT69: 0 | AU69: 0 | AV69: 0
C70: Ship 2 EBITDA After Synergy | I70: =I56+I66 -> 173.4 | J70: 176.868 | K70: 180.40536 | L70: 184.0134672 | M70: 187.6937365 | N70: 191.4476113 | O70: 195.2765635 | P70: 199.1820948 | Q70: 203.1657367 | R70: 207.2290514 | S70: 211.3736324 | T70: 215.6011051 | U70: 219.9131272 | V70: 224.3113897 | W70: 228.7976175 | X70: 233.3735699 | Y70: 238.0410413 | Z70: 242.8018621 | AA70: 247.6578993 | AB70: 252.6110573 | AC70: 257.6632785 | AD70: 262.816544 | AE70: 268.0728749 | AF70: 273.4343324 | AG70: 278.9030191 | AH70: 284.4810794 | AI70: 290.170701 | AJ70: 295.974115 | AK70: 301.8935974 | AL70: 307.9314693 | AM70: 314.0900987 | AN70: 0 | AO70: 0 | AP70: 0 | AQ70: 0 | AR70: 0 | AS70: 0 | AT70: 0 | AU70: 0 | AV70: 0
C71: Ship 3 EBITDA After Synergy | I71: =I57+I67 -> 322.875 | J71: 330.946875 | K71: 339.2205469 | L71: 347.7010605 | M71: 356.3935871 | N71: 365.3034267 | O71: 374.4360124 | P71: 383.7969127 | Q71: 393.3918355 | R71: 403.2266314 | S71: 413.3072972 | T71: 423.6399796 | U71: 434.2309791 | V71: 445.0867536 | W71: 456.2139224 | X71: 467.6192705 | Y71: 479.3097523 | Z71: 491.2924961 | AA71: 503.5748085 | AB71: 516.1641787 | AC71: 529.0682832 | AD71: 542.2949902 | AE71: 555.852365 | AF71: 569.7486741 | AG71: 583.992391 | AH71: 598.5922007 | AI71: 613.5570058 | AJ71: 628.8959309 | AK71: 644.6183292 | AL71: 660.7337874 | AM71: 677.2521321 | AN71: 694.1834354 | AO71: 711.5380213 | AP71: 729.3264718 | AQ71: 0 | AR71: 0 | AS71: 0 | AT71: 0 | AU71: 0 | AV71: 0
C73: PV of EBITDA - Ship 1 | E73: =$E$15 -> 0.06 | F73: =NPV(E73,I69:AV69) -> 1145.592581
C74: PV of EBITDA - Ship 2 | E74: =$E$26 -> 0.07 | F74: =NPV(E74,I70:AV70) -> 2681.33957
C75: PV of EBITDA - Ship 3 | E75: =$E$37 -> 0.065 | F75: 5875.536943
D76: Total | F76: =SUM(F73:F75) -> 9702.469094

Sheet Portfolio
H2: 2 | I2: 10 | J2: 15 | K2: 30
H3: 0.5 | I3: 0.3 | J3: 0.2 | K3: 0.05
B5: Existing | G5: 1 | H5: 2 | I5: 3 | J5: 4 | K5: 5 | L5: 6 | M5: 7 | N5: 8 | O5: 9 | P5: 10 | Q5: 11 | R5: 12 | S5: 13 | T5: 14 | U5: 15 | V5: 16 | W5: 17 | X5: 18 | Y5: 19 | Z5: 20 | AA5: 21 | AB5: 22 | AC5: 23 | AD5: 24 | AE5: 25 | AF5: 26 | AG5: 27 | AH5: 28 | AI5: 29 | AJ5: 30
C6: Asset Balance | H6: =interpolate_look_up(H5,2:2,3:3) -> 0.5 | I6: =interpolate_look_up(I5,2:2,3:3) -> 0.469071353 | J6: =interpolate_look_up(J5,2:2,3:3) -> 0.4400558684 | K6: =interpolate_look_up(K5,2:2,3:3) -> 0.4128352032 | L6: =interpolate_look_up(L5,2:2,3:3) -> 0.3872983346 | M6: =interpolate_look_up(M5,2:2,3:3) -> 0.3633411077 | N6: =interpolate_look_up(N5,2:2,3:3) -> 0.3408658099 | O6: =interpolate_look_up(O5,2:2,3:3) -> 0.3197807733 | P6: =interpolate_look_up(P5,2:2,3:3) -> 0.3 | Q6: =interpolate_look_up(Q5,2:2,3:3) -> 0.2766323734 | R6: =interpolate_look_up(R5,2:2,3:3) -> 0.2550849001 | S6: =interpolate_look_up(S5,2:2,3:3) -> 0.2352158045 | T6: =interpolate_look_up(T5,2:2,3:3) -> 0.2168943542 | U6: =interpolate_look_up(U5,2:2,3:3) -> 0.2 | V6: =interpolate_look_up(V5,2:2,3:3) -> 0.1823444977 | W6: =interpolate_look_up(W5,2:2,3:3) -> 0.1662475792 | X6: =interpolate_look_up(X5,2:2,3:3) -> 0.1515716567 | Y6: =interpolate_look_up(Y5,2:2,3:3) -> 0.138191288 | Z6: =interpolate_look_up(Z5,2:2,3:3) -> 0.125992105 | AA6: =interpolate_look_up(AA5,2:2,3:3) -> 0.1148698355 | AB6: =interpolate_look_up(AB5,2:2,3:3) -> 0.1047294123 | AC6: =interpolate_look_up(AC5,2:2,3:3) -> 0.09548416039 | AD6: =interpolate_look_up(AD5,2:2,3:3) -> 0.08705505633 | AE6: =interpolate_look_up(AE5,2:2,3:3) -> 0.0793700526 | AF6: =interpolate_look_up(AF5,2:2,3:3) -> 0.07236346187 | AG6: =interpolate_look_up(AG5,2:2,3:3) -> 0.06597539554 | AH6: =interpolate_look_up(AH5,2:2,3:3) -> 0.0601512518 | AI6: =interpolate_look_up(AI5,2:2,3:3) -> 0.05484124898 | AJ6: =interpolate_look_up(AJ5,2:2,3:3) -> 0.05
D7: Historic Units | G7: 0 | H7: 10 | I7: =H7*(1+I6) -> 14.69071353 | J7: =I7*(1+J6) -> 21.15544823 | K7: 29.889162 | L7: 41.46518466 | M7: 56.53119079 | N7: 75.80074092 | O7: 100.0403605 | P7: 130.0524686 | Q7: 166.0291917 | R7: 208.3807315 | S7: 257.3951728 | T7: 313.2227326 | U7: 375.8672792 | V7: 444.4046094 | W7: 518.2857999 | X7: 596.8432372 | Y7: 679.3217729 | Z7: 764.910953 | AA7: 852.7761484 | AB7: 942.0868932 | AC7: 1032.041269 | AD7: 1121.88568 | AE7: 1210.929806 | AF7: 1298.556878 | AG7: 1384.229682 | AH7: 1467.49283 | AI7: 1547.97197 | AJ7: 1625.370568
D9: Real Units
D12: Replacement
D14: New Investment
D16: Capital Expenditue/Unit
